Body Name,Date Paid,Transaction Number,Amount,Supplier Name,Supplier Type,Expense Area,Cost Centre Description,Expense Type
Cambridgeshire County Council,01-Dec-22,51301893653,-936.00,Wicksteed Trading Ltd,CHARITY,Fostering Recruitment & Assessment Team,Fostering Recruitment & Assessment Team,Advertising / Publicity (non Recruitment)
Cambridgeshire County Council,01-Dec-22,51301877844,758.30,RSP LTD,TRADE SUPPLIER,Safeguarding Hunts and Fenland,Family Safeguarding Hunts and Fenland,Concessions - payments to transport operators
Cambridgeshire County Council,01-Dec-22,51301894429,"9,067.76",CAMBRIDGE BUS & COACH LTD,TRADE SUPPLIER,Home to School Transport - Mainstream,Home to School Transport Mainstream - Secondary,Home to School - Contract
Cambridgeshire County Council,01-Dec-22,65300017547,-680.00,Redacted Personal Data,INDIVIDUAL,Regional Adoption Agency,Adoption Support Fund,Professional Fees and Hired Services
Cambridgeshire County Council,01-Dec-22,51301894601,680.00,Redacted Personal Data,INDIVIDUAL,Regional Adoption Agency,Adoption Support Fund,Professional Fees and Hired Services
Cambridgeshire County Council,02-Dec-22,51301894357,"-5,160.77",RADIS COMMUNITY CARE,CARE ESTABLISHMENT,OPPD - Cost of Care - East Cambs - Over 65,East Cambs - O P Team - Care,Supported Living
Cambridgeshire County Council,02-Dec-22,51301894398,"-1,610.00",Christine Marie Care,CARE ESTABLISHMENT,OPPD - Under 65 - City South,OPPD - Under 65 - City South,Domiciliary Care
Cambridgeshire County Council,02-Dec-22,51301894398,"-1,610.00",Christine Marie Care,CARE ESTABLISHMENT,OPPD - Under 65 - City South,OPPD - Under 65 - City South,Domiciliary Care
Cambridgeshire County Council,02-Dec-22,51301894398,"-1,610.00",Christine Marie Care,CARE ESTABLISHMENT,OPPD - Under 65 - City South,OPPD - Under 65 - City South,Domiciliary Care
Cambridgeshire County Council,02-Dec-22,51301894398,"-1,610.00",Christine Marie Care,CARE ESTABLISHMENT,OPPD - Under 65 - City South,OPPD - Under 65 - City South,Domiciliary Care
Cambridgeshire County Council,02-Dec-22,51301894398,"-1,610.00",Christine Marie Care,CARE ESTABLISHMENT,OPPD - Under 65 - City South,OPPD - Under 65 - City South,Domiciliary Care
Cambridgeshire County Council,02-Dec-22,51301894398,"-1,610.00",Christine Marie Care,CARE ESTABLISHMENT,OPPD - Under 65 - City South,OPPD - Under 65 - City South,Domiciliary Care
Cambridgeshire County Council,02-Dec-22,51301894398,"-1,610.00",Christine Marie Care,CARE ESTABLISHMENT,OPPD - Under 65 - City South,OPPD - Under 65 - City South,Domiciliary Care
Cambridgeshire County Council,02-Dec-22,51301894398,"-1,610.00",Christine Marie Care,CARE ESTABLISHMENT,OPPD - Under 65 - City South,OPPD - Under 65 - City South,Domiciliary Care
Cambridgeshire County Council,02-Dec-22,51301894398,"-1,610.00",Christine Marie Care,CARE ESTABLISHMENT,OPPD - Under 65 - City South,OPPD - Under 65 - City South,Domiciliary Care
Cambridgeshire County Council,02-Dec-22,51301894398,"-1,610.00",Christine Marie Care,CARE ESTABLISHMENT,OPPD - Under 65 - City South,OPPD - Under 65 - City South,Domiciliary Care
Cambridgeshire County Council,02-Dec-22,51301894398,"-1,610.00",Christine Marie Care,CARE ESTABLISHMENT,OPPD - Under 65 - City South,OPPD - Under 65 - City South,Domiciliary Care
Cambridgeshire County Council,02-Dec-22,51301894398,"-1,610.00",Christine Marie Care,CARE ESTABLISHMENT,OPPD - Under 65 - City South,OPPD - Under 65 - City South,Domiciliary Care
Cambridgeshire County Council,02-Dec-22,51301894398,"-1,610.00",Christine Marie Care,CARE ESTABLISHMENT,OPPD - Under 65 - City South,OPPD - Under 65 - City South,Domiciliary Care
Cambridgeshire County Council,02-Dec-22,51301894398,"-1,610.00",Christine Marie Care,CARE ESTABLISHMENT,OPPD - Under 65 - City South,OPPD - Under 65 - City South,Domiciliary Care
Cambridgeshire County Council,02-Dec-22,51301894398,"-1,610.00",Christine Marie Care,CARE ESTABLISHMENT,OPPD - Under 65 - City South,OPPD - Under 65 - City South,Domiciliary Care
Cambridgeshire County Council,02-Dec-22,51301894398,"-1,610.00",Christine Marie Care,CARE ESTABLISHMENT,OPPD - Under 65 - City South,OPPD - Under 65 - City South,Domiciliary Care
Cambridgeshire County Council,02-Dec-22,51301894398,"-1,610.00",Christine Marie Care,CARE ESTABLISHMENT,OPPD - Under 65 - City South,OPPD - Under 65 - City South,Domiciliary Care
Cambridgeshire County Council,02-Dec-22,51301894398,"-1,610.00",Christine Marie Care,CARE ESTABLISHMENT,OPPD - Under 65 - City South,OPPD - Under 65 - City South,Domiciliary Care
Cambridgeshire County Council,02-Dec-22,51301894398,"-1,610.00",Christine Marie Care,CARE ESTABLISHMENT,OPPD - Under 65 - City South,OPPD - Under 65 - City South,Domiciliary Care
Cambridgeshire County Council,02-Dec-22,51301894398,"-1,610.00",Christine Marie Care,CARE ESTABLISHMENT,OPPD - Under 65 - City South,OPPD - Under 65 - City South,Domiciliary Care
Cambridgeshire County Council,02-Dec-22,51301894398,"-1,610.00",Christine Marie Care,CARE ESTABLISHMENT,OPPD - Under 65 - City South,OPPD - Under 65 - City South,Domiciliary Care
Cambridgeshire County Council,02-Dec-22,51301894398,"-1,610.00",Christine Marie Care,CARE ESTABLISHMENT,OPPD - Under 65 - City South,OPPD - Under 65 - City South,Domiciliary Care
Cambridgeshire County Council,02-Dec-22,51301894398,"-1,610.00",Christine Marie Care,CARE ESTABLISHMENT,OPPD - Under 65 - City South,OPPD - Under 65 - City South,Domiciliary Care
Cambridgeshire County Council,02-Dec-22,51301893765,"-1,466.74",THE RED HOUSE RESIDENTIAL & NURSING HOME,CARE ESTABLISHMENT,OPPD - Cost of Care - Huntingdon - Over 65,Hunts OP Team - Care,Residential Care
Cambridgeshire County Council,02-Dec-22,51301893765,"-1,100.06",THE RED HOUSE RESIDENTIAL & NURSING HOME,CARE ESTABLISHMENT,OPPD - Cost of Care - Huntingdon - Over 65,Hunts OP Team - Care,Residential Care
Cambridgeshire County Council,02-Dec-22,51301894398,-920.00,Downhma Grange - KCH UK Holdings,CARE ESTABLISHMENT,OPPD - Under 65 - City South,OPPD - Under 65 - City South,Domiciliary Care
Cambridgeshire County Council,02-Dec-22,51301893765,-733.37,THE RED HOUSE RESIDENTIAL & NURSING HOME,CARE ESTABLISHMENT,OPPD - Cost of Care - Huntingdon - Over 65,Hunts OP Team - Care,Residential Care
Cambridgeshire County Council,02-Dec-22,51301894376,-588.00,Redacted Personal Data,SERVICE USER,OPPD - Cost of Care - City South - Over 65,Older People - City & South - Care,Direct Payments
Cambridgeshire County Council,02-Dec-22,51301894376,-588.00,Redacted Personal Data,SERVICE USER,OPPD - Cost of Care - City South - Over 65,Older People - City & South - Care,Direct Payments
Cambridgeshire County Council,02-Dec-22,51301894376,-588.00,Redacted Personal Data,SERVICE USER,OPPD - Cost of Care - City South - Over 65,Older People - City & South - Care,Direct Payments
Cambridgeshire County Council,02-Dec-22,51301894376,-588.00,Redacted Personal Data,SERVICE USER,OPPD - Cost of Care - City South - Over 65,Older People - City & South - Care,Direct Payments
Cambridgeshire County Council,02-Dec-22,51301894376,-588.00,Redacted Personal Data,SERVICE USER,OPPD - Cost of Care - City South - Over 65,Older People - City & South - Care,Direct Payments
Cambridgeshire County Council,02-Dec-22,51301894376,-588.00,Redacted Personal Data,SERVICE USER,OPPD - Cost of Care - City South - Over 65,Older People - City & South - Care,Direct Payments
Cambridgeshire County Council,02-Dec-22,51301894376,-588.00,Redacted Personal Data,SERVICE USER,OPPD - Cost of Care - City South - Over 65,Older People - City & South - Care,Direct Payments
Cambridgeshire County Council,02-Dec-22,51301894376,-588.00,Redacted Personal Data,SERVICE USER,OPPD - Cost of Care - City South - Over 65,Older People - City & South - Care,Direct Payments
Cambridgeshire County Council,02-Dec-22,51301893765,-550.03,THE RED HOUSE RESIDENTIAL & NURSING HOME,CARE ESTABLISHMENT,OPPD - Cost of Care - Huntingdon - Over 65,Hunts OP Team - Care,Residential Care
Cambridgeshire County Council,02-Dec-22,51301894376,-504.00,Redacted Personal Data,SERVICE USER,OPPD - Cost of Care - City South - Over 65,Older People - City & South - Care,Direct Payments
Cambridgeshire County Council,02-Dec-22,51301894586,504.00,IMPERIAL COLLEGE PROJECTS LIMITED,TRADE SUPPLIER,Coroners,Coroners General,Testing
Cambridgeshire County Council,02-Dec-22,51301894648,517.86,Redacted Personal Data,INDIVIDUAL,LAC Transport,LAC Transport - Home to School,Social Care Transport
Cambridgeshire County Council,02-Dec-22,51301894606,519.00,IMPERIAL COLLEGE PROJECTS LIMITED,TRADE SUPPLIER,Coroners,Coroners General,Testing
Cambridgeshire County Council,02-Dec-22,51301894427,524.00,IMPERIAL COLLEGE PROJECTS LIMITED,TRADE SUPPLIER,Coroners,Coroners General,Testing
Cambridgeshire County Council,02-Dec-22,51301894402,529.93,BETTER HOME CARE,CARE ESTABLISHMENT,OPPD - Cost of Care - City South - Over 65,Older People - City & South - Care,Domiciliary Care
Cambridgeshire County Council,02-Dec-22,51301894647,530.10,Redacted Personal Data,INDIVIDUAL,LAC Transport,LAC Transport - Home to School,Social Care Transport
Cambridgeshire County Council,02-Dec-22,51301894749,543.00,WATERBEACH LODGE (SCIMITAR),CARE ESTABLISHMENT,Adults Central Holding,Adults Central Holding,Care & Ed Partner Organisations
Cambridgeshire County Council,02-Dec-22,51301893765,550.03,THE RED HOUSE RESIDENTIAL & NURSING HOME,CARE ESTABLISHMENT,OPPD - Cost of Care - Huntingdon - Over 65,Hunts OP Team - Care,Residential Care
Cambridgeshire County Council,02-Dec-22,51301893765,550.03,THE RED HOUSE RESIDENTIAL & NURSING HOME,CARE ESTABLISHMENT,OPPD - Cost of Care - Huntingdon - Over 65,Hunts OP Team - Care,Residential Care
Cambridgeshire County Council,02-Dec-22,51301894476,561.00,FENLAND DISTRICT COUNCIL,OTHER PUBLIC BODIES,Waste Disposal incl PFI,Whittlesey HWRC,Business rates
Cambridgeshire County Council,02-Dec-22,51301894484,574.00,FENLAND DISTRICT COUNCIL,OTHER PUBLIC BODIES,Corporate Offices,March Community Centre (C&I),Business rates
Cambridgeshire County Council,02-Dec-22,51301894804,582.00,Total Care Options Ltd,CARE ESTABLISHMENT,Adults Central Holding,Adults Central Holding,Care & Ed Partner Organisations
Cambridgeshire County Council,02-Dec-22,51301894293,585.00,Redacted Personal Data,PARENT/GUARDIAN,Children's Disability Direct Payments,CSC Direct Payments,Direct Payments
Cambridgeshire County Council,02-Dec-22,51301894518,586.00,HUNTINGDONSHIRE DISTRICT COUNCIL,OTHER PUBLIC BODIES,Corporate Offices,Yaxley Library,Business rates
Cambridgeshire County Council,02-Dec-22,51301894635,591.39,Redacted Personal Data,INDIVIDUAL,LAC Transport,LAC Transport - Home to School,Social Care Transport
Cambridgeshire County Council,02-Dec-22,51301894394,592.20,Redacted Personal Data,INDIVIDUAL,LD - City Locality - Cost of Care,LD - City - Care,Direct Payments
Cambridgeshire County Council,02-Dec-22,51301894394,592.20,Redacted Personal Data,INDIVIDUAL,LD - City Locality - Cost of Care,LD - City - Care,Direct Payments
Cambridgeshire County Council,02-Dec-22,51301894394,592.20,Redacted Personal Data,INDIVIDUAL,LD - City Locality - Cost of Care,LD - City - Care,Direct Payments
Cambridgeshire County Council,02-Dec-22,51301894394,592.20,Redacted Personal Data,INDIVIDUAL,LD - City Locality - Cost of Care,LD - City - Care,Direct Payments
Cambridgeshire County Council,02-Dec-22,51301894394,592.20,Redacted Personal Data,INDIVIDUAL,LD - City Locality - Cost of Care,LD - City - Care,Direct Payments
Cambridgeshire County Council,02-Dec-22,51301894394,592.20,Redacted Personal Data,INDIVIDUAL,LD - City Locality - Cost of Care,LD - City - Care,Direct Payments
Cambridgeshire County Council,02-Dec-22,51301894394,592.20,Redacted Personal Data,INDIVIDUAL,LD - City Locality - Cost of Care,LD - City - Care,Direct Payments
Cambridgeshire County Council,02-Dec-22,51301894394,592.20,Redacted Personal Data,INDIVIDUAL,LD - City Locality - Cost of Care,LD - City - Care,Direct Payments
Cambridgeshire County Council,02-Dec-22,51301894394,592.20,Redacted Personal Data,INDIVIDUAL,LD - City Locality - Cost of Care,LD - City - Care,Direct Payments
Cambridgeshire County Council,02-Dec-22,51301894394,592.20,Redacted Personal Data,INDIVIDUAL,LD - City Locality - Cost of Care,LD - City - Care,Direct Payments
Cambridgeshire County Council,02-Dec-22,51301894394,592.20,Redacted Personal Data,INDIVIDUAL,LD - City Locality - Cost of Care,LD - City - Care,Direct Payments
Cambridgeshire County Council,02-Dec-22,51301894394,592.20,Redacted Personal Data,INDIVIDUAL,LD - City Locality - Cost of Care,LD - City - Care,Direct Payments
Cambridgeshire County Council,02-Dec-22,51301894394,592.20,Redacted Personal Data,INDIVIDUAL,LD - City Locality - Cost of Care,LD - City - Care,Direct Payments
Cambridgeshire County Council,02-Dec-22,51301894394,592.20,Redacted Personal Data,INDIVIDUAL,LD - City Locality - Cost of Care,LD - City - Care,Direct Payments
Cambridgeshire County Council,02-Dec-22,51301894386,606.41,CHORUS HOMES LIMITED,COMPANY,OPPD - Cost of Care - Huntingdon - Over 65,Hunts OP Team - Care,Supported Living
Cambridgeshire County Council,02-Dec-22,51301894655,612.00,Redacted Personal Data,INDIVIDUAL,LAC Transport,LAC Transport - Home to School,Social Care Transport
Cambridgeshire County Council,02-Dec-22,51301894628,612.00,Redacted Personal Data,INDIVIDUAL,LAC Transport,LAC Transport  - Contact Visits,Social Care Transport
Cambridgeshire County Council,02-Dec-22,51301894598,616.00,IMPERIAL COLLEGE PROJECTS LIMITED,TRADE SUPPLIER,Coroners,Coroners General,Testing
Cambridgeshire County Council,02-Dec-22,51301894748,629.00,CLOVELLY HOUSE RESIDENTIAL HOME,CARE ESTABLISHMENT,Adults Central Holding,Adults Central Holding,Care & Ed Partner Organisations
Cambridgeshire County Council,02-Dec-22,51301881207,633.16,SKAT Limited,COMPANY,EY - Oasis,Trumpington Park Early Years,Agency Staff
Cambridgeshire County Council,02-Dec-22,51301888425,646.56,CF SOCIAL WORK LTD,TRADE SUPPLIER,Contact,Contact Relief,Professional Fees and Hired Services
Cambridgeshire County Council,02-Dec-22,51301882692,650.00,THE KITE TRUST,TRADE SUPPLIER,Domestic Violence & Sexual Violence,MHCLG Grant,Staff Training & Development
Cambridgeshire County Council,02-Dec-22,51301894403,653.10,Alpha Health and Social Care Services Ltd,CARE ESTABLISHMENT,OPPD - Cost of Care - Huntingdon - Under 65,OPPD - Under 65 - Huntingdon,Domiciliary Care
Cambridgeshire County Council,02-Dec-22,51301894403,653.10,Alpha Health and Social Care Services Ltd,CARE ESTABLISHMENT,OPPD - Cost of Care - Huntingdon - Under 65,OPPD - Under 65 - Huntingdon,Domiciliary Care
Cambridgeshire County Council,02-Dec-22,51301894403,653.10,Alpha Health and Social Care Services Ltd,CARE ESTABLISHMENT,OPPD - Cost of Care - Huntingdon - Under 65,OPPD - Under 65 - Huntingdon,Domiciliary Care
Cambridgeshire County Council,02-Dec-22,51301894403,653.10,Alpha Health and Social Care Services Ltd,CARE ESTABLISHMENT,OPPD - Cost of Care - Huntingdon - Under 65,OPPD - Under 65 - Huntingdon,Domiciliary Care
Cambridgeshire County Council,02-Dec-22,51301894403,653.10,Alpha Health and Social Care Services Ltd,CARE ESTABLISHMENT,OPPD - Cost of Care - Huntingdon - Under 65,OPPD - Under 65 - Huntingdon,Domiciliary Care
Cambridgeshire County Council,02-Dec-22,51301894403,653.10,Alpha Health and Social Care Services Ltd,CARE ESTABLISHMENT,OPPD - Cost of Care - Huntingdon - Under 65,OPPD - Under 65 - Huntingdon,Domiciliary Care
Cambridgeshire County Council,02-Dec-22,51301894403,653.10,Alpha Health and Social Care Services Ltd,CARE ESTABLISHMENT,OPPD - Cost of Care - Huntingdon - Under 65,OPPD - Under 65 - Huntingdon,Domiciliary Care
Cambridgeshire County Council,02-Dec-22,51301894803,658.00,Hills Independent Homecare Service,COMPANY,Adults Central Holding,Adults Central Holding,Care & Ed Partner Organisations
Cambridgeshire County Council,02-Dec-22,51301894817,664.60,Redacted Personal Data,INDIVIDUAL,SIS Head of Service,SIS - Intervention,Professional Fees and Hired Services
Cambridgeshire County Council,02-Dec-22,51301873070,667.80,CCS MEDIA LIMITED,TRADE SUPPLIER,ICT Service,ICT Service Sales,Materials for resale
Cambridgeshire County Council,02-Dec-22,51301894511,686.00,HUNTINGDONSHIRE DISTRICT COUNCIL,OTHER PUBLIC BODIES,Corporate Offices,"Earith, Somersham and Warboys Children's Centre",Business rates
Cambridgeshire County Council,02-Dec-22,51301883779,687.60,EQUITIX EDUCATION (CAMBRIDGESHIRE) LIMITED,EDUCATION,Buildings and Capital,BSF New Projects / Follow On Waves,Building Repair and Maintenance
Cambridgeshire County Council,02-Dec-22,51301894398,690.00,Christine Marie Care,CARE ESTABLISHMENT,OPPD - Under 65 - City South,OPPD - Under 65 - City South,Domiciliary Care
Cambridgeshire County Council,02-Dec-22,51301894366,706.69,RADIS COMMUNITY CARE,CARE ESTABLISHMENT,OPPD - Cost of Care - East Cambs - Over 65,East Cambs - O P Team - Care,Supported Living
Cambridgeshire County Council,02-Dec-22,51301894472,711.00,FENLAND DISTRICT COUNCIL,OTHER PUBLIC BODIES,Waste Disposal incl PFI,March HWRC,Business rates
Cambridgeshire County Council,02-Dec-22,51301894376,715.35,Redacted Personal Data,SERVICE USER,OPPD - Cost of Care - City South - Over 65,Older People - City & South - Care,Direct Payments
Cambridgeshire County Council,02-Dec-22,51301894534,736.00,HUNTINGDONSHIRE DISTRICT COUNCIL,OTHER PUBLIC BODIES,Capital Receipts Expenses,Capital Receipts Expenses,Business rates
Cambridgeshire County Council,02-Dec-22,51301894405,741.13,Fuchsia Homecare Cambridge,COMPANY,OPPD - Cost of Care - East Cambs - Over 65,East Cambs - O P Team - Care,Domiciliary Care
Cambridgeshire County Council,02-Dec-22,51301894405,741.13,Fuchsia Homecare Cambridge,COMPANY,OPPD - Cost of Care - East Cambs - Over 65,East Cambs - O P Team - Care,Domiciliary Care
Cambridgeshire County Council,02-Dec-22,51301894405,741.13,Fuchsia Homecare Cambridge,COMPANY,OPPD - Cost of Care - East Cambs - Over 65,East Cambs - O P Team - Care,Domiciliary Care
Cambridgeshire County Council,02-Dec-22,51301894405,741.13,Fuchsia Homecare Cambridge,COMPANY,OPPD - Cost of Care - East Cambs - Over 65,East Cambs - O P Team - Care,Domiciliary Care
Cambridgeshire County Council,02-Dec-22,51301894405,741.13,Fuchsia Homecare Cambridge,COMPANY,OPPD - Cost of Care - East Cambs - Over 65,East Cambs - O P Team - Care,Domiciliary Care
Cambridgeshire County Council,02-Dec-22,51301894405,741.13,Fuchsia Homecare Cambridge,COMPANY,OPPD - Cost of Care - East Cambs - Over 65,East Cambs - O P Team - Care,Domiciliary Care
Cambridgeshire County Council,02-Dec-22,51301894405,741.13,Fuchsia Homecare Cambridge,COMPANY,OPPD - Cost of Care - East Cambs - Over 65,East Cambs - O P Team - Care,Domiciliary Care
Cambridgeshire County Council,02-Dec-22,51301894405,741.13,Fuchsia Homecare Cambridge,COMPANY,OPPD - Cost of Care - East Cambs - Over 65,East Cambs - O P Team - Care,Domiciliary Care
Cambridgeshire County Council,02-Dec-22,51301894405,741.13,Fuchsia Homecare Cambridge,COMPANY,OPPD - Cost of Care - East Cambs - Over 65,East Cambs - O P Team - Care,Domiciliary Care
Cambridgeshire County Council,02-Dec-22,51301894402,741.90,BETTER HOME CARE,CARE ESTABLISHMENT,OPPD - Cost of Care - City South - Over 65,Older People - City & South - Care,Domiciliary Care
Cambridgeshire County Council,02-Dec-22,51301894402,741.90,BETTER HOME CARE,CARE ESTABLISHMENT,OPPD - Cost of Care - City South - Over 65,Older People - City & South - Care,Domiciliary Care
Cambridgeshire County Council,02-Dec-22,51301894402,741.90,BETTER HOME CARE,CARE ESTABLISHMENT,OPPD - Cost of Care - City South - Over 65,Older People - City & South - Care,Domiciliary Care
Cambridgeshire County Council,02-Dec-22,51301894402,741.90,BETTER HOME CARE,CARE ESTABLISHMENT,OPPD - Cost of Care - City South - Over 65,Older People - City & South - Care,Domiciliary Care
Cambridgeshire County Council,02-Dec-22,51301894382,744.00,Redacted Personal Data,INDIVIDUAL,OPPD - Cost of Care - East Cambs - Under 65,OPPD - Under 65 - East Cambs,Direct Payments
Cambridgeshire County Council,02-Dec-22,51301894382,744.00,Redacted Personal Data,INDIVIDUAL,OPPD - Cost of Care - East Cambs - Under 65,OPPD - Under 65 - East Cambs,Direct Payments
Cambridgeshire County Council,02-Dec-22,51301894382,744.00,Redacted Personal Data,INDIVIDUAL,OPPD - Cost of Care - East Cambs - Under 65,OPPD - Under 65 - East Cambs,Direct Payments
Cambridgeshire County Council,02-Dec-22,51301894382,744.00,Redacted Personal Data,INDIVIDUAL,OPPD - Cost of Care - East Cambs - Under 65,OPPD - Under 65 - East Cambs,Direct Payments
Cambridgeshire County Council,02-Dec-22,51301894382,744.00,Redacted Personal Data,INDIVIDUAL,OPPD - Cost of Care - East Cambs - Under 65,OPPD - Under 65 - East Cambs,Direct Payments
Cambridgeshire County Council,02-Dec-22,51301894382,744.00,Redacted Personal Data,INDIVIDUAL,OPPD - Cost of Care - East Cambs - Under 65,OPPD - Under 65 - East Cambs,Direct Payments
Cambridgeshire County Council,02-Dec-22,51301894382,744.00,Redacted Personal Data,INDIVIDUAL,OPPD - Cost of Care - East Cambs - Under 65,OPPD - Under 65 - East Cambs,Direct Payments
Cambridgeshire County Council,02-Dec-22,51301894382,744.00,Redacted Personal Data,INDIVIDUAL,OPPD - Cost of Care - East Cambs - Under 65,OPPD - Under 65 - East Cambs,Direct Payments
Cambridgeshire County Council,02-Dec-22,51301894382,744.00,Redacted Personal Data,INDIVIDUAL,OPPD - Cost of Care - East Cambs - Under 65,OPPD - Under 65 - East Cambs,Direct Payments
Cambridgeshire County Council,02-Dec-22,51301894382,744.00,Redacted Personal Data,INDIVIDUAL,OPPD - Cost of Care - East Cambs - Under 65,OPPD - Under 65 - East Cambs,Direct Payments
Cambridgeshire County Council,02-Dec-22,51301894382,744.00,Redacted Personal Data,INDIVIDUAL,OPPD - Cost of Care - East Cambs - Under 65,OPPD - Under 65 - East Cambs,Direct Payments
Cambridgeshire County Council,02-Dec-22,51301894382,744.00,Redacted Personal Data,INDIVIDUAL,OPPD - Cost of Care - East Cambs - Under 65,OPPD - Under 65 - East Cambs,Direct Payments
Cambridgeshire County Council,02-Dec-22,51301894382,744.00,Redacted Personal Data,INDIVIDUAL,OPPD - Cost of Care - East Cambs - Under 65,OPPD - Under 65 - East Cambs,Direct Payments
Cambridgeshire County Council,02-Dec-22,51301894382,744.00,Redacted Personal Data,INDIVIDUAL,OPPD - Cost of Care - East Cambs - Under 65,OPPD - Under 65 - East Cambs,Direct Payments
Cambridgeshire County Council,02-Dec-22,51301894556,749.00,HUNTINGDONSHIRE DISTRICT COUNCIL,OTHER PUBLIC BODIES,Corporate Offices,"Unit 7 Oak Court, St Ives",Business rates
Cambridgeshire County Council,02-Dec-22,51301894843,760.00,Achieve Occupational Therapy Ltd,EDUCATION,Regional Adoption Agency,Adoption Support Fund,Professional Fees and Hired Services
Cambridgeshire County Council,02-Dec-22,51301894473,761.00,FENLAND DISTRICT COUNCIL,OTHER PUBLIC BODIES,Waste Disposal incl PFI,Wisbech HWRC,Business rates
Cambridgeshire County Council,02-Dec-22,51301894327,778.44,Acorn Analytical Services (UK) Ltd,COMPANY,Health & Safety,POD - Health & Safety,Professional Fees and Hired Services
Cambridgeshire County Council,02-Dec-22,51301894747,781.00,THE HERMITAGE WHITTLESEY LLP,CARE ESTABLISHMENT,Adults Central Holding,Adults Central Holding,Care & Ed Partner Organisations
Cambridgeshire County Council,02-Dec-22,51301883718,782.70,HUGHES TV & AUDIO LTD T/A TRADE ELECTRICALS DIRECT,TRADE SUPPLIER,South Care Leaving,South Care Leaving,Leaving Care Grants
Cambridgeshire County Council,02-Dec-22,51301894368,805.46,RADIS COMMUNITY CARE,CARE ESTABLISHMENT,OPPD - Cost of Care - East Cambs - Over 65,East Cambs - O P Team - Care,Supported Living
Cambridgeshire County Council,02-Dec-22,51301894353,806.80,PAPWORTH TRUST,TRUST (OTHER),LD - South Locality - Cost of Care,LD - South Cambs - Care,Residential Care - Property Voids
Cambridgeshire County Council,02-Dec-22,51301894552,811.00,HUNTINGDONSHIRE DISTRICT COUNCIL,OTHER PUBLIC BODIES,Corporate Offices,Eastfield House,Business rates
Cambridgeshire County Council,02-Dec-22,51301894366,824.47,RADIS COMMUNITY CARE,CARE ESTABLISHMENT,OPPD - Cost of Care - East Cambs - Over 65,East Cambs - O P Team - Care,Supported Living
Cambridgeshire County Council,02-Dec-22,51301894366,824.47,RADIS COMMUNITY CARE,CARE ESTABLISHMENT,OPPD - Cost of Care - East Cambs - Over 65,East Cambs - O P Team - Care,Supported Living
Cambridgeshire County Council,02-Dec-22,51301894366,824.47,RADIS COMMUNITY CARE,CARE ESTABLISHMENT,OPPD - Cost of Care - East Cambs - Over 65,East Cambs - O P Team - Care,Supported Living
Cambridgeshire County Council,02-Dec-22,51301894355,828.12,PAPWORTH TRUST,TRUST (OTHER),LD - South Locality - Cost of Care,LD - South Cambs - Care,Residential Care - Property Voids
Cambridgeshire County Council,02-Dec-22,51301894376,834.58,Redacted Personal Data,SERVICE USER,OPPD - Cost of Care - City South - Over 65,Older People - City & South - Care,Direct Payments
Cambridgeshire County Council,02-Dec-22,51301894376,834.58,Redacted Personal Data,SERVICE USER,OPPD - Cost of Care - City South - Over 65,Older People - City & South - Care,Direct Payments
Cambridgeshire County Council,02-Dec-22,51301894376,834.58,Redacted Personal Data,SERVICE USER,OPPD - Cost of Care - City South - Over 65,Older People - City & South - Care,Direct Payments
Cambridgeshire County Council,02-Dec-22,51301894376,834.58,Redacted Personal Data,SERVICE USER,OPPD - Cost of Care - City South - Over 65,Older People - City & South - Care,Direct Payments
Cambridgeshire County Council,02-Dec-22,51301894376,834.58,Redacted Personal Data,SERVICE USER,OPPD - Cost of Care - City South - Over 65,Older People - City & South - Care,Direct Payments
Cambridgeshire County Council,02-Dec-22,51301894376,834.58,Redacted Personal Data,SERVICE USER,OPPD - Cost of Care - City South - Over 65,Older People - City & South - Care,Direct Payments
Cambridgeshire County Council,02-Dec-22,51301894376,834.58,Redacted Personal Data,SERVICE USER,OPPD - Cost of Care - City South - Over 65,Older People - City & South - Care,Direct Payments
Cambridgeshire County Council,02-Dec-22,51301894376,834.58,Redacted Personal Data,SERVICE USER,OPPD - Cost of Care - City South - Over 65,Older People - City & South - Care,Direct Payments
Cambridgeshire County Council,02-Dec-22,51301894527,861.00,HUNTINGDONSHIRE DISTRICT COUNCIL,OTHER PUBLIC BODIES,Waste Disposal incl PFI,Alconbury HWRC,Business rates
Cambridgeshire County Council,02-Dec-22,51301894338,882.72,ULVERSCROFT LARGE PRINT BOOKS LTD,TRADE SUPPLIER,Libraries - Stock & Distribution,Support - Stock & Distribution,Books and Multimedia Supplies
Cambridgeshire County Council,02-Dec-22,51301894510,911.00,HUNTINGDONSHIRE DISTRICT COUNCIL,OTHER PUBLIC BODIES,PH COMF,PH - Contain Outbreak Management Fund,Business rates
Cambridgeshire County Council,02-Dec-22,51301894549,923.00,HUNTINGDONSHIRE DISTRICT COUNCIL,OTHER PUBLIC BODIES,Corporate Offices,Eaton Socon Children's Centre,Business rates
Cambridgeshire County Council,02-Dec-22,51301894368,939.70,RADIS COMMUNITY CARE,CARE ESTABLISHMENT,OPPD - Cost of Care - East Cambs - Over 65,East Cambs - O P Team - Care,Supported Living
Cambridgeshire County Council,02-Dec-22,51301894368,939.70,RADIS COMMUNITY CARE,CARE ESTABLISHMENT,OPPD - Cost of Care - East Cambs - Over 65,East Cambs - O P Team - Care,Supported Living
Cambridgeshire County Council,02-Dec-22,51301894368,939.70,RADIS COMMUNITY CARE,CARE ESTABLISHMENT,OPPD - Cost of Care - East Cambs - Over 65,East Cambs - O P Team - Care,Supported Living
Cambridgeshire County Council,02-Dec-22,51301894529,948.00,HUNTINGDONSHIRE DISTRICT COUNCIL,OTHER PUBLIC BODIES,Corporate Offices,Stanton House,Business rates
Cambridgeshire County Council,02-Dec-22,51301894354,950.88,PAPWORTH TRUST,TRUST (OTHER),LD - South Locality - Cost of Care,LD - South Cambs - Care,Residential Care - Property Voids
Cambridgeshire County Council,02-Dec-22,51301894651,988.02,Redacted Personal Data,INDIVIDUAL,Early Years Service - HAF,HAF Grant,Home to School - Contract
Cambridgeshire County Council,02-Dec-22,51301880931,996.24,CAE Technology Servcies,COMPANY,ICT Service,ICT Service Sales,Materials for resale
Cambridgeshire County Council,02-Dec-22,51301894516,998.00,HUNTINGDONSHIRE DISTRICT COUNCIL,OTHER PUBLIC BODIES,BM - Corporate Offices,Building Maintenance,Business rates
Cambridgeshire County Council,02-Dec-22,51301894395,"1,000.00",Redacted Personal Data,SERVICE USER,OPPD - Under 65 - City South,OPPD - Under 65 - City South,Direct Payments
Cambridgeshire County Council,02-Dec-22,51301894646,"1,015.20",Redacted Personal Data,INDIVIDUAL,LAC Transport,LAC Transport - Home to School,Social Care Transport
Cambridgeshire County Council,02-Dec-22,51301881450,"1,020.60",THE CHURCH SCHOOLS OF CAMBRIDGE (THE OLD SCHOOLS),EDUCATION,St Philips,St Philips,Construction - External Professional Fees
Cambridgeshire County Council,02-Dec-22,51301894627,"1,025.82",Redacted Personal Data,INDIVIDUAL,LAC Transport,LAC Transport - Home to School,Social Care Transport
Cambridgeshire County Council,02-Dec-22,51301881108,"1,050.00",J & P PLANT LTD,COMPANY,Highways Maintenance,Rights of Way and Access,Traffic Signs and Lines Maintenance
Cambridgeshire County Council,02-Dec-22,51301894583,"1,088.60",ROYAL MAIL,TRADE SUPPLIER,Cambridgeshire Skills - March CC,Cambridgeshire Skills - March Community Centre - Learning,Advertising / Publicity (non Recruitment)
Cambridgeshire County Council,02-Dec-22,51301893765,"1,100.06",THE RED HOUSE RESIDENTIAL & NURSING HOME,CARE ESTABLISHMENT,OPPD - Cost of Care - Huntingdon - Over 65,Hunts OP Team - Care,Residential Care
Cambridgeshire County Council,02-Dec-22,51301893765,"1,100.06",THE RED HOUSE RESIDENTIAL & NURSING HOME,CARE ESTABLISHMENT,OPPD - Cost of Care - Huntingdon - Over 65,Hunts OP Team - Care,Residential Care
Cambridgeshire County Council,02-Dec-22,51301894509,"1,110.00",HUNTINGDONSHIRE DISTRICT COUNCIL,OTHER PUBLIC BODIES,PH COMF,PH - Contain Outbreak Management Fund,Business rates
Cambridgeshire County Council,02-Dec-22,51301894631,"1,110.15",Redacted Personal Data,INDIVIDUAL,LAC Transport,LAC Transport - Home to School,Social Care Transport
Cambridgeshire County Council,02-Dec-22,51301894639,"1,143.45",Redacted Personal Data,INDIVIDUAL,LAC Transport,LAC Transport - Home to School,Social Care Transport
Cambridgeshire County Council,02-Dec-22,51301894398,"1,150.00",Christine Marie Care,CARE ESTABLISHMENT,OPPD - Under 65 - City South,OPPD - Under 65 - City South,Domiciliary Care
Cambridgeshire County Council,02-Dec-22,51301881412,"1,150.00",Psychology Direct Ltd,EDUCATION,SEND Specialist Services - Education Psychology,SEND Specialist Services - Education Psychology,Professional Fees and Hired Services
Cambridgeshire County Council,02-Dec-22,51301894475,"1,198.00",FENLAND DISTRICT COUNCIL,OTHER PUBLIC BODIES,Corporate Offices,Chatteris Library,Business rates
Cambridgeshire County Council,02-Dec-22,51301894626,"1,206.00",Redacted Personal Data,INDIVIDUAL,LD - East Locality - Cost of Care,LD - East Cambs - Care,Social Care Transport
Cambridgeshire County Council,02-Dec-22,51301894337,"1,221.32",ULVERSCROFT LARGE PRINT BOOKS LTD,TRADE SUPPLIER,Libraries - Stock & Distribution,Support - Stock & Distribution,Books and Multimedia Supplies
Cambridgeshire County Council,02-Dec-22,51301894802,"1,266.00",CAMBRIDGE CAREFORCE LTD,CARE ESTABLISHMENT,Adults Central Holding,Adults Central Holding,Care & Ed Partner Organisations
Cambridgeshire County Council,02-Dec-22,51301894801,"1,276.00",BLUEBIRD CARE (CAMBRIDGE AND SOUTH CAMBS),CARE ESTABLISHMENT,Adults Central Holding,Adults Central Holding,Care & Ed Partner Organisations
Cambridgeshire County Council,02-Dec-22,51301894746,"1,288.00",BROWN'S FIELD HOUSE (ABBEYFIELD SOCIETY),CARE ESTABLISHMENT,Adults Central Holding,Adults Central Holding,Care & Ed Partner Organisations
Cambridgeshire County Council,02-Dec-22,51301880933,"1,325.70",NETWORK RAIL LTD,COMPANY,GCP - Chisholm Trail cycle links,GCP - Chisholm Trail cycle links,Construction - External Professional Fees
Cambridgeshire County Council,02-Dec-22,51301894352,"1,334.64",VOYAGE,CARE ESTABLISHMENT,LD - City Locality - Cost of Care,LD - City - Care,Residential Care - Property Voids
Cambridgeshire County Council,02-Dec-22,51301894671,"1,384.52",BRITISH TELECOMMUNICATIONS PLC,COMPANY,Park & Ride Parking,Park and Ride Admin,Telephone costs
Cambridgeshire County Council,02-Dec-22,51301894637,"1,391.94",Redacted Personal Data,INDIVIDUAL,LAC Transport,LAC Transport - Home to School,Social Care Transport
Cambridgeshire County Council,02-Dec-22,51301894350,"1,400.00",Scenic Cleaning Ltd,COMPANY,OPMH - Hunts & Fens,Older People Mental Health Hunts,Other Care Provide Payments and Contributions
Cambridgeshire County Council,02-Dec-22,51301894645,"1,404.00",Redacted Personal Data,INDIVIDUAL,LAC Transport,LAC Transport - Home to School,Social Care Transport
Cambridgeshire County Council,02-Dec-22,51301894294,"1,425.10",Redacted Personal Data,INDIVIDUAL,Children's Disability Direct Payments,CSC Direct Payments,Direct Payments
Cambridgeshire County Council,02-Dec-22,51301894528,"1,497.00",HUNTINGDONSHIRE DISTRICT COUNCIL,OTHER PUBLIC BODIES,Waste Disposal incl PFI,Bluntisham HWRC,Business rates
Cambridgeshire County Council,02-Dec-22,51301894745,"1,499.00",SOHAM LODGE,CARE ESTABLISHMENT,Adults Central Holding,Adults Central Holding,Care & Ed Partner Organisations
Cambridgeshire County Council,02-Dec-22,51301894798,"1,500.00",DUNAMIS SOCIAL CARE,CARE ESTABLISHMENT,Adults Central Holding,Adults Central Holding,Care & Ed Partner Organisations
Cambridgeshire County Council,02-Dec-22,51301894800,"1,500.00",AXIOM HOUSING ASSOCIATION LTD,CARE ESTABLISHMENT,Adults Central Holding,Adults Central Holding,Care & Ed Partner Organisations
Cambridgeshire County Council,02-Dec-22,51301894799,"1,500.00",Healthy Care Limited,COMPANY,Adults Central Holding,Adults Central Holding,Care & Ed Partner Organisations
Cambridgeshire County Council,02-Dec-22,51301894797,"1,500.00",SPRINGFIELD CARE LTD T/A CARING CREW,CARE ESTABLISHMENT,Adults Central Holding,Adults Central Holding,Care & Ed Partner Organisations
Cambridgeshire County Council,02-Dec-22,51301894471,"1,522.00",FENLAND DISTRICT COUNCIL,OTHER PUBLIC BODIES,Corporate Offices,Whittlesey Library,Business rates
Cambridgeshire County Council,02-Dec-22,51301894623,"1,540.94",Redacted Personal Data,INDIVIDUAL,LAC Transport,LAC Transport - Home to School,Social Care Transport
Cambridgeshire County Council,02-Dec-22,51301894818,"1,547.00",Redacted Personal Data,INDIVIDUAL,SIS Head of Service,SIS - Intervention,Professional Fees and Hired Services
Cambridgeshire County Council,02-Dec-22,51301894630,"1,598.40",Redacted Personal Data,INDIVIDUAL,LAC Transport,LAC Transport - Home to School,Social Care Transport
Cambridgeshire County Council,02-Dec-22,51301894398,"1,610.00",Christine Marie Care,CARE ESTABLISHMENT,OPPD - Under 65 - City South,OPPD - Under 65 - City South,Domiciliary Care
Cambridgeshire County Council,02-Dec-22,51301894398,"1,610.00",Christine Marie Care,CARE ESTABLISHMENT,OPPD - Under 65 - City South,OPPD - Under 65 - City South,Domiciliary Care
Cambridgeshire County Council,02-Dec-22,51301894398,"1,610.00",Christine Marie Care,CARE ESTABLISHMENT,OPPD - Under 65 - City South,OPPD - Under 65 - City South,Domiciliary Care
Cambridgeshire County Council,02-Dec-22,51301894398,"1,610.00",Christine Marie Care,CARE ESTABLISHMENT,OPPD - Under 65 - City South,OPPD - Under 65 - City South,Domiciliary Care
Cambridgeshire County Council,02-Dec-22,51301894398,"1,610.00",Christine Marie Care,CARE ESTABLISHMENT,OPPD - Under 65 - City South,OPPD - Under 65 - City South,Domiciliary Care
Cambridgeshire County Council,02-Dec-22,51301894398,"1,610.00",Christine Marie Care,CARE ESTABLISHMENT,OPPD - Under 65 - City South,OPPD - Under 65 - City South,Domiciliary Care
Cambridgeshire County Council,02-Dec-22,51301894398,"1,610.00",Christine Marie Care,CARE ESTABLISHMENT,OPPD - Under 65 - City South,OPPD - Under 65 - City South,Domiciliary Care
Cambridgeshire County Council,02-Dec-22,51301894398,"1,610.00",Christine Marie Care,CARE ESTABLISHMENT,OPPD - Under 65 - City South,OPPD - Under 65 - City South,Domiciliary Care
Cambridgeshire County Council,02-Dec-22,51301894398,"1,610.00",Christine Marie Care,CARE ESTABLISHMENT,OPPD - Under 65 - City South,OPPD - Under 65 - City South,Domiciliary Care
Cambridgeshire County Council,02-Dec-22,51301894398,"1,610.00",Christine Marie Care,CARE ESTABLISHMENT,OPPD - Under 65 - City South,OPPD - Under 65 - City South,Domiciliary Care
Cambridgeshire County Council,02-Dec-22,51301894398,"1,610.00",Christine Marie Care,CARE ESTABLISHMENT,OPPD - Under 65 - City South,OPPD - Under 65 - City South,Domiciliary Care
Cambridgeshire County Council,02-Dec-22,51301894398,"1,610.00",Christine Marie Care,CARE ESTABLISHMENT,OPPD - Under 65 - City South,OPPD - Under 65 - City South,Domiciliary Care
Cambridgeshire County Council,02-Dec-22,51301894398,"1,610.00",Christine Marie Care,CARE ESTABLISHMENT,OPPD - Under 65 - City South,OPPD - Under 65 - City South,Domiciliary Care
Cambridgeshire County Council,02-Dec-22,51301894398,"1,610.00",Christine Marie Care,CARE ESTABLISHMENT,OPPD - Under 65 - City South,OPPD - Under 65 - City South,Domiciliary Care
Cambridgeshire County Council,02-Dec-22,51301894398,"1,610.00",Christine Marie Care,CARE ESTABLISHMENT,OPPD - Under 65 - City South,OPPD - Under 65 - City South,Domiciliary Care
Cambridgeshire County Council,02-Dec-22,51301894398,"1,610.00",Christine Marie Care,CARE ESTABLISHMENT,OPPD - Under 65 - City South,OPPD - Under 65 - City South,Domiciliary Care
Cambridgeshire County Council,02-Dec-22,51301894398,"1,610.00",Christine Marie Care,CARE ESTABLISHMENT,OPPD - Under 65 - City South,OPPD - Under 65 - City South,Domiciliary Care
Cambridgeshire County Council,02-Dec-22,51301894398,"1,610.00",Christine Marie Care,CARE ESTABLISHMENT,OPPD - Under 65 - City South,OPPD - Under 65 - City South,Domiciliary Care
Cambridgeshire County Council,02-Dec-22,51301894398,"1,610.00",Christine Marie Care,CARE ESTABLISHMENT,OPPD - Under 65 - City South,OPPD - Under 65 - City South,Domiciliary Care
Cambridgeshire County Council,02-Dec-22,51301894398,"1,610.00",Christine Marie Care,CARE ESTABLISHMENT,OPPD - Under 65 - City South,OPPD - Under 65 - City South,Domiciliary Care
Cambridgeshire County Council,02-Dec-22,51301894398,"1,610.00",Christine Marie Care,CARE ESTABLISHMENT,OPPD - Under 65 - City South,OPPD - Under 65 - City South,Domiciliary Care
Cambridgeshire County Council,02-Dec-22,51301894398,"1,610.00",Christine Marie Care,CARE ESTABLISHMENT,OPPD - Under 65 - City South,OPPD - Under 65 - City South,Domiciliary Care
Cambridgeshire County Council,02-Dec-22,51301894398,"1,610.00",Christine Marie Care,CARE ESTABLISHMENT,OPPD - Under 65 - City South,OPPD - Under 65 - City South,Domiciliary Care
Cambridgeshire County Council,02-Dec-22,51301894398,"1,610.00",Christine Marie Care,CARE ESTABLISHMENT,OPPD - Under 65 - City South,OPPD - Under 65 - City South,Domiciliary Care
Cambridgeshire County Council,02-Dec-22,51301894398,"1,610.00",Christine Marie Care,CARE ESTABLISHMENT,OPPD - Under 65 - City South,OPPD - Under 65 - City South,Domiciliary Care
Cambridgeshire County Council,02-Dec-22,51301894398,"1,610.00",Christine Marie Care,CARE ESTABLISHMENT,OPPD - Under 65 - City South,OPPD - Under 65 - City South,Domiciliary Care
Cambridgeshire County Council,02-Dec-22,51301894796,"1,612.00",Girassol Community Care Ltd,CARE ESTABLISHMENT,Adults Central Holding,Adults Central Holding,Care & Ed Partner Organisations
Cambridgeshire County Council,02-Dec-22,51301894375,"1,690.24",Redacted Personal Data,SERVICE USER,OPPD - Cost of Care - East Cambs - Under 65,OPPD - Under 65 - East Cambs,Direct Payments
Cambridgeshire County Council,02-Dec-22,51301894551,"1,697.00",HUNTINGDONSHIRE DISTRICT COUNCIL,OTHER PUBLIC BODIES,Corporate Offices,Vantage House,Business rates
Cambridgeshire County Council,02-Dec-22,51301894357,"1,723.50",RADIS COMMUNITY CARE,CARE ESTABLISHMENT,OPPD - Cost of Care - East Cambs - Over 65,East Cambs - O P Team - Care,Supported Living
Cambridgeshire County Council,02-Dec-22,51301894357,"1,723.50",RADIS COMMUNITY CARE,CARE ESTABLISHMENT,OPPD - Cost of Care - East Cambs - Over 65,East Cambs - O P Team - Care,Supported Living
Cambridgeshire County Council,02-Dec-22,51301894357,"1,723.50",RADIS COMMUNITY CARE,CARE ESTABLISHMENT,OPPD - Cost of Care - East Cambs - Over 65,East Cambs - O P Team - Care,Supported Living
Cambridgeshire County Council,02-Dec-22,51301894744,"1,734.00",POTTON VIEW,CARE ESTABLISHMENT,Adults Central Holding,Adults Central Holding,Care & Ed Partner Organisations
Cambridgeshire County Council,02-Dec-22,51301894795,"1,769.00",CARETRUST CAMBRIDGESHIRE,CARE ESTABLISHMENT,Adults Central Holding,Adults Central Holding,Care & Ed Partner Organisations
Cambridgeshire County Council,02-Dec-22,51301894537,"1,784.00",HUNTINGDONSHIRE DISTRICT COUNCIL,OTHER PUBLIC BODIES,Corporate Offices,FM Amundsen Annexe,Business rates
Cambridgeshire County Council,02-Dec-22,51301894743,"1,808.00",KELAM HEALTH CARE LTD T/A PAXTON HALL CARE HOME,CARE ESTABLISHMENT,Adults Central Holding,Adults Central Holding,Care & Ed Partner Organisations
Cambridgeshire County Council,02-Dec-22,51301894656,"1,810.58",Redacted Personal Data,INDIVIDUAL,LAC Transport,LAC Transport - Home to School,Social Care Transport
Cambridgeshire County Council,02-Dec-22,51301894794,"1,834.00",Alves iCare Ltd,CARE ESTABLISHMENT,Adults Central Holding,Adults Central Holding,Care & Ed Partner Organisations
Cambridgeshire County Council,02-Dec-22,51301894664,"1,835.00",Redacted Personal Data,INDIVIDUAL,Children's Disability Direct Payments,CSC Direct Payments,Direct Payments
Cambridgeshire County Council,02-Dec-22,51301894524,"1,846.00",HUNTINGDONSHIRE DISTRICT COUNCIL,OTHER PUBLIC BODIES,Corporate Offices,St Ives Library,Business rates
Cambridgeshire County Council,02-Dec-22,51301894554,"1,869.00",HUNTINGDONSHIRE DISTRICT COUNCIL,OTHER PUBLIC BODIES,Capital Receipts Expenses,Capital Receipts Expenses,Business rates
Cambridgeshire County Council,02-Dec-22,51301894300,"1,888.04",Elite care,CARE ESTABLISHMENT,Unaccompanied Asylum Seeking Children,Separated Migrant Children < 18,Asylum Seekers
Cambridgeshire County Council,02-Dec-22,51301894474,"1,896.00",FENLAND DISTRICT COUNCIL,OTHER PUBLIC BODIES,Corporate Offices,March Highways Depot,Business rates
Cambridgeshire County Council,02-Dec-22,51301881107,"1,906.90",J & P PLANT LTD,COMPANY,Highways - Rights of Way,Highways - Rights of Way,ROW Maintenance
Cambridgeshire County Council,02-Dec-22,51301894742,"1,941.00",ASKHAM PLACE PD,CARE ESTABLISHMENT,Adults Central Holding,Adults Central Holding,Care & Ed Partner Organisations
Cambridgeshire County Council,02-Dec-22,51301894384,"1,962.39",K RAVIVARUMAN T/A FAIR HAVEN CARE HOME,CARE ESTABLISHMENT,OPPD - Cost of Care - Fenland - Over 65,Older People - Fenland - Care,Direct Payments
Cambridgeshire County Council,02-Dec-22,51301894519,"1,996.00",HUNTINGDONSHIRE DISTRICT COUNCIL,OTHER PUBLIC BODIES,Corporate Offices,Lawrence Court,Business rates
Cambridgeshire County Council,02-Dec-22,51301894381,"2,000.00",Redacted Personal Data,INDIVIDUAL,OPPD - Cost of Care - Huntingdon - Under 65,OPPD - Under 65 - Huntingdon,Direct Payments
Cambridgeshire County Council,02-Dec-22,51301894301,"2,000.98",Elite care,CARE ESTABLISHMENT,Unaccompanied Asylum Seeking Children,Separated Migrant Children < 18,Asylum Seekers
Cambridgeshire County Council,02-Dec-22,51301894540,"2,008.00",HUNTINGDONSHIRE DISTRICT COUNCIL,OTHER PUBLIC BODIES,Corporate Offices,Ramsey Library,Business rates
Cambridgeshire County Council,02-Dec-22,51301883074,"2,027.22",AVAILL HEALTHCARE,CARE ESTABLISHMENT,IHPS - South Accommodation Services,8b Wagstaff Close,Agency Staff
Cambridgeshire County Council,02-Dec-22,51301894621,"2,040.00",K RAVIVARUMAN T/A FAIR HAVEN CARE HOME,TRADE SUPPLIER,SEND Specialist Services,Statutory Assessment Team - North,Professional Fees and Hired Services
Cambridgeshire County Council,02-Dec-22,51301894295,"2,115.45",Redacted Personal Data,INDIVIDUAL,Children's Disability Direct Payments,CSC Direct Payments,Direct Payments
Cambridgeshire County Council,02-Dec-22,51301894741,"2,140.00",HILLVIEW RESIDENTIAL HOME,CARE ESTABLISHMENT,Adults Central Holding,Adults Central Holding,Care & Ed Partner Organisations
Cambridgeshire County Council,02-Dec-22,51301894517,"2,171.00",HUNTINGDONSHIRE DISTRICT COUNCIL,OTHER PUBLIC BODIES,Corporate Offices,St Neots Library,Business rates
Cambridgeshire County Council,02-Dec-22,51301894740,"2,171.00",THE CHESTNUTS RESIDENTIAL HOME,CARE ESTABLISHMENT,Adults Central Holding,Adults Central Holding,Care & Ed Partner Organisations
Cambridgeshire County Council,02-Dec-22,51301894739,"2,186.00",CAMBRIDGE MANOR CARE HOME (TLC),CARE ESTABLISHMENT,Adults Central Holding,Adults Central Holding,Care & Ed Partner Organisations
Cambridgeshire County Council,02-Dec-22,51301883689,"2,277.53",Meter Manager Ltd,COMPANY,County Farms,County Farms,Professional Fees and Hired Services
Cambridgeshire County Council,02-Dec-22,51301881064,"2,400.00",CAMBRIDGE UNIVERSITY TECHNICAL SERVICES LIMITED,EDUCATION,GCP - Smart Cambridge,GCP - Smart Cambridge,Professional Fees and Hired Services
Cambridgeshire County Council,02-Dec-22,51301894738,"2,405.00",Southwell Court,CARE ESTABLISHMENT,Adults Central Holding,Adults Central Holding,Care & Ed Partner Organisations
Cambridgeshire County Council,02-Dec-22,51301894793,"2,412.00",Ray Care Services,CARE ESTABLISHMENT,Adults Central Holding,Adults Central Holding,Care & Ed Partner Organisations
Cambridgeshire County Council,02-Dec-22,51301894792,"2,543.00",Regional Care,CARE ESTABLISHMENT,Adults Central Holding,Adults Central Holding,Care & Ed Partner Organisations
Cambridgeshire County Council,02-Dec-22,51301894737,"2,678.00",FLORENCE HOUSE(RAMSEY) RESIDENTIAL HOME FOR THE ELDERLY,CARE ESTABLISHMENT,Adults Central Holding,Adults Central Holding,Care & Ed Partner Organisations
Cambridgeshire County Council,02-Dec-22,51301893414,"2,700.00",Medico-Legal Psychiatry Ltd,OTHER PUBLIC BODIES,Coroners,Coroners General,Court Costs
Cambridgeshire County Council,02-Dec-22,51301882574,"2,772.00",STAGECOACH SERVICES LTD,TRADE SUPPLIER,Travel Plan,Northstowe Phase 1,Advertising / Publicity (non Recruitment)
Cambridgeshire County Council,02-Dec-22,51301894736,"2,794.00",WOODLANDS CARE CENTRE,CARE ESTABLISHMENT,Adults Central Holding,Adults Central Holding,Care & Ed Partner Organisations
Cambridgeshire County Council,02-Dec-22,51301894735,"2,873.00",GRACEFIELD NURSING AND RESIDENTIAL HOME,CARE ESTABLISHMENT,Adults Central Holding,Adults Central Holding,Care & Ed Partner Organisations
Cambridgeshire County Council,02-Dec-22,51301894478,"2,893.00",FENLAND DISTRICT COUNCIL,OTHER PUBLIC BODIES,Corporate Offices,Wisbech Library,Business rates
Cambridgeshire County Council,02-Dec-22,51301881076,"2,925.00",J & P PLANT LTD,COMPANY,Flood Risk Management,Flood Team,Grounds Maintenance
Cambridgeshire County Council,02-Dec-22,51301894309,"3,016.60",SC Electrical Contracting Ltd,COMPANY,County Farms,County Farms,County Farms Maintenance
Cambridgeshire County Council,02-Dec-22,51301894550,"3,098.00",HUNTINGDONSHIRE DISTRICT COUNCIL,OTHER PUBLIC BODIES,Corporate Offices,Vantage House,Business rates
Cambridgeshire County Council,02-Dec-22,51301894791,"3,142.00",BETTER HOME CARE,CARE ESTABLISHMENT,Adults Central Holding,Adults Central Holding,Care & Ed Partner Organisations
Cambridgeshire County Council,02-Dec-22,51301894790,"3,246.00",Total Healthcare,COMPANY,Adults Central Holding,Adults Central Holding,Care & Ed Partner Organisations
Cambridgeshire County Council,02-Dec-22,51301894789,"3,266.00",Bloomsbury KG Limited,COMPANY,Adults Central Holding,Adults Central Holding,Care & Ed Partner Organisations
Cambridgeshire County Council,02-Dec-22,51301894734,"3,282.00",ASKHAM HALL,CARE ESTABLISHMENT,Adults Central Holding,Adults Central Holding,Care & Ed Partner Organisations
Cambridgeshire County Council,02-Dec-22,51301894482,"3,482.00",FENLAND DISTRICT COUNCIL,OTHER PUBLIC BODIES,Commercial Activity,Cromwell Leisure Park,Business rates
Cambridgeshire County Council,02-Dec-22,51301894539,"3,565.00",HUNTINGDONSHIRE DISTRICT COUNCIL,OTHER PUBLIC BODIES,Corporate Offices,Speke House,Business rates
Cambridgeshire County Council,02-Dec-22,51301894733,"3,701.00",BLACK SWAN CARE GROUP LTD,CARE ESTABLISHMENT,Adults Central Holding,Adults Central Holding,Care & Ed Partner Organisations
Cambridgeshire County Council,02-Dec-22,51301894532,"3,763.00",HUNTINGDONSHIRE DISTRICT COUNCIL,OTHER PUBLIC BODIES,Corporate Offices,Huntingdon Highways Depot,Business rates
Cambridgeshire County Council,02-Dec-22,51301894732,"3,800.00",CHERRY HINTON NURSING HOME,CARE ESTABLISHMENT,Adults Central Holding,Adults Central Holding,Care & Ed Partner Organisations
Cambridgeshire County Council,02-Dec-22,51301894530,"3,840.00",HUNTINGDONSHIRE DISTRICT COUNCIL,OTHER PUBLIC BODIES,Corporate Offices,Stanton House,Business rates
Cambridgeshire County Council,02-Dec-22,51301883064,"3,871.22",AVAILL HEALTHCARE,CARE ESTABLISHMENT,IHPS - South Accommodation Services,40 & 44 Russell Street,Agency Staff
Cambridgeshire County Council,02-Dec-22,51301894731,"3,929.00",OAKLANDS CARE HOME,CARE ESTABLISHMENT,Adults Central Holding,Adults Central Holding,Care & Ed Partner Organisations
Cambridgeshire County Council,02-Dec-22,51301894788,"3,988.00",Starry Care Uk Ltd,COMPANY,Adults Central Holding,Adults Central Holding,Care & Ed Partner Organisations
Cambridgeshire County Council,02-Dec-22,51301894730,"4,068.00",AISLING LODGE (MD CARE HOMES),CARE ESTABLISHMENT,Adults Central Holding,Adults Central Holding,Care & Ed Partner Organisations
Cambridgeshire County Council,02-Dec-22,51301894729,"4,335.00",GRACEFIELD (LD),CARE ESTABLISHMENT,Adults Central Holding,Adults Central Holding,Care & Ed Partner Organisations
Cambridgeshire County Council,02-Dec-22,51301894728,"4,482.00",ORCHARD HOUSE (SAWSTON),CARE ESTABLISHMENT,Adults Central Holding,Adults Central Holding,Care & Ed Partner Organisations
Cambridgeshire County Council,02-Dec-22,51301894787,"4,495.00",CORDERCARE,CARE ESTABLISHMENT,Adults Central Holding,Adults Central Holding,Care & Ed Partner Organisations
Cambridgeshire County Council,02-Dec-22,51301894477,"4,531.00",FENLAND DISTRICT COUNCIL,OTHER PUBLIC BODIES,Corporate Offices,March Library,Business rates
Cambridgeshire County Council,02-Dec-22,51301894727,"4,669.00",SYMONDS HOUSE NURSING HOME,CARE ESTABLISHMENT,Adults Central Holding,Adults Central Holding,Care & Ed Partner Organisations
Cambridgeshire County Council,02-Dec-22,51301894536,"4,685.00",HUNTINGDONSHIRE DISTRICT COUNCIL,OTHER PUBLIC BODIES,Waste Disposal incl PFI,St.Neots HWRC,Business rates
Cambridgeshire County Council,02-Dec-22,51301894726,"4,781.00",MAKING SPACE,CARE ESTABLISHMENT,Adults Central Holding,Adults Central Holding,Care & Ed Partner Organisations
Cambridgeshire County Council,02-Dec-22,51301894538,"4,941.00",HUNTINGDONSHIRE DISTRICT COUNCIL,OTHER PUBLIC BODIES,Corporate Offices,Contact Centre - Amundsen House,Business rates
Cambridgeshire County Council,02-Dec-22,51301894526,"4,966.00",HUNTINGDONSHIRE DISTRICT COUNCIL,OTHER PUBLIC BODIES,Corporate Offices,Buttsgrove,Business rates
Cambridgeshire County Council,02-Dec-22,51301894481,"5,069.00",FENLAND DISTRICT COUNCIL,OTHER PUBLIC BODIES,Corporate Offices,Hereward Hall,Business rates
Cambridgeshire County Council,02-Dec-22,51301894332,"5,400.00",PICK EVERARD,TRADE SUPPLIER,Cambs Music Head of Business Development,Cambs Music Connect,Building alterations
Cambridgeshire County Council,02-Dec-22,51301894725,"5,497.00",LYNCROFT RESIDENTIAL HOME,CARE ESTABLISHMENT,Adults Central Holding,Adults Central Holding,Care & Ed Partner Organisations
Cambridgeshire County Council,02-Dec-22,51301894786,"5,682.00",Faith Care Line Services Ltd,CARE ESTABLISHMENT,Adults Central Holding,Adults Central Holding,Care & Ed Partner Organisations
Cambridgeshire County Council,02-Dec-22,51301894523,"5,683.00",HUNTINGDONSHIRE DISTRICT COUNCIL,OTHER PUBLIC BODIES,Grafham Water,Grafham Water Centre,Business rates
Cambridgeshire County Council,02-Dec-22,51301894724,"5,693.00",LANGLEY LODGE RESIDENTIAL CARE HOME,CARE ESTABLISHMENT,Adults Central Holding,Adults Central Holding,Care & Ed Partner Organisations
Cambridgeshire County Council,02-Dec-22,51301894723,"5,732.00",THE CAMBRIDGE HOUSING SOCIETY LTD,CARE ESTABLISHMENT,Adults Central Holding,Adults Central Holding,Care & Ed Partner Organisations
Cambridgeshire County Council,02-Dec-22,51301894785,"5,734.00",TRIPLE HOME CARE LTD,CARE ESTABLISHMENT,Adults Central Holding,Adults Central Holding,Care & Ed Partner Organisations
Cambridgeshire County Council,02-Dec-22,51301894721,"5,736.00",LABURNUM LODGE,CARE ESTABLISHMENT,Adults Central Holding,Adults Central Holding,Care & Ed Partner Organisations
Cambridgeshire County Council,02-Dec-22,51301894722,"5,736.00",FERRARS HALL CARE HOME,CARE ESTABLISHMENT,Adults Central Holding,Adults Central Holding,Care & Ed Partner Organisations
Cambridgeshire County Council,02-Dec-22,51301894720,"5,779.00",METHODIST HOMES FOR THE AGED (MHA),CARE ESTABLISHMENT,Adults Central Holding,Adults Central Holding,Care & Ed Partner Organisations
Cambridgeshire County Council,02-Dec-22,51301894719,"5,853.00",ASKHAM VILLAGE COMMUNITY LTD,CARE ESTABLISHMENT,Adults Central Holding,Adults Central Holding,Care & Ed Partner Organisations
Cambridgeshire County Council,02-Dec-22,51301894784,"5,990.00",Harmony Homecare Suffolk,CARE ESTABLISHMENT,Adults Central Holding,Adults Central Holding,Care & Ed Partner Organisations
Cambridgeshire County Council,02-Dec-22,51301894468,"6,042.00",FENLAND DISTRICT COUNCIL,OTHER PUBLIC BODIES,Corporate Offices,"Awdry House, Wisbech",Business rates
Cambridgeshire County Council,02-Dec-22,51301894718,"6,064.00",BARCHESTER HEALTHCARE HOMES LTD,CARE ESTABLISHMENT,Adults Central Holding,Adults Central Holding,Care & Ed Partner Organisations
Cambridgeshire County Council,02-Dec-22,51301894717,"6,153.00",HILL HOUSE RESIDENTIAL HOME,CARE ESTABLISHMENT,Adults Central Holding,Adults Central Holding,Care & Ed Partner Organisations
Cambridgeshire County Council,02-Dec-22,51301894716,"6,192.00",KENEYDON HOUSE RESIDENTIAL CARE HOME,CARE ESTABLISHMENT,Adults Central Holding,Adults Central Holding,Care & Ed Partner Organisations
Cambridgeshire County Council,02-Dec-22,51301894715,"6,563.00",HARDWICK DENE,CARE ESTABLISHMENT,Adults Central Holding,Adults Central Holding,Care & Ed Partner Organisations
Cambridgeshire County Council,02-Dec-22,51301894714,"6,571.00",FARRINGTON CARE HOMES LTD T/A WOODLANDS RESIDENTIAL CARE HOME,CARE ESTABLISHMENT,Adults Central Holding,Adults Central Holding,Care & Ed Partner Organisations
Cambridgeshire County Council,02-Dec-22,51301894713,"6,641.00",ORCHARD HOUSE NURSING HOME,CARE ESTABLISHMENT,Adults Central Holding,Adults Central Holding,Care & Ed Partner Organisations
Cambridgeshire County Council,02-Dec-22,51301894783,"6,666.00",Olive Healthcare Solutions Limited,CARE ESTABLISHMENT,Adults Central Holding,Adults Central Holding,Care & Ed Partner Organisations
Cambridgeshire County Council,02-Dec-22,51301894782,"6,673.00",Alpha Health and Social Care Services Ltd,CARE ESTABLISHMENT,Adults Central Holding,Adults Central Holding,Care & Ed Partner Organisations
Cambridgeshire County Council,02-Dec-22,51301894781,"6,705.00",Redacted Personal Data,INDIVIDUAL,Adults Central Holding,Adults Central Holding,Care & Ed Partner Organisations
Cambridgeshire County Council,02-Dec-22,51301894508,"6,873.41",KONE PLC,COMPANY,Corporate Offices,Cambridge Central Library,Building Repair and Maintenance
Cambridgeshire County Council,02-Dec-22,51301894780,"6,925.00",Lav Care Services LTD,CARE ESTABLISHMENT,Adults Central Holding,Adults Central Holding,Care & Ed Partner Organisations
Cambridgeshire County Council,02-Dec-22,51301894712,"6,934.00",ALIWAL HEALTHCARE LTD,CARE ESTABLISHMENT,Adults Central Holding,Adults Central Holding,Care & Ed Partner Organisations
Cambridgeshire County Council,02-Dec-22,51301852886,"7,111.67",MARSHFIELDS SCHOOL,EDUCATION,Recoupment,Procurement - Out-County Special Schools & ER,Independent School Placements
Cambridgeshire County Council,02-Dec-22,51301894711,"7,418.00",CARE UK LIMITED,CARE ESTABLISHMENT,Adults Central Holding,Adults Central Holding,Care & Ed Partner Organisations
Cambridgeshire County Council,02-Dec-22,51301894710,"7,840.00",THE CAMBRIDGE HOUSING SOCIETY LTD,CARE ESTABLISHMENT,Adults Central Holding,Adults Central Holding,Care & Ed Partner Organisations
Cambridgeshire County Council,02-Dec-22,51301894709,"7,856.00",K RAVIVARUMAN T/A FAIR HAVEN CARE HOME,CARE ESTABLISHMENT,Adults Central Holding,Adults Central Holding,Care & Ed Partner Organisations
Cambridgeshire County Council,02-Dec-22,51301894287,"7,908.43",BALFOUR BEATTY LIVING PLACES LIMITED,COMPANY,GCP - Chisholm Trail cycle links,GCP - Chisholm Trail cycle links,Construction - External Professional Fees
Cambridgeshire County Council,02-Dec-22,51301894753,"7,921.00",THE GABLES SPECIALIST NURSING HOME,CARE ESTABLISHMENT,Adults Central Holding,Adults Central Holding,Care & Ed Partner Organisations
Cambridgeshire County Council,02-Dec-22,51301882107,"8,100.00",David Earl,TRADE SUPPLIER,Capability Fund -  Fenland-Pboro' NCN63 & Update cycle maps in Cambs,Capability Fund-Update cycle maps in Cambridgeshire,Professional Fees and Hired Services
Cambridgeshire County Council,02-Dec-22,51301894708,"8,402.00",ROSE LODGE,CARE ESTABLISHMENT,Adults Central Holding,Adults Central Holding,Care & Ed Partner Organisations
Cambridgeshire County Council,02-Dec-22,51301894779,"8,704.00",Lilyrose Care Group Ltd,COMPANY,Adults Central Holding,Adults Central Holding,Care & Ed Partner Organisations
Cambridgeshire County Council,02-Dec-22,51301894394,"8,915.66",Redacted Personal Data,INDIVIDUAL,LD - City Locality - Cost of Care,LD - City - Care,Direct Payments
Cambridgeshire County Council,02-Dec-22,51301885549,"9,369.60",ATKINS LTD,COMPANY,Large Energy Projects - Solar Farms,North Angle Solar Farm,Professional Fees and Hired Services
Cambridgeshire County Council,02-Dec-22,51301894707,"9,605.00",OLIVEMEDE RESIDENTIAL HOME,CARE ESTABLISHMENT,Adults Central Holding,Adults Central Holding,Care & Ed Partner Organisations
Cambridgeshire County Council,02-Dec-22,51301894706,"9,644.00",NELSON LODGE,CARE ESTABLISHMENT,Adults Central Holding,Adults Central Holding,Care & Ed Partner Organisations
Cambridgeshire County Council,02-Dec-22,51301894705,"9,722.00",FITZWILLIAM HEALTHCARE LTD,CARE ESTABLISHMENT,Adults Central Holding,Adults Central Holding,Care & Ed Partner Organisations
Cambridgeshire County Council,02-Dec-22,51301894704,"9,812.00",HATLEY COURT HAVEN LTD,CARE ESTABLISHMENT,Adults Central Holding,Adults Central Holding,Care & Ed Partner Organisations
Cambridgeshire County Council,02-Dec-22,51301894703,"10,109.00",THE FIRS (Barrels Care),CARE ESTABLISHMENT,Adults Central Holding,Adults Central Holding,Care & Ed Partner Organisations
Cambridgeshire County Council,02-Dec-22,51301894334,"10,200.00",WYSE MEDIA (UK) LTD,TRADE SUPPLIER,GCP - Communications,GCP - Strategic Communicatations,Advertising / Publicity (non Recruitment)
Cambridgeshire County Council,02-Dec-22,51301894535,"10,701.00",HUNTINGDONSHIRE DISTRICT COUNCIL,OTHER PUBLIC BODIES,Corporate Offices,Huntingdon Library,Business rates
Cambridgeshire County Council,02-Dec-22,51301894564,"10,750.00",Morrison Spowart Solicitors Ltd,COMPANY,OPPD - Under 65 - City South,OPPD - Under 65 - City South,Settlement Payments
Cambridgeshire County Council,02-Dec-22,51301894702,"10,819.00",SPRINGFIELD RESIDENTIAL CARE,CARE ESTABLISHMENT,Adults Central Holding,Adults Central Holding,Care & Ed Partner Organisations
Cambridgeshire County Council,02-Dec-22,51301894533,"10,854.00",HUNTINGDONSHIRE DISTRICT COUNCIL,OTHER PUBLIC BODIES,Corporate Offices,Scott House,Business rates
Cambridgeshire County Council,02-Dec-22,51301894778,"10,891.00",Wilaade Care Service,CARE ESTABLISHMENT,Adults Central Holding,Adults Central Holding,Care & Ed Partner Organisations
Cambridgeshire County Council,02-Dec-22,51301894701,"11,241.00",BROOK HEALTHCARE,CARE ESTABLISHMENT,Adults Central Holding,Adults Central Holding,Care & Ed Partner Organisations
Cambridgeshire County Council,02-Dec-22,51301894700,"11,600.00",PRIMROSE HEALTHCARE,CARE ESTABLISHMENT,Adults Central Holding,Adults Central Holding,Care & Ed Partner Organisations
Cambridgeshire County Council,02-Dec-22,51301894777,"12,017.00",CAMB CARE LTD,CARE ESTABLISHMENT,Adults Central Holding,Adults Central Holding,Care & Ed Partner Organisations
Cambridgeshire County Council,02-Dec-22,51301894699,"12,475.00",LILY HOUSE,CARE ESTABLISHMENT,Adults Central Holding,Adults Central Holding,Care & Ed Partner Organisations
Cambridgeshire County Council,02-Dec-22,51301894698,"12,683.00",COTTENHAM COURT NURSING HOME,CARE ESTABLISHMENT,Adults Central Holding,Adults Central Holding,Care & Ed Partner Organisations
Cambridgeshire County Council,02-Dec-22,51301894310,"13,000.00",Redacted Personal Data,INDIVIDUAL,SEND High Needs Top Up,Personal Budgets,Independent School Placements
Cambridgeshire County Council,02-Dec-22,51301894776,"13,239.00",Mercylink Care services Ltd,CARE ESTABLISHMENT,Adults Central Holding,Adults Central Holding,Care & Ed Partner Organisations
Cambridgeshire County Council,02-Dec-22,51301894775,"13,411.00",HALES GROUP LIMITED,CARE ESTABLISHMENT,Adults Central Holding,Adults Central Holding,Care & Ed Partner Organisations
Cambridgeshire County Council,02-Dec-22,51301894697,"13,580.00",Glenholme Senior Living (Vera James House) limited,CARE ESTABLISHMENT,Adults Central Holding,Adults Central Holding,Care & Ed Partner Organisations
Cambridgeshire County Council,02-Dec-22,51301894774,"13,617.00",PROMINENT VENTURES LTD T/A KARE PLUS CAMBRIDGE,CARE ESTABLISHMENT,Adults Central Holding,Adults Central Holding,Care & Ed Partner Organisations
Cambridgeshire County Council,02-Dec-22,51301894696,"13,767.00",HOME MEADOW LTD,CARE ESTABLISHMENT,Adults Central Holding,Adults Central Holding,Care & Ed Partner Organisations
Cambridgeshire County Council,02-Dec-22,51301894695,"13,829.00",LITTLEPORT GRANGE,CARE ESTABLISHMENT,Adults Central Holding,Adults Central Holding,Care & Ed Partner Organisations
Cambridgeshire County Council,02-Dec-22,51301885550,"14,160.00",ATKINS LTD,COMPANY,Large Energy Projects - Solar Farms,North Angle Solar Farm,Professional Fees and Hired Services
Cambridgeshire County Council,02-Dec-22,51301894773,"14,430.00",CAMBRIDGESHIRE HOMECARE (J&M CARE LTD),CARE ESTABLISHMENT,Adults Central Holding,Adults Central Holding,Care & Ed Partner Organisations
Cambridgeshire County Council,02-Dec-22,51301894694,"14,535.00",HOME CLOSE LTD,CARE ESTABLISHMENT,Adults Central Holding,Adults Central Holding,Care & Ed Partner Organisations
Cambridgeshire County Council,02-Dec-22,51301894286,"14,765.81",MOTT MACDONALD LTD,TRADE SUPPLIER,GCP - West of Cambridge Package,GCP - West of Cambridge Package,Construction - External Professional Fees
Cambridgeshire County Council,02-Dec-22,51301894693,"15,598.00",DOVE COURT,CARE ESTABLISHMENT,Adults Central Holding,Adults Central Holding,Care & Ed Partner Organisations
Cambridgeshire County Council,02-Dec-22,51301894613,"15,748.00",Cambian Childcare Ltd / Wisbech School,EDUCATION,SEN Placements,Placements - Education,Independent School Placements
Cambridgeshire County Council,02-Dec-22,51301894772,"15,763.00",BROOKFIELD CARE (Radis Commnity Care),CARE ESTABLISHMENT,Adults Central Holding,Adults Central Holding,Care & Ed Partner Organisations
Cambridgeshire County Council,02-Dec-22,51301894771,"16,253.00",Support 4 u Healthcare Ltd,CARE ESTABLISHMENT,Adults Central Holding,Adults Central Holding,Care & Ed Partner Organisations
Cambridgeshire County Council,02-Dec-22,51301894692,"16,375.00",THE HILLINGS LIMITED,CARE ESTABLISHMENT,Adults Central Holding,Adults Central Holding,Care & Ed Partner Organisations
Cambridgeshire County Council,02-Dec-22,51301894691,"16,500.00",RHEOLA HEALTHCARE,CARE ESTABLISHMENT,Adults Central Holding,Adults Central Holding,Care & Ed Partner Organisations
Cambridgeshire County Council,02-Dec-22,51301894770,"16,710.00",MULTI CARE COMMUNITY SERVICES,CARE ESTABLISHMENT,Adults Central Holding,Adults Central Holding,Care & Ed Partner Organisations
Cambridgeshire County Council,02-Dec-22,51301894769,"17,251.00",Careuk247 Home Care Ltd,COMPANY,Adults Central Holding,Adults Central Holding,Care & Ed Partner Organisations
Cambridgeshire County Council,02-Dec-22,51301894768,"18,918.00",Fuchsia Homecare Cambridge,COMPANY,Adults Central Holding,Adults Central Holding,Care & Ed Partner Organisations
Cambridgeshire County Council,02-Dec-22,51301894690,"20,541.00",CROMWELL HOUSE HEALTH CARE,CARE ESTABLISHMENT,Adults Central Holding,Adults Central Holding,Care & Ed Partner Organisations
Cambridgeshire County Council,02-Dec-22,51301894689,"20,684.00",Maven Healthcare,CARE ESTABLISHMENT,Adults Central Holding,Adults Central Holding,Care & Ed Partner Organisations
Cambridgeshire County Council,02-Dec-22,51301894752,"20,689.00",THE CAMBRIDGE NURSING CENTRE,CARE ESTABLISHMENT,Adults Central Holding,Adults Central Holding,Care & Ed Partner Organisations
Cambridgeshire County Council,02-Dec-22,51301894304,"20,778.00",CARE QUALITY COMMISSION(CQC),OTHER PUBLIC BODIES,LD - Head of Service,Head of LDP,Subscriptions
Cambridgeshire County Council,02-Dec-22,51301894767,"21,038.00",Destiny Integrated Care Ltd,CARE ESTABLISHMENT,Adults Central Holding,Adults Central Holding,Care & Ed Partner Organisations
Cambridgeshire County Council,02-Dec-22,51301894766,"21,207.00",PBS Care,CARE ESTABLISHMENT,Adults Central Holding,Adults Central Holding,Care & Ed Partner Organisations
Cambridgeshire County Council,02-Dec-22,51301894765,"21,482.00",BLUEBIRD CARE NEWMARKET & FENLAND,CARE ESTABLISHMENT,Adults Central Holding,Adults Central Holding,Care & Ed Partner Organisations
Cambridgeshire County Council,02-Dec-22,51301894688,"22,019.00",SWAN HOUSE NURSING & RESIDENTIAL HOME,CARE ESTABLISHMENT,Adults Central Holding,Adults Central Holding,Care & Ed Partner Organisations
Cambridgeshire County Council,02-Dec-22,51301894687,"22,106.00",FORD HOUSE CARE HOME,CARE ESTABLISHMENT,Adults Central Holding,Adults Central Holding,Care & Ed Partner Organisations
Cambridgeshire County Council,02-Dec-22,51301894686,"22,599.00",ETHELDRED HOUSE,CARE ESTABLISHMENT,Adults Central Holding,Adults Central Holding,Care & Ed Partner Organisations
Cambridgeshire County Council,02-Dec-22,51301894272,"25,301.39",CAMBRIDGESHIRE AND PETERBOROUGH NHS FOUNDATION TRUST,TRUST (OTHER),LD - Hunts Locality - Staffing,LD - Huntingdonshire - Staffing,Staffing Recharges - External
Cambridgeshire County Council,02-Dec-22,51301894685,"25,629.00",GLENNFIELD CARE CENTRE (OP),CARE ESTABLISHMENT,Adults Central Holding,Adults Central Holding,Care & Ed Partner Organisations
Cambridgeshire County Council,02-Dec-22,51301894271,"26,201.00",CAMBRIDGESHIRE AND PETERBOROUGH NHS FOUNDATION TRUST,TRUST (OTHER),LD - Head of Service,Head of LDP,Staffing Recharges - External
Cambridgeshire County Council,02-Dec-22,51301894684,"26,495.00",BUCHAN HEALTHCARE LTD,CARE ESTABLISHMENT,Adults Central Holding,Adults Central Holding,Care & Ed Partner Organisations
Cambridgeshire County Council,02-Dec-22,51301894764,"27,307.00",Fen HomeCare Ltd,COMPANY,Adults Central Holding,Adults Central Holding,Care & Ed Partner Organisations
Cambridgeshire County Council,02-Dec-22,51301894763,"27,473.00",Kwikfix Recruitment Services Ltd,COMPANY,Adults Central Holding,Adults Central Holding,Care & Ed Partner Organisations
Cambridgeshire County Council,02-Dec-22,51301894762,"28,897.00",Reliance Care Services Ltd,COMPANY,Adults Central Holding,Adults Central Holding,Care & Ed Partner Organisations
Cambridgeshire County Council,02-Dec-22,51301894582,"28,900.80",Andrew Hodge Contracting Ltd,COMPANY,County Farms Investment (Viability),Lower Valley Farm,Landscaping
Cambridgeshire County Council,02-Dec-22,51301894751,"29,403.00",THE RED HOUSE RESIDENTIAL & NURSING HOME,CARE ESTABLISHMENT,Adults Central Holding,Adults Central Holding,Care & Ed Partner Organisations
Cambridgeshire County Council,02-Dec-22,51301885505,"29,675.09",EQUITIX EDUCATION (CAMBRIDGESHIRE) LIMITED,EDUCATION,Buildings and Capital,BSF New Projects / Follow On Waves,Building Repair and Maintenance
Cambridgeshire County Council,02-Dec-22,51301894761,"30,652.00",MIHOMECARE LTD (THE CARE AGENCY),CARE ESTABLISHMENT,Adults Central Holding,Adults Central Holding,Care & Ed Partner Organisations
Cambridgeshire County Council,02-Dec-22,51301894683,"31,987.00",ARIA COURT,CARE ESTABLISHMENT,Adults Central Holding,Adults Central Holding,Care & Ed Partner Organisations
Cambridgeshire County Council,02-Dec-22,51301894760,"34,429.00",MK WORLDWIDE LTD (T/A LEAD CARE),CARE ESTABLISHMENT,Adults Central Holding,Adults Central Holding,Care & Ed Partner Organisations
Cambridgeshire County Council,02-Dec-22,51301894682,"35,147.00",HUNTERS HEALTHCARE (HUNTERS DOWN),CARE ESTABLISHMENT,Adults Central Holding,Adults Central Holding,Care & Ed Partner Organisations
Cambridgeshire County Council,02-Dec-22,51301894681,"35,690.00",ABBEY HEALTHCARE (HUNTINGDON) LTD,CARE ESTABLISHMENT,Adults Central Holding,Adults Central Holding,Care & Ed Partner Organisations
Cambridgeshire County Council,02-Dec-22,51301883840,"36,516.25",Team Q Maintenance Ltd,COMPANY,Corporate Offices,Scott House,Building Repair and Maintenance
Cambridgeshire County Council,02-Dec-22,51301894759,"36,742.00",Empathy Care 24 Limited,CARE ESTABLISHMENT,Adults Central Holding,Adults Central Holding,Care & Ed Partner Organisations
Cambridgeshire County Council,02-Dec-22,51301894758,"39,599.00",WESTMINSTER HOMECARE LIMITED,CARE ESTABLISHMENT,Adults Central Holding,Adults Central Holding,Care & Ed Partner Organisations
Cambridgeshire County Council,02-Dec-22,51301893619,"39,676.57",Team Q Maintenance Ltd,COMPANY,Condition Survey Works,Tennyson Lodge Day Centre PE15 8AJ CS22050109,"New Construction, Conversion and Renovation"
Cambridgeshire County Council,02-Dec-22,51301880902,"41,160.00",DELL COMPUTER CORPORATION LTD,TRADE SUPPLIER,Corporate IT Managed,Hardware & Infrastructure,Computer hardware - purchase
Cambridgeshire County Council,02-Dec-22,51301894680,"41,542.00",ST GEORGE'S COURT,CARE ESTABLISHMENT,Adults Central Holding,Adults Central Holding,Care & Ed Partner Organisations
Cambridgeshire County Council,02-Dec-22,51301894757,"47,213.00",QUALITY HOMECARE,CARE ESTABLISHMENT,Adults Central Holding,Adults Central Holding,Care & Ed Partner Organisations
Cambridgeshire County Council,02-Dec-22,51301880908,"47,806.00",THE CHURCH SCHOOLS OF CAMBRIDGE (THE OLD SCHOOLS),EDUCATION,Buildings and Capital,Education Property Strategy Manager,Rents and Leases
Cambridgeshire County Council,02-Dec-22,51301894756,"48,326.00",TCS Medicare Ltd (Trinity care),CARE ESTABLISHMENT,Adults Central Holding,Adults Central Holding,Care & Ed Partner Organisations
Cambridgeshire County Council,02-Dec-22,51301894449,"49,200.00",Andrew Hodge Contracting Ltd,COMPANY,County Farms Investment (Viability),Lower Valley Farm,Landscaping
Cambridgeshire County Council,02-Dec-22,51301894755,"53,782.00",THE CARESTAFF CONSULTING,CARE ESTABLISHMENT,Adults Central Holding,Adults Central Holding,Care & Ed Partner Organisations
Cambridgeshire County Council,02-Dec-22,51301894754,"61,410.00",Beaumont HEALTHCARE LTD,CARE ESTABLISHMENT,Adults Central Holding,Adults Central Holding,Care & Ed Partner Organisations
Cambridgeshire County Council,02-Dec-22,51301894558,"71,253.00",HUNTINGDONSHIRE DISTRICT COUNCIL,OTHER PUBLIC BODIES,Corporate Offices,Civic Headquarters � Alconbury Weald,Business rates
Cambridgeshire County Council,02-Dec-22,51301893235,"161,485.20",ME LEARNING LTD,TRADE SUPPLIER,System Licences,System Software & Licences,Computer software - annual licence agreement
Cambridgeshire County Council,05-Dec-22,51301807965,"-16,800.00",WDM LTD,TRADE SUPPLIER,Asset Planning,Asset Planning,Computer software - purchase
Cambridgeshire County Council,05-Dec-22,51301886027,"-13,122.38",CAMBRIDGESHIRE AND PETERBOROUGH NHS FOUNDATION TRUST,TRUST (OTHER),Integrated Community Equipment Service,ICES (Pool),Staffing Recharges - External
Cambridgeshire County Council,05-Dec-22,65300017563,"-1,602.45",Downhma Grange - KCH UK Holdings,LOCAL CLUBS & GROUPS,Youth and Community Services,YS - National Citizen Service,Educational visits
Cambridgeshire County Council,05-Dec-22,51301896069,508.40,Redacted Personal Data,FOSTER PARENT,Adoption Allowances,Adoption Allowances,Adoption Allowances
Cambridgeshire County Council,05-Dec-22,51301895560,510.00,Redacted Personal Data,PARENT/GUARDIAN,Fostering,FCP allowances,Adoption Allowances
Cambridgeshire County Council,05-Dec-22,51301895625,510.00,Redacted Personal Data,INDIVIDUAL,Fostering,FCP allowances,Childrens Lodgings
Cambridgeshire County Council,05-Dec-22,51301895595,510.00,Redacted Personal Data,FOSTER PARENT,Fostering,FCP allowances,Adoption Allowances
Cambridgeshire County Council,05-Dec-22,51301895552,510.00,Redacted Personal Data,FOSTER PARENT,Fostering,FCP allowances,Adoption Allowances
Cambridgeshire County Council,05-Dec-22,51301895499,510.00,Redacted Personal Data,PARENT/GUARDIAN,Fostering,FCP allowances,Adoption Allowances
Cambridgeshire County Council,05-Dec-22,51301895417,510.00,Redacted Personal Data,FOSTER PARENT,Fostering,FCP allowances,Adoption Allowances
Cambridgeshire County Council,05-Dec-22,51301895379,510.00,Redacted Personal Data,INDIVIDUAL,Fostering,FCP allowances,Childrens Lodgings
Cambridgeshire County Council,05-Dec-22,51301895461,510.00,Redacted Personal Data,PARENT/GUARDIAN,Fostering,FCP allowances,Adoption Allowances
Cambridgeshire County Council,05-Dec-22,51301895652,519.10,Redacted Personal Data,INDIVIDUAL,Adoption Allowances,Adoption Allowances,Adoption Allowances
Cambridgeshire County Council,05-Dec-22,51301896003,519.76,Redacted Personal Data,FOSTER PARENT,Adoption Allowances,Adoption Allowances,Adoption Allowances
Cambridgeshire County Council,05-Dec-22,51301894952,520.00,Redacted Personal Data,INDIVIDUAL,Children's Disability Direct Payments,CSC Direct Payments,Direct Payments
Cambridgeshire County Council,05-Dec-22,51301883072,522.00,CAMBRIDGE CITY TAXIS LTD (TAXI VOUCHERS),TRADE SUPPLIER,Cambridgeshire Skills HoS,Cambridgeshire Skills Management Team,Home to School - Contract
Cambridgeshire County Council,05-Dec-22,51301895411,532.00,Redacted Personal Data,FOSTER PARENT,Fostering,FCP allowances,Childrens Lodgings
Cambridgeshire County Council,05-Dec-22,51301895356,532.00,Redacted Personal Data,INDIVIDUAL,Fostering,FCP allowances,Adoption Allowances
Cambridgeshire County Council,05-Dec-22,51301895496,532.00,Redacted Personal Data,FOSTER PARENT,Fostering,FCP allowances,Adoption Allowances
Cambridgeshire County Council,05-Dec-22,51301895371,532.00,Redacted Personal Data,INDIVIDUAL,Fostering,FCP allowances,Adoption Allowances
Cambridgeshire County Council,05-Dec-22,51301895489,532.00,Redacted Personal Data,FOSTER PARENT,Fostering,FCP allowances,Childrens Lodgings
Cambridgeshire County Council,05-Dec-22,51301883587,540.00,EAQ,EDUCATION,Out of School Tuition,Out of School Provision - Education and Settings,Independent School Placements
Cambridgeshire County Council,05-Dec-22,51301883523,541.11,Magic Words Therapy Limited,EDUCATION,Early Years Specialist Support,Procurement - TA Therapy in Schools,Independent School Placements
Cambridgeshire County Council,05-Dec-22,51301895994,547.44,Redacted Personal Data,FOSTER PARENT,Fostering,FCP allowances,Enhanced Payments
Cambridgeshire County Council,05-Dec-22,51301883218,550.80,CRICK SOFTWARE LTD,TRADE SUPPLIER,ICT Service,ICT Service Sales,Materials for resale
Cambridgeshire County Council,05-Dec-22,51301881665,551.02,BALFOUR BEATTY LIVING PLACES LIMITED,COMPANY,Street Lighting,Street Lighting PFI,Specialist Equipment For Service Delivery
Cambridgeshire County Council,05-Dec-22,51301895469,552.00,Redacted Personal Data,FOSTER PARENT,Fostering,FCP allowances,Adoption Allowances
Cambridgeshire County Council,05-Dec-22,51301895365,552.00,Redacted Personal Data,FOSTER PARENT,Fostering,FCP allowances,Childrens Lodgings
Cambridgeshire County Council,05-Dec-22,51301895466,552.00,Redacted Personal Data,FOSTER PARENT,Fostering,FCP allowances,Adoption Allowances
Cambridgeshire County Council,05-Dec-22,51301894971,556.20,Redacted Personal Data,INDIVIDUAL,North Child Looked After Team 1,North Child Looked After Team 1,Car mileage and allowances - other
Cambridgeshire County Council,05-Dec-22,51301895357,557.14,Redacted Personal Data,INDIVIDUAL,Fostering,FCP allowances,Adoption Allowances
Cambridgeshire County Council,05-Dec-22,51301894883,560.00,IMPERIAL COLLEGE PROJECTS LIMITED,TRADE SUPPLIER,Coroners,Coroners General,Testing
Cambridgeshire County Council,05-Dec-22,51301895317,565.71,Elite care,CARE ESTABLISHMENT,Unaccompanied Asylum Seeking Children,Separated Migrant Children > 18,Living Spport Grants - Financial Assistance 18+
Cambridgeshire County Council,05-Dec-22,51301895320,565.71,Elite care,CARE ESTABLISHMENT,Unaccompanied Asylum Seeking Children,Separated Migrant Children > 18,Living Spport Grants - Financial Assistance 18+
Cambridgeshire County Council,05-Dec-22,51301895314,565.71,Elite care,CARE ESTABLISHMENT,Unaccompanied Asylum Seeking Children,Separated Migrant Children > 18,Living Spport Grants - Financial Assistance 18+
Cambridgeshire County Council,05-Dec-22,51301896091,568.33,HEATHLANDS SCHOOL,EDUCATION,Early Years Specialist Support,Procurement - TA Therapy in Schools,Independent School Placements
Cambridgeshire County Council,05-Dec-22,51301895651,586.40,Redacted Personal Data,INDIVIDUAL,Adoption Allowances,Adoption Allowances,Adoption Allowances
Cambridgeshire County Council,05-Dec-22,51301895344,600.00,PCH Integration Services Ltd.,CARE ESTABLISHMENT,Unaccompanied Asylum Seeking Children,Separated Migrant Children < 18,Asylum Seekers
Cambridgeshire County Council,05-Dec-22,51301895358,600.00,Redacted Personal Data,INDIVIDUAL,Fostering,FCP allowances,Adoption Allowances
Cambridgeshire County Council,05-Dec-22,51301895653,601.10,Redacted Personal Data,INDIVIDUAL,Adoption Allowances,Adoption Allowances,Adoption Allowances
Cambridgeshire County Council,05-Dec-22,51301895624,612.00,Redacted Personal Data,INDIVIDUAL,Fostering,FCP allowances,Adoption Allowances
Cambridgeshire County Council,05-Dec-22,51301895458,612.00,Redacted Personal Data,FOSTER PARENT,Fostering,FCP allowances,Adoption Allowances
Cambridgeshire County Council,05-Dec-22,51301895459,612.00,Redacted Personal Data,FOSTER PARENT,Fostering,FCP allowances,Adoption Allowances
Cambridgeshire County Council,05-Dec-22,51301895592,612.00,Redacted Personal Data,FOSTER PARENT,Fostering,FCP allowances,Adoption Allowances
Cambridgeshire County Council,05-Dec-22,51301895364,612.00,Redacted Personal Data,FOSTER PARENT,Fostering,FCP allowances,Childrens Lodgings
Cambridgeshire County Council,05-Dec-22,51301895362,612.00,Redacted Personal Data,FOSTER PARENT,Fostering,FCP allowances,Childrens Lodgings
Cambridgeshire County Council,05-Dec-22,51301895524,612.00,Redacted Personal Data,FOSTER PARENT,Fostering,FCP allowances,Adoption Allowances
Cambridgeshire County Council,05-Dec-22,51301895363,612.00,Redacted Personal Data,FOSTER PARENT,Fostering,FCP allowances,Childrens Lodgings
Cambridgeshire County Council,05-Dec-22,51301894863,612.00,IMPERIAL COLLEGE PROJECTS LIMITED,TRADE SUPPLIER,Coroners,Coroners General,Testing
Cambridgeshire County Council,05-Dec-22,51301896046,630.00,Redacted Personal Data,FOSTER PARENT,Adoption Allowances,Adoption Allowances,Adoption Allowances
Cambridgeshire County Council,05-Dec-22,51301895394,634.00,Redacted Personal Data,INDIVIDUAL,Fostering,FCP allowances,Childrens Lodgings
Cambridgeshire County Council,05-Dec-22,51301895488,634.00,Redacted Personal Data,FOSTER PARENT,Fostering,FCP allowances,Childrens Lodgings
Cambridgeshire County Council,05-Dec-22,51301895433,634.00,Redacted Personal Data,FOSTER PARENT,Fostering,FCP allowances,Adoption Allowances
Cambridgeshire County Council,05-Dec-22,51301895412,634.00,Redacted Personal Data,FOSTER PARENT,Fostering,FCP allowances,Childrens Lodgings
Cambridgeshire County Council,05-Dec-22,51301895616,634.00,Redacted Personal Data,FOSTER PARENT,Fostering,FCP allowances,Childrens Lodgings
Cambridgeshire County Council,05-Dec-22,51301893408,650.00,RH ACUITY LIMITED,TRADE SUPPLIER,Fostering,Foster Care Panels,Professional Fees and Hired Services
Cambridgeshire County Council,05-Dec-22,51301894210,657.00,McCarthy Publishing Ltd,COMPANY,Early Years Service - HAF,HAF Grant,Care & Ed Childcare Settings
Cambridgeshire County Council,05-Dec-22,51301896035,668.94,Redacted Personal Data,PARENT/GUARDIAN,Adoption Allowances,Adoption Allowances,Adoption Allowances
Cambridgeshire County Council,05-Dec-22,51301895478,674.00,Redacted Personal Data,FOSTER PARENT,Fostering,FCP allowances,Adoption Allowances
Cambridgeshire County Council,05-Dec-22,51301895523,674.00,Redacted Personal Data,FOSTER PARENT,Fostering,FCP allowances,Adoption Allowances
Cambridgeshire County Council,05-Dec-22,51301895437,674.00,Redacted Personal Data,PARENT/GUARDIAN,Fostering,FCP allowances,Adoption Allowances
Cambridgeshire County Council,05-Dec-22,51301895479,674.00,Redacted Personal Data,FOSTER PARENT,Fostering,FCP allowances,Adoption Allowances
Cambridgeshire County Council,05-Dec-22,51301895623,674.00,Redacted Personal Data,INDIVIDUAL,Fostering,FCP allowances,Adoption Allowances
Cambridgeshire County Council,05-Dec-22,51301895639,674.00,Redacted Personal Data,INDIVIDUAL,Fostering,FCP allowances,Adoption Allowances
Cambridgeshire County Council,05-Dec-22,51301895436,674.00,Redacted Personal Data,PARENT/GUARDIAN,Fostering,FCP allowances,Adoption Allowances
Cambridgeshire County Council,05-Dec-22,51301881218,688.09,IDOX SOFTWARE LTD,TRADE SUPPLIER,Traffic Management Centre,Traffic Management Centre,Computer software - annual licence agreement
Cambridgeshire County Council,05-Dec-22,51301881689,697.57,BALFOUR BEATTY LIVING PLACES LIMITED,COMPANY,Street Lighting,Street Lighting PFI,Specialist Equipment For Service Delivery
Cambridgeshire County Council,05-Dec-22,51301882590,711.54,ESPO,TRADE SUPPLIER,Libraries - Support,Support - Business Support,Specialist Equipment For Service Delivery
Cambridgeshire County Council,05-Dec-22,51301881453,720.00,COUNTRY GROUNDS MAINTENANCE LTD,COMPANY,Buildings and Capital,Grounds Management Service - Client,Tree Maintenance
Cambridgeshire County Council,05-Dec-22,51301895484,736.00,Redacted Personal Data,FOSTER PARENT,Fostering,FCP allowances,Adoption Allowances
Cambridgeshire County Council,05-Dec-22,51301895467,736.00,Redacted Personal Data,FOSTER PARENT,Fostering,FCP allowances,Adoption Allowances
Cambridgeshire County Council,05-Dec-22,51301895468,736.00,Redacted Personal Data,FOSTER PARENT,Fostering,FCP allowances,Adoption Allowances
Cambridgeshire County Council,05-Dec-22,51301895392,736.00,Redacted Personal Data,FOSTER PARENT,Fostering,FCP allowances,Adoption Allowances
Cambridgeshire County Council,05-Dec-22,51301895556,736.00,Redacted Personal Data,INDIVIDUAL,Fostering,FCP allowances,Adoption Allowances
Cambridgeshire County Council,05-Dec-22,51301895399,736.00,Redacted Personal Data,FOSTER PARENT,Fostering,FCP allowances,Adoption Allowances
Cambridgeshire County Council,05-Dec-22,51301895455,736.00,Redacted Personal Data,FOSTER PARENT,Fostering,FCP allowances,Adoption Allowances
Cambridgeshire County Council,05-Dec-22,51301895456,736.00,Redacted Personal Data,FOSTER PARENT,Fostering,FCP allowances,Adoption Allowances
Cambridgeshire County Council,05-Dec-22,51301895447,736.00,Redacted Personal Data,FOSTER PARENT,Fostering,FCP allowances,Adoption Allowances
Cambridgeshire County Council,05-Dec-22,51301895634,736.00,Redacted Personal Data,FOSTER PARENT,Fostering,FCP allowances,Adoption Allowances
Cambridgeshire County Council,05-Dec-22,51301895598,736.00,Redacted Personal Data,FOSTER PARENT,Fostering,FCP allowances,Adoption Allowances
Cambridgeshire County Council,05-Dec-22,51301895386,736.00,Redacted Personal Data,INDIVIDUAL,Fostering,FCP allowances,Adoption Allowances
Cambridgeshire County Council,05-Dec-22,51301895491,736.00,Redacted Personal Data,FOSTER PARENT,Fostering,FCP allowances,Adoption Allowances
Cambridgeshire County Council,05-Dec-22,51301895388,736.00,Redacted Personal Data,INDIVIDUAL,Fostering,FCP allowances,Adoption Allowances
Cambridgeshire County Council,05-Dec-22,51301895501,736.00,Redacted Personal Data,FOSTER PARENT,Fostering,FCP allowances,Adoption Allowances
Cambridgeshire County Council,05-Dec-22,51301895575,736.00,Redacted Personal Data,PARENT/GUARDIAN,Fostering,FCP allowances,Adoption Allowances
Cambridgeshire County Council,05-Dec-22,51301895393,736.00,Redacted Personal Data,FOSTER PARENT,Fostering,FCP allowances,Adoption Allowances
Cambridgeshire County Council,05-Dec-22,51301895576,736.00,Redacted Personal Data,PARENT/GUARDIAN,Fostering,FCP allowances,Adoption Allowances
Cambridgeshire County Council,05-Dec-22,51301895514,736.00,Redacted Personal Data,FOSTER PARENT,Fostering,FCP allowances,Adoption Allowances
Cambridgeshire County Council,05-Dec-22,51301895449,736.00,Redacted Personal Data,FOSTER PARENT,Fostering,FCP allowances,Adoption Allowances
Cambridgeshire County Council,05-Dec-22,51301895520,736.00,Redacted Personal Data,FOSTER PARENT,Fostering,FCP allowances,Adoption Allowances
Cambridgeshire County Council,05-Dec-22,51301895490,736.00,Redacted Personal Data,FOSTER PARENT,Fostering,FCP allowances,Adoption Allowances
Cambridgeshire County Council,05-Dec-22,51301895586,736.00,Redacted Personal Data,FOSTER PARENT,Fostering,FCP allowances,Adoption Allowances
Cambridgeshire County Council,05-Dec-22,51301895900,739.94,Redacted Personal Data,FOSTER PARENT,Adoption Allowances,Adoption Allowances,Adoption Allowances
Cambridgeshire County Council,05-Dec-22,51301895299,740.57,Crown Social Care Ltd,CARE ESTABLISHMENT,Unaccompanied Asylum Seeking Children,Separated Migrant Children < 18,Asylum Seekers
Cambridgeshire County Council,05-Dec-22,51301895905,748.14,Redacted Personal Data,PARENT/GUARDIAN,Adoption Allowances,Adoption Allowances,Adoption Allowances
Cambridgeshire County Council,05-Dec-22,51301895705,750.00,Redacted Personal Data,INDIVIDUAL,Adoption Allowances,Adoption Allowances,Adoption Allowances
Cambridgeshire County Council,05-Dec-22,51301895707,750.00,Redacted Personal Data,INDIVIDUAL,Adoption Allowances,Adoption Allowances,Adoption Allowances
Cambridgeshire County Council,05-Dec-22,51301882588,750.00,Protocol Education,EDUCATION,Schools - Secondaries,Pilgrim Pru,Agency Staff
Cambridgeshire County Council,05-Dec-22,51301882527,756.00,MKA Ecology Ltd,COMPANY,Greenspaces,Greenspaces,Professional Fees and Hired Services
Cambridgeshire County Council,05-Dec-22,51301882554,762.00,LEXTOX,TRADE SUPPLIER,North Child Looked After Team 2,North Child Looked After Team 2,Professional Fees and Hired Services
Cambridgeshire County Council,05-Dec-22,51301882572,765.42,KELTIC CLOTHING,TRADE SUPPLIER,School Crossing Patrols,Schools Crossing Patrols,Clothing / Uniform
Cambridgeshire County Council,05-Dec-22,51301882638,769.06,Select Apointments Norwich,TRADE SUPPLIER,Finance Operations,Covid - Debt Team,Agency Staff
Cambridgeshire County Council,05-Dec-22,51301896045,781.00,Redacted Personal Data,FOSTER PARENT,Adoption Allowances,Adoption Allowances,Adoption Allowances
Cambridgeshire County Council,05-Dec-22,51301894951,792.33,Redacted Personal Data,INDIVIDUAL,Children's Disability Direct Payments,CSC Direct Payments,Direct Payments
Cambridgeshire County Council,05-Dec-22,51301896065,800.00,Redacted Personal Data,PARENT/GUARDIAN,Adoption Allowances,Adoption Allowances,Adoption Allowances
Cambridgeshire County Council,05-Dec-22,51301896066,800.00,Redacted Personal Data,PARENT/GUARDIAN,Adoption Allowances,Adoption Allowances,Adoption Allowances
Cambridgeshire County Council,05-Dec-22,51301896067,800.00,Redacted Personal Data,PARENT/GUARDIAN,Adoption Allowances,Adoption Allowances,Adoption Allowances
Cambridgeshire County Council,05-Dec-22,51301895936,809.06,Redacted Personal Data,FOSTER PARENT,Adoption Allowances,Adoption Allowances,Adoption Allowances
Cambridgeshire County Council,05-Dec-22,51301886275,810.00,Sugarman Group,EDUCATION,Out of School Tuition,Out of School Provision - Education and Settings,Independent School Placements
Cambridgeshire County Council,05-Dec-22,51301895892,812.60,Redacted Personal Data,PARENT/GUARDIAN,Adoption Allowances,Adoption Allowances,Adoption Allowances
Cambridgeshire County Council,05-Dec-22,51301895902,817.70,Redacted Personal Data,FOSTER PARENT,Adoption Allowances,Adoption Allowances,Adoption Allowances
Cambridgeshire County Council,05-Dec-22,51301895352,818.10,Leicester YMCA,CARE ESTABLISHMENT,Unaccompanied Asylum Seeking Children,Separated Migrant Children > 18,Living Spport Grants - Financial Assistance 18+
Cambridgeshire County Council,05-Dec-22,51301882716,830.40,Fire Security (Sprinkler Installations) Ltd,COMPANY,Corporate Offices,Ely Archive centre,Building Stuctural Maintenance - Planned
Cambridgeshire County Council,05-Dec-22,51301895526,838.00,Redacted Personal Data,FOSTER PARENT,Fostering,FCP allowances,Adoption Allowances
Cambridgeshire County Council,05-Dec-22,51301895599,838.00,Redacted Personal Data,FOSTER PARENT,Fostering,FCP allowances,Adoption Allowances
Cambridgeshire County Council,05-Dec-22,51301895617,838.00,Redacted Personal Data,FOSTER PARENT,Fostering,FCP allowances,Adoption Allowances
Cambridgeshire County Council,05-Dec-22,51301895439,838.00,Redacted Personal Data,FOSTER PARENT,Fostering,FCP allowances,Adoption Allowances
Cambridgeshire County Council,05-Dec-22,51301895443,838.00,Redacted Personal Data,FOSTER PARENT,Fostering,FCP allowances,Adoption Allowances
Cambridgeshire County Council,05-Dec-22,51301895451,838.00,Redacted Personal Data,FOSTER PARENT,Fostering,FCP allowances,Adoption Allowances
Cambridgeshire County Council,05-Dec-22,51301895391,838.00,Redacted Personal Data,FOSTER PARENT,Fostering,FCP allowances,Adoption Allowances
Cambridgeshire County Council,05-Dec-22,51301895559,838.00,Redacted Personal Data,INDIVIDUAL,Fostering,FCP allowances,Adoption Allowances
Cambridgeshire County Council,05-Dec-22,51301895450,838.00,Redacted Personal Data,FOSTER PARENT,Fostering,FCP allowances,Adoption Allowances
Cambridgeshire County Council,05-Dec-22,51301895614,838.00,Redacted Personal Data,FOSTER PARENT,Fostering,FCP allowances,Adoption Allowances
Cambridgeshire County Council,05-Dec-22,51301895573,838.00,Redacted Personal Data,PARENT/GUARDIAN,Fostering,FCP allowances,Adoption Allowances
Cambridgeshire County Council,05-Dec-22,51301895508,838.00,Redacted Personal Data,FOSTER PARENT,Fostering,FCP allowances,Adoption Allowances
Cambridgeshire County Council,05-Dec-22,51301895618,838.00,Redacted Personal Data,FOSTER PARENT,Fostering,FCP allowances,Adoption Allowances
Cambridgeshire County Council,05-Dec-22,51301895642,838.00,Redacted Personal Data,INDIVIDUAL,Fostering,FCP allowances,Adoption Allowances
Cambridgeshire County Council,05-Dec-22,51301895537,838.00,Redacted Personal Data,FOSTER PARENT,Fostering,FCP allowances,Adoption Allowances
Cambridgeshire County Council,05-Dec-22,51301895510,838.00,Redacted Personal Data,FOSTER PARENT,Fostering,FCP allowances,Adoption Allowances
Cambridgeshire County Council,05-Dec-22,51301895425,838.00,Redacted Personal Data,FOSTER PARENT,Fostering,FCP allowances,Adoption Allowances
Cambridgeshire County Council,05-Dec-22,51301895545,838.00,Redacted Personal Data,FOSTER PARENT,Fostering,FCP allowances,Adoption Allowances
Cambridgeshire County Council,05-Dec-22,51301895619,838.00,Redacted Personal Data,FOSTER PARENT,Fostering,FCP allowances,Adoption Allowances
Cambridgeshire County Council,05-Dec-22,51301895424,838.00,Redacted Personal Data,FOSTER PARENT,Fostering,FCP allowances,Adoption Allowances
Cambridgeshire County Council,05-Dec-22,51301895530,838.00,Redacted Personal Data,PARENT/GUARDIAN,Fostering,FCP allowances,Adoption Allowances
Cambridgeshire County Council,05-Dec-22,51301895610,838.00,Redacted Personal Data,FOSTER PARENT,Fostering,FCP allowances,Adoption Allowances
Cambridgeshire County Council,05-Dec-22,51301894958,840.00,GROUP ACCOMMODATION.COM,TRADE SUPPLIER,Burwell House,Burwell House Residential Centre,Advertising / Publicity (non Recruitment)
Cambridgeshire County Council,05-Dec-22,51301882581,840.00,Cambridge Electric Transport Ltd,COMPANY,Travel Plan,Smart Journeys,Advertising / Publicity (non Recruitment)
Cambridgeshire County Council,05-Dec-22,51301895323,848.57,Elite care,CARE ESTABLISHMENT,Unaccompanied Asylum Seeking Children,Separated Migrant Children > 18,Living Spport Grants - Financial Assistance 18+
Cambridgeshire County Council,05-Dec-22,51301894903,856.00,Eastern Family Services Ltd t/a Eastern Fostering Services,CARE ESTABLISHMENT,LAC Placements,Placements - independent fostering,Agency Placements - Out of  County
Cambridgeshire County Council,05-Dec-22,51301882506,873.00,THE VERY BEST IMPRESSIONS COMPANY LTD,TRADE SUPPLIER,Park & Ride Parking,Park & Ride - Marketing,Advertising / Publicity (non Recruitment)
Cambridgeshire County Council,05-Dec-22,51301895421,878.00,Redacted Personal Data,PARENT/GUARDIAN,Fostering,FCP allowances,Adoption Allowances
Cambridgeshire County Council,05-Dec-22,51301895359,878.00,Redacted Personal Data,INDIVIDUAL,Fostering,FCP allowances,Adoption Allowances
Cambridgeshire County Council,05-Dec-22,51301895572,878.00,Redacted Personal Data,PARENT/GUARDIAN,Fostering,FCP allowances,Adoption Allowances
Cambridgeshire County Council,05-Dec-22,51301895389,878.00,Redacted Personal Data,INDIVIDUAL,Fostering,FCP allowances,Adoption Allowances
Cambridgeshire County Council,05-Dec-22,51301895428,878.00,Redacted Personal Data,FOSTER PARENT,Fostering,FCP allowances,Adoption Allowances
Cambridgeshire County Council,05-Dec-22,51301895473,878.00,Redacted Personal Data,FOSTER PARENT,Fostering,FCP allowances,Adoption Allowances
Cambridgeshire County Council,05-Dec-22,51301895551,878.00,Redacted Personal Data,FOSTER PARENT,Fostering,FCP allowances,Childrens Lodgings
Cambridgeshire County Council,05-Dec-22,51301895543,878.00,Redacted Personal Data,FOSTER PARENT,Fostering,FCP allowances,Adoption Allowances
Cambridgeshire County Council,05-Dec-22,51301895620,878.00,Redacted Personal Data,FOSTER PARENT,Fostering,FCP allowances,Adoption Allowances
Cambridgeshire County Council,05-Dec-22,51301895603,878.00,Redacted Personal Data,PARENT/GUARDIAN,Fostering,FCP allowances,Adoption Allowances
Cambridgeshire County Council,05-Dec-22,51301895384,878.00,Redacted Personal Data,INDIVIDUAL,Fostering,FCP allowances,Adoption Allowances
Cambridgeshire County Council,05-Dec-22,51301895513,878.00,Redacted Personal Data,FOSTER PARENT,Fostering,FCP allowances,Adoption Allowances
Cambridgeshire County Council,05-Dec-22,51301895557,878.00,Redacted Personal Data,INDIVIDUAL,Fostering,FCP allowances,Adoption Allowances
Cambridgeshire County Council,05-Dec-22,51301895441,878.00,Redacted Personal Data,FOSTER PARENT,Fostering,FCP allowances,Adoption Allowances
Cambridgeshire County Council,05-Dec-22,51301895482,878.00,Redacted Personal Data,PARENT/GUARDIAN,Fostering,FCP allowances,Adoption Allowances
Cambridgeshire County Council,05-Dec-22,51301895562,878.00,Redacted Personal Data,FOSTER PARENT,Fostering,FCP allowances,Adoption Allowances
Cambridgeshire County Council,05-Dec-22,51301895452,878.00,Redacted Personal Data,FOSTER PARENT,Fostering,FCP allowances,Adoption Allowances
Cambridgeshire County Council,05-Dec-22,51301895497,878.00,Redacted Personal Data,FOSTER PARENT,Fostering,FCP allowances,Adoption Allowances
Cambridgeshire County Council,05-Dec-22,51301895517,878.00,Redacted Personal Data,FOSTER PARENT,Fostering,FCP allowances,Adoption Allowances
Cambridgeshire County Council,05-Dec-22,51301895506,878.00,Redacted Personal Data,FOSTER PARENT,Fostering,FCP allowances,Adoption Allowances
Cambridgeshire County Council,05-Dec-22,51301895588,878.00,Redacted Personal Data,FOSTER PARENT,Fostering,FCP allowances,Adoption Allowances
Cambridgeshire County Council,05-Dec-22,51301895432,878.00,Redacted Personal Data,FOSTER PARENT,Fostering,FCP allowances,Adoption Allowances
Cambridgeshire County Council,05-Dec-22,51301895483,878.00,Redacted Personal Data,PARENT/GUARDIAN,Fostering,FCP allowances,Adoption Allowances
Cambridgeshire County Council,05-Dec-22,51301895503,878.00,Redacted Personal Data,FOSTER PARENT,Fostering,FCP allowances,Adoption Allowances
Cambridgeshire County Council,05-Dec-22,51301895438,878.00,Redacted Personal Data,FOSTER PARENT,Fostering,FCP allowances,Adoption Allowances
Cambridgeshire County Council,05-Dec-22,51301895613,878.00,Redacted Personal Data,INDIVIDUAL,Fostering,FCP allowances,Adoption Allowances
Cambridgeshire County Council,05-Dec-22,51301895498,878.00,Redacted Personal Data,FOSTER PARENT,Fostering,FCP allowances,Adoption Allowances
Cambridgeshire County Council,05-Dec-22,51301895580,878.00,Redacted Personal Data,FOSTER PARENT,Fostering,FCP allowances,Adoption Allowances
Cambridgeshire County Council,05-Dec-22,51301895532,878.00,Redacted Personal Data,PARENT/GUARDIAN,Fostering,FCP allowances,Adoption Allowances
Cambridgeshire County Council,05-Dec-22,51301895536,878.00,Redacted Personal Data,FOSTER PARENT,Fostering,FCP allowances,Adoption Allowances
Cambridgeshire County Council,05-Dec-22,51301895597,878.00,Redacted Personal Data,FOSTER PARENT,Fostering,FCP allowances,Adoption Allowances
Cambridgeshire County Council,05-Dec-22,51301895474,878.00,Redacted Personal Data,FOSTER PARENT,Fostering,FCP allowances,Adoption Allowances
Cambridgeshire County Council,05-Dec-22,51301895604,878.00,Redacted Personal Data,PARENT/GUARDIAN,Fostering,FCP allowances,Adoption Allowances
Cambridgeshire County Council,05-Dec-22,51301895522,878.00,Redacted Personal Data,FOSTER PARENT,Fostering,FCP allowances,Adoption Allowances
Cambridgeshire County Council,05-Dec-22,51301895563,878.00,Redacted Personal Data,FOSTER PARENT,Fostering,FCP allowances,Adoption Allowances
Cambridgeshire County Council,05-Dec-22,51301895594,878.00,Redacted Personal Data,FOSTER PARENT,Fostering,FCP allowances,Adoption Allowances
Cambridgeshire County Council,05-Dec-22,51301895431,878.00,Redacted Personal Data,FOSTER PARENT,Fostering,FCP allowances,Adoption Allowances
Cambridgeshire County Council,05-Dec-22,51301895544,878.00,Redacted Personal Data,FOSTER PARENT,Fostering,FCP allowances,Adoption Allowances
Cambridgeshire County Council,05-Dec-22,51301895629,878.00,Redacted Personal Data,PARENT/GUARDIAN,Fostering,FCP allowances,Adoption Allowances
Cambridgeshire County Council,05-Dec-22,51301895414,878.00,Redacted Personal Data,FOSTER PARENT,Fostering,FCP allowances,Adoption Allowances
Cambridgeshire County Council,05-Dec-22,51301895541,878.00,Redacted Personal Data,FOSTER PARENT,Fostering,FCP allowances,Adoption Allowances
Cambridgeshire County Council,05-Dec-22,51301895512,878.00,Redacted Personal Data,FOSTER PARENT,Fostering,FCP allowances,Adoption Allowances
Cambridgeshire County Council,05-Dec-22,51301895607,878.00,Redacted Personal Data,PARENT/GUARDIAN,Fostering,FCP allowances,Adoption Allowances
Cambridgeshire County Council,05-Dec-22,51301895578,878.00,Redacted Personal Data,FOSTER PARENT,Fostering,FCP allowances,Adoption Allowances
Cambridgeshire County Council,05-Dec-22,51301895587,878.00,Redacted Personal Data,FOSTER PARENT,Fostering,FCP allowances,Adoption Allowances
Cambridgeshire County Council,05-Dec-22,51301895632,878.00,Redacted Personal Data,PARENT/GUARDIAN,Fostering,FCP allowances,Adoption Allowances
Cambridgeshire County Council,05-Dec-22,51301895631,878.00,Redacted Personal Data,PARENT/GUARDIAN,Fostering,FCP allowances,Adoption Allowances
Cambridgeshire County Council,05-Dec-22,51301895546,878.00,Redacted Personal Data,PARENT/GUARDIAN,Fostering,FCP allowances,Adoption Allowances
Cambridgeshire County Council,05-Dec-22,51301895463,878.00,Redacted Personal Data,FOSTER PARENT,Fostering,FCP allowances,Adoption Allowances
Cambridgeshire County Council,05-Dec-22,51301895525,878.00,Redacted Personal Data,FOSTER PARENT,Fostering,FCP allowances,Adoption Allowances
Cambridgeshire County Council,05-Dec-22,51301895516,878.00,Redacted Personal Data,FOSTER PARENT,Fostering,FCP allowances,Adoption Allowances
Cambridgeshire County Council,05-Dec-22,51301895454,878.00,Redacted Personal Data,FOSTER PARENT,Fostering,FCP allowances,Adoption Allowances
Cambridgeshire County Council,05-Dec-22,51301895630,878.00,Redacted Personal Data,PARENT/GUARDIAN,Fostering,FCP allowances,Adoption Allowances
Cambridgeshire County Council,05-Dec-22,51301895423,878.00,Redacted Personal Data,FOSTER PARENT,Fostering,FCP allowances,Adoption Allowances
Cambridgeshire County Council,05-Dec-22,51301895420,878.00,Redacted Personal Data,PARENT/GUARDIAN,Fostering,FCP allowances,Adoption Allowances
Cambridgeshire County Council,05-Dec-22,51301895533,878.00,Redacted Personal Data,PARENT/GUARDIAN,Fostering,FCP allowances,Adoption Allowances
Cambridgeshire County Council,05-Dec-22,51301895593,878.00,Redacted Personal Data,FOSTER PARENT,Fostering,FCP allowances,Adoption Allowances
Cambridgeshire County Council,05-Dec-22,51301895415,878.00,Redacted Personal Data,FOSTER PARENT,Fostering,FCP allowances,Adoption Allowances
Cambridgeshire County Council,05-Dec-22,51301895608,878.00,Redacted Personal Data,FOSTER PARENT,Fostering,FCP allowances,Adoption Allowances
Cambridgeshire County Council,05-Dec-22,51301895471,878.00,Redacted Personal Data,FOSTER PARENT,Fostering,FCP allowances,Adoption Allowances
Cambridgeshire County Council,05-Dec-22,51301895416,878.00,Redacted Personal Data,PARENT/GUARDIAN,Fostering,FCP allowances,Childrens Lodgings
Cambridgeshire County Council,05-Dec-22,51301895504,878.00,Redacted Personal Data,FOSTER PARENT,Fostering,FCP allowances,Adoption Allowances
Cambridgeshire County Council,05-Dec-22,51301895427,878.00,Redacted Personal Data,FOSTER PARENT,Fostering,FCP allowances,Adoption Allowances
Cambridgeshire County Council,05-Dec-22,51301895609,878.00,Redacted Personal Data,FOSTER PARENT,Fostering,FCP allowances,Adoption Allowances
Cambridgeshire County Council,05-Dec-22,51301895564,878.00,Redacted Personal Data,FOSTER PARENT,Fostering,FCP allowances,Adoption Allowances
Cambridgeshire County Council,05-Dec-22,51301895442,878.00,Redacted Personal Data,FOSTER PARENT,Unaccompanied Asylum Seeking Children,Separated Migrant Children < 18,Adoption Allowances
Cambridgeshire County Council,05-Dec-22,51301895310,905.15,Crown Social Care Ltd,CARE ESTABLISHMENT,Unaccompanied Asylum Seeking Children,Separated Migrant Children < 18,Asylum Seekers
Cambridgeshire County Council,05-Dec-22,51301895648,914.96,Redacted Personal Data,FOSTER PARENT,Adoption Allowances,Adoption Allowances,Adoption Allowances
Cambridgeshire County Council,05-Dec-22,51301894946,931.80,WEIGHTMANS LLP,TRADE SUPPLIER,Insurance Fund,Liability,Insurance Claims Paid
Cambridgeshire County Council,05-Dec-22,51301895404,932.19,Redacted Personal Data,INDIVIDUAL,Fostering,Fostering Support and Supervision,Support and Grants to Foster Carers
Cambridgeshire County Council,05-Dec-22,51301895677,965.04,Redacted Personal Data,FOSTER PARENT,Fostering,FCP allowances,Enhanced Payments
Cambridgeshire County Council,05-Dec-22,51301895891,965.04,Redacted Personal Data,FOSTER PARENT,Fostering,FCP allowances,Enhanced Payments
Cambridgeshire County Council,05-Dec-22,51301895882,965.04,Redacted Personal Data,FOSTER PARENT,Fostering,FCP allowances,Enhanced Payments
Cambridgeshire County Council,05-Dec-22,51301895906,965.04,Redacted Personal Data,FOSTER PARENT,Fostering,FCP allowances,Enhanced Payments
Cambridgeshire County Council,05-Dec-22,51301894874,970.55,RED BALLOON LEARNER CENTRE CAMBRIDGE,EDUCATION,Schools Financing,Financing - Pupil Premium Grant,School Meals
Cambridgeshire County Council,05-Dec-22,51301882835,972.90,NOTTINGHAM REHAB SUPPLIES LTD,TRADE SUPPLIER,Reablement Assessment Services,Reablement OT Team,Specialist Equipment For Service Delivery
Cambridgeshire County Council,05-Dec-22,51301895024,996.24,PPL PRS LTD,TRADE SUPPLIER,IHPS - Fenland,IHPS - Tennyson Lodge,Professional Fees and Hired Services
Cambridgeshire County Council,05-Dec-22,51301882509,"1,000.00",HUNTS FORUM OF VOLUNTARY ORGANISATIONS,CHARITY,Strategic Parks and Greenspaces,Strategic Parks and Greenspaces,Professional Fees and Hired Services
Cambridgeshire County Council,05-Dec-22,51301895819,"1,003.76",Redacted Personal Data,INDIVIDUAL,Adoption Allowances,Adoption Allowances,Adoption Allowances
Cambridgeshire County Council,05-Dec-22,51301895031,"1,017.28",Chestnut Nursery @ Cottenham,NURSERY,Nursery Schools,Early Years - Funded 3s/4s,Care & Ed Childcare Settings
Cambridgeshire County Council,05-Dec-22,51301895722,"1,026.00",Redacted Personal Data,INDIVIDUAL,Adoption Allowances,Adoption Allowances,Childcare Costs
Cambridgeshire County Council,05-Dec-22,51301895066,"1,032.74",ASKEWS AND HOLTS LIBRARY SERVICES LTD,TRADE SUPPLIER,Libraries - Stock & Distribution,Support - Stock & Distribution,Books and Multimedia Supplies
Cambridgeshire County Council,05-Dec-22,51301895151,"1,040.71",Supported Housing Fellowship CIC,CARE ESTABLISHMENT,Unaccompanied Asylum Seeking Children,Separated Migrant Children > 18,Living Spport Grants - Financial Assistance 18+
Cambridgeshire County Council,05-Dec-22,51301882504,"1,056.00",THE VERY BEST IMPRESSIONS COMPANY LTD,TRADE SUPPLIER,Park & Ride Parking,Park & Ride - Marketing,Advertising / Publicity (non Recruitment)
Cambridgeshire County Council,05-Dec-22,51301895064,"1,090.56",BOLINDA UK LTD,TRADE SUPPLIER,Libraries - Stock & Distribution,Support - Stock & Distribution,Books and Multimedia Supplies
Cambridgeshire County Council,05-Dec-22,51301895144,"1,107.14",Supported Housing Fellowship CIC,CARE ESTABLISHMENT,Unaccompanied Asylum Seeking Children,Separated Migrant Children > 18,Living Spport Grants - Financial Assistance 18+
Cambridgeshire County Council,05-Dec-22,51301895149,"1,107.14",Supported Housing Fellowship CIC,CARE ESTABLISHMENT,Unaccompanied Asylum Seeking Children,Separated Migrant Children > 18,Living Spport Grants - Financial Assistance 18+
Cambridgeshire County Council,05-Dec-22,51301895152,"1,107.14",Supported Housing Fellowship CIC,CARE ESTABLISHMENT,Unaccompanied Asylum Seeking Children,Separated Migrant Children > 18,Living Spport Grants - Financial Assistance 18+
Cambridgeshire County Council,05-Dec-22,51301895145,"1,107.14",Supported Housing Fellowship CIC,CARE ESTABLISHMENT,Unaccompanied Asylum Seeking Children,Separated Migrant Children > 18,Living Spport Grants - Financial Assistance 18+
Cambridgeshire County Council,05-Dec-22,51301895147,"1,107.14",Supported Housing Fellowship CIC,CARE ESTABLISHMENT,Unaccompanied Asylum Seeking Children,Separated Migrant Children > 18,Living Spport Grants - Financial Assistance 18+
Cambridgeshire County Council,05-Dec-22,51301895138,"1,107.14",Supported Housing Fellowship CIC,CARE ESTABLISHMENT,Unaccompanied Asylum Seeking Children,Separated Migrant Children > 18,Living Spport Grants - Financial Assistance 18+
Cambridgeshire County Council,05-Dec-22,51301895150,"1,107.14",Supported Housing Fellowship CIC,CARE ESTABLISHMENT,Unaccompanied Asylum Seeking Children,Separated Migrant Children > 18,Living Spport Grants - Financial Assistance 18+
Cambridgeshire County Council,05-Dec-22,51301895148,"1,107.14",Supported Housing Fellowship CIC,CARE ESTABLISHMENT,Unaccompanied Asylum Seeking Children,Separated Migrant Children > 18,Living Spport Grants - Financial Assistance 18+
Cambridgeshire County Council,05-Dec-22,51301895137,"1,107.14",Supported Housing Fellowship CIC,CARE ESTABLISHMENT,Unaccompanied Asylum Seeking Children,Separated Migrant Children > 18,Living Spport Grants - Financial Assistance 18+
Cambridgeshire County Council,05-Dec-22,51301895146,"1,107.14",Supported Housing Fellowship CIC,CARE ESTABLISHMENT,Unaccompanied Asylum Seeking Children,Separated Migrant Children > 18,Living Spport Grants - Financial Assistance 18+
Cambridgeshire County Council,05-Dec-22,51301895143,"1,107.14",Supported Housing Fellowship CIC,CARE ESTABLISHMENT,Unaccompanied Asylum Seeking Children,Separated Migrant Children > 18,Living Spport Grants - Financial Assistance 18+
Cambridgeshire County Council,05-Dec-22,51301895139,"1,107.14",Supported Housing Fellowship CIC,CARE ESTABLISHMENT,Unaccompanied Asylum Seeking Children,Separated Migrant Children > 18,Living Spport Grants - Financial Assistance 18+
Cambridgeshire County Council,05-Dec-22,51301895142,"1,107.14",Supported Housing Fellowship CIC,CARE ESTABLISHMENT,Unaccompanied Asylum Seeking Children,Separated Migrant Children > 18,Living Spport Grants - Financial Assistance 18+
Cambridgeshire County Council,05-Dec-22,51301893438,"1,112.47",THE RECRUITMENT AGENCY LIMITED,TRADE SUPPLIER,Grafham Water,Grafham Water Centre,Agency Staff
Cambridgeshire County Council,05-Dec-22,51301895953,"1,132.18",Redacted Personal Data,FOSTER PARENT,Adoption Allowances,Adoption Allowances,Adoption Allowances
Cambridgeshire County Council,05-Dec-22,51301883344,"1,140.00",CF CONTACT & SUPPORT SERVICES LTD,CARE ESTABLISHMENT,Community Support Service,Community Support Service ECF,Grants to Voluntary Bodies
Cambridgeshire County Council,05-Dec-22,51301895032,"1,144.44",Chestnut Nursery @ Cottenham,NURSERY,Nursery Schools,Early Years - Funded 3s/4s,Care & Ed Childcare Settings
Cambridgeshire County Council,05-Dec-22,51301895747,"1,148.00",Redacted Personal Data,INDIVIDUAL,Adoption Allowances,Adoption Allowances,Adoption Allowances
Cambridgeshire County Council,05-Dec-22,51301895723,"1,170.00",Redacted Personal Data,INDIVIDUAL,Adoption Allowances,Adoption Allowances,Adoption Allowances
Cambridgeshire County Council,05-Dec-22,51301883810,"1,181.92",ALFA TAIL LIFTS LIMITED,TRADE SUPPLIER,Libraries - Mobiles & Vans,Support Vans,Vehicle Repairs and maintenance
Cambridgeshire County Council,05-Dec-22,51301895141,"1,195.71",Supported Housing Fellowship CIC,CARE ESTABLISHMENT,Unaccompanied Asylum Seeking Children,Separated Migrant Children > 18,Living Spport Grants - Financial Assistance 18+
Cambridgeshire County Council,05-Dec-22,51301895140,"1,195.71",Supported Housing Fellowship CIC,CARE ESTABLISHMENT,Unaccompanied Asylum Seeking Children,Separated Migrant Children > 18,Living Spport Grants - Financial Assistance 18+
Cambridgeshire County Council,05-Dec-22,51301895601,"1,200.00",Redacted Personal Data,FOSTER PARENT,Fostering,Fostering Support and Supervision,Support and Grants to Foster Carers
Cambridgeshire County Council,05-Dec-22,51301882541,"1,200.00",Access UK Ltd,TRADE SUPPLIER,Essential CCC Business Systems Upgrade,Essential CCC Business Systems Upgrade,IT Software
Cambridgeshire County Council,05-Dec-22,51301895034,"1,237.59",CLARENCE HOUSE MARCH,NURSERY,Nursery Schools,Early Years - Funded 3s/4s,Care & Ed Childcare Settings
Cambridgeshire County Council,05-Dec-22,51301895301,"1,260.00",Crown Social Care Ltd,CARE ESTABLISHMENT,Unaccompanied Asylum Seeking Children,Separated Migrant Children > 18,Living Spport Grants - Financial Assistance 18+
Cambridgeshire County Council,05-Dec-22,51301882532,"1,263.02",TIDEY ELECTRICAL LTD,TRADE SUPPLIER,Libraries - Open access & touchdown facilities - further 22 Libraries,Open access & touchdown facilities - further 22 Libraries,IT Hardware
Cambridgeshire County Council,05-Dec-22,51301883005,"1,284.42",Anglian Learning- Icknield Primary School,EDUCATION,SEND Specialist Services,Equipment (mainstream),Independent School Placements
Cambridgeshire County Council,05-Dec-22,51301882274,"1,290.00",Just Some Theatre,PARTNERSHIP,Cultural Services,The Library Presents,Professional Fees and Hired Services
Cambridgeshire County Council,05-Dec-22,51301883586,"1,400.00",EAQ,EDUCATION,Out of School Tuition,Out of School Provision - Education and Settings,Independent School Placements
Cambridgeshire County Council,05-Dec-22,51301881720,"1,428.84",WATERMAN ASPEN LTD,TRADE SUPPLIER,PD - General,Major Infrastructure Delivery,Agency Staff
Cambridgeshire County Council,05-Dec-22,51301882602,"1,437.60",Kingsfield Computer Product Ltd,COMPANY,Corporate IT Managed,Hardware & Infrastructure,Computer hardware - purchase
Cambridgeshire County Council,05-Dec-22,51301883585,"1,440.00",EAQ,EDUCATION,Out of School Tuition,Out of School Provision - Education and Settings,Independent School Placements
Cambridgeshire County Council,05-Dec-22,51301895136,"1,483.57",PSA Care LTD,COMPANY,Unaccompanied Asylum Seeking Children,Separated Migrant Children > 18,Living Spport Grants - Financial Assistance 18+
Cambridgeshire County Council,05-Dec-22,51301883802,"1,520.00",Cambian Childcare Ltd / Home Tree School,EDUCATION,SEN Placements,Placements - Education,Independent School Placements
Cambridgeshire County Council,05-Dec-22,51301885743,"1,582.52",VIRGIN MEDIA LTD,COMPANY,Corporate IT Managed,Corporate Telephony,Telephone costs
Cambridgeshire County Council,05-Dec-22,51301899594,"1,602.45",Youth of Fenland,LOCAL CLUBS & GROUPS,Youth and Community Services,YS - National Citizen Service,Educational visits
Cambridgeshire County Council,05-Dec-22,51301895326,"1,626.43",Elite care,CARE ESTABLISHMENT,Unaccompanied Asylum Seeking Children,Separated Migrant Children < 18,Asylum Seekers
Cambridgeshire County Council,05-Dec-22,51301895329,"1,626.43",Elite care,CARE ESTABLISHMENT,Unaccompanied Asylum Seeking Children,Separated Migrant Children < 18,Asylum Seekers
Cambridgeshire County Council,05-Dec-22,51301894896,"1,642.90",FosteringUK Ltd,CARE ESTABLISHMENT,LAC Placements,Placements - independent fostering,Agency Placements - In County
Cambridgeshire County Council,05-Dec-22,51301883830,"1,645.84",ENTERPRISE FLEX-E-RENT,TRADE SUPPLIER,Corporate Offices,Pool Cars,Leased Vehicle Costs
Cambridgeshire County Council,05-Dec-22,51301895035,"1,699.32",Herons' Preschool Waterbeach (CIO),EDUCATION,Nursery Schools,Early Years - Funded 3s/4s,Care & Ed Childcare Settings
Cambridgeshire County Council,05-Dec-22,51301882501,"1,707.00",THE VERY BEST IMPRESSIONS COMPANY LTD,TRADE SUPPLIER,Park & Ride Parking,Park & Ride - Marketing,Advertising / Publicity (non Recruitment)
Cambridgeshire County Council,05-Dec-22,51301894999,"1,728.00",Zenith Canopy Structures Ltd.,COMPANY,Park & Ride Parking,Park and Ride Admin,Building Repair and Maintenance
Cambridgeshire County Council,05-Dec-22,51301881750,"1,749.76",National Star,CHARITY,SEN Placements,Placements - Education,Independent School Placements
Cambridgeshire County Council,05-Dec-22,51301895295,"1,800.00",Crown Social Care Ltd,CARE ESTABLISHMENT,Unaccompanied Asylum Seeking Children,Separated Migrant Children > 18,Living Spport Grants - Financial Assistance 18+
Cambridgeshire County Council,05-Dec-22,51301895298,"1,800.00",Crown Social Care Ltd,CARE ESTABLISHMENT,Unaccompanied Asylum Seeking Children,Separated Migrant Children > 18,Living Spport Grants - Financial Assistance 18+
Cambridgeshire County Council,05-Dec-22,51301895294,"1,800.00",Crown Social Care Ltd,CARE ESTABLISHMENT,Unaccompanied Asylum Seeking Children,Separated Migrant Children > 18,Living Spport Grants - Financial Assistance 18+
Cambridgeshire County Council,05-Dec-22,51301895302,"1,800.00",Crown Social Care Ltd,CARE ESTABLISHMENT,Unaccompanied Asylum Seeking Children,Separated Migrant Children > 18,Living Spport Grants - Financial Assistance 18+
Cambridgeshire County Council,05-Dec-22,51301895350,"1,821.43",UK Care Partnership Ltd,CARE ESTABLISHMENT,Unaccompanied Asylum Seeking Children,Separated Migrant Children > 18,Living Spport Grants - Financial Assistance 18+
Cambridgeshire County Council,05-Dec-22,51301882537,"1,871.10",Inspire EHC Ltd,COMPANY,Out of School Tuition,SEND Specialist Services - SEMH Support Programme,Professional Fees and Hired Services
Cambridgeshire County Council,05-Dec-22,51301888312,"1,933.20",ARC The Attachment Research Community,EDUCATION,Schools Partnership Service,Virtual School LACPP Financing,Staff Training & Development
Cambridgeshire County Council,05-Dec-22,51301895135,"1,992.86",PSA Care LTD,COMPANY,Unaccompanied Asylum Seeking Children,Separated Migrant Children > 18,Living Spport Grants - Financial Assistance 18+
Cambridgeshire County Council,05-Dec-22,51301881415,"2,000.00",Minima,COMPANY,Cultural Services,The Library Presents,Professional Fees and Hired Services
Cambridgeshire County Council,05-Dec-22,51301881723,"2,016.00",WATERMAN ASPEN LTD,TRADE SUPPLIER,Highways Development Management,Highways Development Management,Agency Staff
Cambridgeshire County Council,05-Dec-22,51301895007,"2,037.80",K RAVIVARUMAN T/A FAIR HAVEN CARE HOME,TRADE SUPPLIER,ICT Service,ICT Service Technical Support,Computer software - purchase
Cambridgeshire County Council,05-Dec-22,51301883516,"2,049.22",K RAVIVARUMAN T/A FAIR HAVEN CARE HOME,TRADE SUPPLIER,Information Management,Resources Franking Machine,Postage & Carriage
Cambridgeshire County Council,05-Dec-22,51301882682,"2,052.76",Matchtech Group (Holdings) Limited,COMPANY,PD - General,Major Infrastructure Delivery,Agency Staff
Cambridgeshire County Council,05-Dec-22,51301895336,"2,100.00",PCH Integration Services Ltd.,CARE ESTABLISHMENT,Unaccompanied Asylum Seeking Children,Separated Migrant Children < 18,Asylum Seekers
Cambridgeshire County Council,05-Dec-22,51301882502,"2,160.00",THE VERY BEST IMPRESSIONS COMPANY LTD,TRADE SUPPLIER,Park & Ride Parking,Park & Ride - Marketing,Advertising / Publicity (non Recruitment)
Cambridgeshire County Council,05-Dec-22,51301882251,"2,175.12",CHS GROUP,CARE ESTABLISHMENT,LD - Head of Service,Head of LDP,Domiciliary Care
Cambridgeshire County Council,05-Dec-22,51301881678,"2,250.00",FOURFIELDS COMMUNITY PRIMARY SCHOOL,EDUCATION,SIS Head of Service,SIS Staff,Professional Fees and Hired Services
Cambridgeshire County Council,05-Dec-22,51301894935,"2,250.00",PCH Integration Services Ltd.,CARE ESTABLISHMENT,Unaccompanied Asylum Seeking Children,Separated Migrant Children < 18,Asylum Seekers
Cambridgeshire County Council,05-Dec-22,51301894936,"2,250.00",PCH Integration Services Ltd.,CARE ESTABLISHMENT,Unaccompanied Asylum Seeking Children,Separated Migrant Children < 18,Asylum Seekers
Cambridgeshire County Council,05-Dec-22,51301895337,"2,250.00",PCH Integration Services Ltd.,CARE ESTABLISHMENT,Unaccompanied Asylum Seeking Children,Separated Migrant Children < 18,Asylum Seekers
Cambridgeshire County Council,05-Dec-22,51301895343,"2,250.00",PCH Integration Services Ltd.,CARE ESTABLISHMENT,Unaccompanied Asylum Seeking Children,Separated Migrant Children < 18,Asylum Seekers
Cambridgeshire County Council,05-Dec-22,51301895347,"2,250.00",PCH Integration Services Ltd.,CARE ESTABLISHMENT,Unaccompanied Asylum Seeking Children,Separated Migrant Children < 18,Asylum Seekers
Cambridgeshire County Council,05-Dec-22,51301895338,"2,250.00",PCH Integration Services Ltd.,CARE ESTABLISHMENT,Unaccompanied Asylum Seeking Children,Separated Migrant Children < 18,Asylum Seekers
Cambridgeshire County Council,05-Dec-22,51301895339,"2,250.00",PCH Integration Services Ltd.,CARE ESTABLISHMENT,Unaccompanied Asylum Seeking Children,Separated Migrant Children < 18,Asylum Seekers
Cambridgeshire County Council,05-Dec-22,51301895342,"2,250.00",PCH Integration Services Ltd.,CARE ESTABLISHMENT,Unaccompanied Asylum Seeking Children,Separated Migrant Children < 18,Asylum Seekers
Cambridgeshire County Council,05-Dec-22,51301895346,"2,250.00",PCH Integration Services Ltd.,CARE ESTABLISHMENT,Unaccompanied Asylum Seeking Children,Separated Migrant Children < 18,Asylum Seekers
Cambridgeshire County Council,05-Dec-22,51301895348,"2,250.00",PCH Integration Services Ltd.,CARE ESTABLISHMENT,Unaccompanied Asylum Seeking Children,Separated Migrant Children < 18,Asylum Seekers
Cambridgeshire County Council,05-Dec-22,51301895341,"2,250.00",PCH Integration Services Ltd.,CARE ESTABLISHMENT,Unaccompanied Asylum Seeking Children,Separated Migrant Children < 18,Asylum Seekers
Cambridgeshire County Council,05-Dec-22,51301895335,"2,250.00",PCH Integration Services Ltd.,CARE ESTABLISHMENT,Unaccompanied Asylum Seeking Children,Separated Migrant Children < 18,Asylum Seekers
Cambridgeshire County Council,05-Dec-22,51301895340,"2,250.00",PCH Integration Services Ltd.,CARE ESTABLISHMENT,Unaccompanied Asylum Seeking Children,Separated Migrant Children < 18,Asylum Seekers
Cambridgeshire County Council,05-Dec-22,51301895334,"2,250.00",PCH Integration Services Ltd.,CARE ESTABLISHMENT,Unaccompanied Asylum Seeking Children,Separated Migrant Children < 18,Asylum Seekers
Cambridgeshire County Council,05-Dec-22,51301895123,"2,280.00",FEVACA,CARE ESTABLISHMENT,LAC Placements,Placements - supported accommodation,Agency Placements - In County
Cambridgeshire County Council,05-Dec-22,51301895122,"2,280.00",FEVACA,CARE ESTABLISHMENT,LAC Placements,Placements - supported accommodation,Agency Placements - In County
Cambridgeshire County Council,05-Dec-22,51301883582,"2,320.00",EAQ,EDUCATION,Out of School Tuition,Out of School Provision - Education and Settings,Independent School Placements
Cambridgeshire County Council,05-Dec-22,51301883334,"2,340.00",Paul Carter t/a IC2 Distribution Ltd,TRADE SUPPLIER,Highways - IHMC,Highways - IHMC,Highways - Traffic Mgt Systems
Cambridgeshire County Council,05-Dec-22,51301895291,"2,468.57",Crown Social Care Ltd,CARE ESTABLISHMENT,Unaccompanied Asylum Seeking Children,Separated Migrant Children > 18,Living Spport Grants - Financial Assistance 18+
Cambridgeshire County Council,05-Dec-22,51301895297,"2,468.57",Crown Social Care Ltd,CARE ESTABLISHMENT,Unaccompanied Asylum Seeking Children,Separated Migrant Children > 18,Living Spport Grants - Financial Assistance 18+
Cambridgeshire County Council,05-Dec-22,51301895293,"2,468.57",Crown Social Care Ltd,CARE ESTABLISHMENT,Unaccompanied Asylum Seeking Children,Separated Migrant Children > 18,Living Spport Grants - Financial Assistance 18+
Cambridgeshire County Council,05-Dec-22,51301895289,"2,468.57",Crown Social Care Ltd,CARE ESTABLISHMENT,Unaccompanied Asylum Seeking Children,Separated Migrant Children > 18,Living Spport Grants - Financial Assistance 18+
Cambridgeshire County Council,05-Dec-22,51301895312,"2,468.57",Crown Social Care Ltd,CARE ESTABLISHMENT,Unaccompanied Asylum Seeking Children,Separated Migrant Children < 18,Asylum Seekers
Cambridgeshire County Council,05-Dec-22,51301895306,"2,468.57",Crown Social Care Ltd,CARE ESTABLISHMENT,Unaccompanied Asylum Seeking Children,Separated Migrant Children < 18,Asylum Seekers
Cambridgeshire County Council,05-Dec-22,51301895304,"2,468.57",Crown Social Care Ltd,CARE ESTABLISHMENT,Unaccompanied Asylum Seeking Children,Separated Migrant Children < 18,Asylum Seekers
Cambridgeshire County Council,05-Dec-22,51301896081,"2,472.05",CCS MEDIA LIMITED,TRADE SUPPLIER,ICT Service,ICT Service Sales,Materials for resale
Cambridgeshire County Council,05-Dec-22,51301882596,"2,495.00",Help 4 Psychology Services Ltd (Help for Psychology),CARE ESTABLISHMENT,Regional Adoption Agency,Adoption Support Fund,Professional Fees and Hired Services
Cambridgeshire County Council,05-Dec-22,51301882109,"2,640.00",Panoramic Associates,COMPANY,PH COMF,PH - Contain Outbreak Management Fund,Professional Fees and Hired Services
Cambridgeshire County Council,05-Dec-22,51301895063,"2,700.00",Redacted Personal Data,INDIVIDUAL,Adoption Allowances,Adoption Allowances,Enhanced Payments
Cambridgeshire County Council,05-Dec-22,51301883543,"2,809.80",Girton Cottontails Preschool,NURSERY,SEND High Needs Top Up,SEND Specialist Services-High needs top-up-Early Years,Independent School Placements
Cambridgeshire County Council,05-Dec-22,51301882734,"2,844.00",Permanent Futures Ltd,COMPANY,Educations Systems,Educations System,IT Software
Cambridgeshire County Council,05-Dec-22,51301882534,"2,917.28",MLL Telecom Limited,TRADE SUPPLIER,Business Systems,IT Strategy - Shared Infrastructure,IT Hardware
Cambridgeshire County Council,05-Dec-22,51301894943,"3,030.73",TETRA TECH LTD,TRADE SUPPLIER,GCP - Chisholm Trail cycle links,GCP - Chisholm Trail cycle links,Construction - External Professional Fees
Cambridgeshire County Council,05-Dec-22,51301883274,"3,100.57",ENTERPRISE RENT-A-CAR UK LTD,TRADE SUPPLIER,Corporate Offices,Pool Cars,Leased Vehicle Costs
Cambridgeshire County Council,05-Dec-22,51301881350,"3,160.87",THE ONE GROUP,TRADE SUPPLIER,Enduring Transmission Grant,Enduring Transmission Grant,Advertising / Publicity (non Recruitment)
Cambridgeshire County Council,05-Dec-22,51301895062,"3,168.00",All seasons Children Play CIC,EDUCATION,Early Years Service - HAF,HAF Grant,Care & Ed Childcare Settings
Cambridgeshire County Council,05-Dec-22,51301894901,"3,182.14",Eastern Family Services Ltd t/a Eastern Fostering Services,CARE ESTABLISHMENT,LAC Placements,Placements - independent fostering,Agency Placements - Out of  County
Cambridgeshire County Council,05-Dec-22,51301894905,"3,182.14",Eastern Family Services Ltd t/a Eastern Fostering Services,CARE ESTABLISHMENT,LAC Placements,Placements - independent fostering,Agency Placements - Out of  County
Cambridgeshire County Council,05-Dec-22,51301894942,"3,212.90",STANGROUND ACADEMY,EDUCATION,Recoupment,Procurement - Out-County Mainstream,Independent School Placements
Cambridgeshire County Council,05-Dec-22,51301895087,"3,236.79",ST CHRISTOPHER'S FELLOWSHIP,CARE ESTABLISHMENT,LAC Placements,Placements - independent fostering,Agency Placements - In County
Cambridgeshire County Council,05-Dec-22,51301882684,"3,300.00",Matchtech Group (Holdings) Limited,COMPANY,PD - General,Major Infrastructure Delivery,Agency Staff
Cambridgeshire County Council,05-Dec-22,51301894891,"3,342.86",APEX Fostering,CARE ESTABLISHMENT,LAC Placements,Placements - independent fostering,Agency Placements - Out of  County
Cambridgeshire County Council,05-Dec-22,51301882685,"3,360.00",Matchtech Group (Holdings) Limited,COMPANY,PD - General,Major Infrastructure Delivery,Agency Staff
Cambridgeshire County Council,05-Dec-22,51301882683,"3,360.00",Matchtech Group (Holdings) Limited,COMPANY,PD - General,Major Infrastructure Delivery,Agency Staff
Cambridgeshire County Council,05-Dec-22,51301894927,"3,372.94",ORANGE GROVE FOSTER CARE,CARE ESTABLISHMENT,LAC Placements,Placements - independent fostering,Agency Placements - Out of  County
Cambridgeshire County Council,05-Dec-22,51301895332,"3,381.43",Fostering Innovations Ltd,CARE ESTABLISHMENT,Unaccompanied Asylum Seeking Children,Separated Migrant Children < 18,Agency Placements - Out of  County
Cambridgeshire County Council,05-Dec-22,51301895333,"3,381.43",Fostering Innovations Ltd,CARE ESTABLISHMENT,Unaccompanied Asylum Seeking Children,Separated Migrant Children < 18,Agency Placements - Out of  County
Cambridgeshire County Council,05-Dec-22,51301895349,"3,385.71",UK Care Partnership Ltd,CARE ESTABLISHMENT,Unaccompanied Asylum Seeking Children,Separated Migrant Children > 18,Living Spport Grants - Financial Assistance 18+
Cambridgeshire County Council,05-Dec-22,51301894924,"3,389.70",ORANGE GROVE FOSTER CARE,CARE ESTABLISHMENT,LAC Placements,Placements - independent fostering,Agency Placements - In County
Cambridgeshire County Council,05-Dec-22,51301895110,"3,389.70",FOSTERING SOLUTIONS LTD,CARE ESTABLISHMENT,LAC Placements,Placements - independent fostering,Agency Placements - Out of  County
Cambridgeshire County Council,05-Dec-22,51301895089,"3,390.00",ST CHRISTOPHER'S FELLOWSHIP,CARE ESTABLISHMENT,LAC Placements,Placements - independent fostering,Agency Placements - Out of  County
Cambridgeshire County Council,05-Dec-22,51301895094,"3,390.00",ST CHRISTOPHER'S FELLOWSHIP,CARE ESTABLISHMENT,LAC Placements,Placements - independent fostering,Agency Placements - Out of  County
Cambridgeshire County Council,05-Dec-22,51301895095,"3,390.00",ST CHRISTOPHER'S FELLOWSHIP,CARE ESTABLISHMENT,LAC Placements,Placements - independent fostering,Agency Placements - Out of  County
Cambridgeshire County Council,05-Dec-22,51301895099,"3,393.00",To The Moon and Back Foster Care Limited,CARE ESTABLISHMENT,LAC Placements,Placements - independent fostering,Agency Placements - In County
Cambridgeshire County Council,05-Dec-22,51301895102,"3,393.00",To The Moon and Back Foster Care Limited,CARE ESTABLISHMENT,LAC Placements,Placements - independent fostering,Agency Placements - In County
Cambridgeshire County Council,05-Dec-22,51301895096,"3,407.10",True Fostering Ltd,COMPANY,LAC Placements,Placements - independent fostering,Agency Placements - Out of  County
Cambridgeshire County Council,05-Dec-22,51301894923,"3,407.14",LITTLE ACORNS FOSTERING LTD,CARE ESTABLISHMENT,LAC Placements,Placements - independent fostering,Agency Placements - Out of  County
Cambridgeshire County Council,05-Dec-22,51301895107,"3,503.70",ORANGE GROVE FOSTER CARE,CARE ESTABLISHMENT,LAC Placements,Placements - independent fostering,Agency Placements - Out of  County
Cambridgeshire County Council,05-Dec-22,51301894914,"3,503.70",ORANGE GROVE FOSTER CARE,CARE ESTABLISHMENT,LAC Placements,Placements - independent fostering,Agency Placements - Out of  County
Cambridgeshire County Council,05-Dec-22,51301893856,"3,506.40",C J MURFITT LTD,COMPANY,Investment in the CCC Asset Portfolio,Spokes - CPDC,Buildings - Externals
Cambridgeshire County Council,05-Dec-22,51301894899,"3,535.71",Eastern Family Services Ltd t/a Eastern Fostering Services,CARE ESTABLISHMENT,LAC Placements,Placements - independent fostering,Agency Placements - Out of  County
Cambridgeshire County Council,05-Dec-22,51301894908,"3,535.71",Eastern Family Services Ltd t/a Eastern Fostering Services,CARE ESTABLISHMENT,LAC Placements,Placements - independent fostering,Agency Placements - Out of  County
Cambridgeshire County Council,05-Dec-22,51301894912,"3,575.40",FUTURES FOR CHILDREN LTD,CARE ESTABLISHMENT,LAC Placements,Placements - independent fostering,Agency Placements - Out of  County
Cambridgeshire County Council,05-Dec-22,51301883584,"3,600.00",EAQ,EDUCATION,Out of School Tuition,Out of School Provision - Education and Settings,Independent School Placements
Cambridgeshire County Council,05-Dec-22,51301895092,"3,600.00",ST CHRISTOPHER'S FELLOWSHIP,CARE ESTABLISHMENT,LAC Placements,Placements - independent fostering,Agency Placements - Out of  County
Cambridgeshire County Council,05-Dec-22,51301895091,"3,600.00",ST CHRISTOPHER'S FELLOWSHIP,CARE ESTABLISHMENT,LAC Placements,Placements - independent fostering,Agency Placements - Out of  County
Cambridgeshire County Council,05-Dec-22,51301883331,"3,600.00",Daniela Krug T/A Building Intellect Ltd,TRADE SUPPLIER,GCP - Smart Cambridge,GCP - Smart Cambridge,Consultancy
Cambridgeshire County Council,05-Dec-22,51301894921,"3,672.86",LITTLE ACORNS FOSTERING LTD,CARE ESTABLISHMENT,LAC Placements,Placements - independent fostering,Agency Placements - In County
Cambridgeshire County Council,05-Dec-22,51301894917,"3,672.86",LITTLE ACORNS FOSTERING LTD,CARE ESTABLISHMENT,LAC Placements,Placements - independent fostering,Agency Placements - Out of  County
Cambridgeshire County Council,05-Dec-22,51301895331,"3,720.00",FOSTER CARE ASSOCIATES LTD (FCA),CARE ESTABLISHMENT,Unaccompanied Asylum Seeking Children,Separated Migrant Children < 18,Agency Placements - Out of  County
Cambridgeshire County Council,05-Dec-22,51301895097,"3,741.00",To The Moon and Back Foster Care Limited,CARE ESTABLISHMENT,LAC Placements,Placements - independent fostering,Agency Placements - Out of  County
Cambridgeshire County Council,05-Dec-22,51301895330,"3,750.00",Family First Fostering Ltd,COMPANY,Unaccompanied Asylum Seeking Children,Separated Migrant Children < 18,Agency Placements - Out of  County
Cambridgeshire County Council,05-Dec-22,51301894918,"3,814.29",LITTLE ACORNS FOSTERING LTD,CARE ESTABLISHMENT,LAC Placements,Placements - independent fostering,Agency Placements - Out of  County
Cambridgeshire County Council,05-Dec-22,51301894915,"3,814.29",LITTLE ACORNS FOSTERING LTD,CARE ESTABLISHMENT,LAC Placements,Placements - independent fostering,Agency Placements - Out of  County
Cambridgeshire County Council,05-Dec-22,51301895085,"3,835.50",People Who Foster Ltd,CARE ESTABLISHMENT,LAC Placements,Placements - independent fostering,Agency Placements - Out of  County
Cambridgeshire County Council,05-Dec-22,51301882636,"3,866.04",Select Apointments Norwich,TRADE SUPPLIER,Finance Operations,Covid - Debt Team,Agency Staff
Cambridgeshire County Council,05-Dec-22,51301895098,"4,176.00",To The Moon and Back Foster Care Limited,CARE ESTABLISHMENT,LAC Placements,Placements - independent fostering,Agency Placements - In County
Cambridgeshire County Council,05-Dec-22,51301895103,"4,176.00",To The Moon and Back Foster Care Limited,CARE ESTABLISHMENT,LAC Placements,Placements - independent fostering,Agency Placements - Out of  County
Cambridgeshire County Council,05-Dec-22,51301894911,"4,264.29",Eastern Family Services Ltd t/a Eastern Fostering Services,CARE ESTABLISHMENT,LAC Placements,Placements - independent fostering,Agency Placements - In County
Cambridgeshire County Council,05-Dec-22,51301882503,"4,338.00",THE VERY BEST IMPRESSIONS COMPANY LTD,TRADE SUPPLIER,Park & Ride Parking,Park & Ride - Marketing,Advertising / Publicity (non Recruitment)
Cambridgeshire County Council,05-Dec-22,51301894889,"4,714.29",CREDO CARE,CARE ESTABLISHMENT,LAC Placements,Placements - independent fostering,Agency Placements - Out of  County
Cambridgeshire County Council,05-Dec-22,51301895111,"4,800.00",FOSTERING SOLUTIONS LTD,CARE ESTABLISHMENT,LAC Placements,Placements - independent fostering,Agency Placements - Out of  County
Cambridgeshire County Council,05-Dec-22,51301894893,"5,035.71",CAPSTONE FOSTER CARE (SOUTH EAST) LTD,CARE ESTABLISHMENT,LAC Placements,Placements - independent fostering,Agency Placements - Out of  County
Cambridgeshire County Council,05-Dec-22,51301881454,"5,340.00",VIVACITY LABS LIMITED,TRADE SUPPLIER,GCP - Chisholm Trail cycle links,GCP - Chisholm Trail cycle links,Construction - External Professional Fees
Cambridgeshire County Council,05-Dec-22,51301894857,"5,416.33",CAMBRIDGE STEINER SCHOOL AND EARLY YEARS,EDUCATION,SEN Placements,Placements - Education,Independent School Placements
Cambridgeshire County Council,05-Dec-22,51301883038,"5,933.00",BUCKDEN RECREATION GROUND AND VILLAGE HALL TRUST,LOCAL CLUBS & GROUPS,Corporate Offices,Buckden Library,Rents and Leases
Cambridgeshire County Council,05-Dec-22,51301883781,"6,066.00",Forensic Collision Investigation & Reconstruction Ltd,COMPANY,Coroners,Coroners General,Court Costs
Cambridgeshire County Council,05-Dec-22,51301894888,"6,600.00",Channels & Choices Therapeutic Fostering Ltd,CARE ESTABLISHMENT,LAC Placements,Placements - independent fostering,Agency Placements - Out of  County
Cambridgeshire County Council,05-Dec-22,51301894589,"6,633.33",Cambian Childcare Ltd / Wisbech School,EDUCATION,SEN Placements,Placements - Education,Independent School Placements
Cambridgeshire County Council,05-Dec-22,51301885551,"7,930.80",ATKINS LTD,COMPANY,Large Energy Projects - Solar Farms,North Angle Solar Farm,Professional Fees and Hired Services
Cambridgeshire County Council,05-Dec-22,51301896097,"8,118.40",ATKINS LTD,COMPANY,Large Energy Projects - Heat Projects,Swaffham Prior Energy Project,Construction - External Professional Fees
Cambridgeshire County Council,05-Dec-22,51301894970,"8,205.42",Redacted Personal Data,INDIVIDUAL,Adoption Allowances,Adoption Allowances,Enhanced Payments
Cambridgeshire County Council,05-Dec-22,51301883112,"8,465.84",C JACKSON & SONS (JACKSON ENVIRONMENTAL LTD),COMPANY,Health & Safety,POD - Health & Safety,Professional Fees and Hired Services
Cambridgeshire County Council,05-Dec-22,51301886018,"8,584.25",CAMBRIDGESHIRE AND PETERBOROUGH NHS FOUNDATION TRUST,TRUST (OTHER),Integrated Community Equipment Service,ICES (Pool),Staffing Recharges - External
Cambridgeshire County Council,05-Dec-22,51301882542,"9,174.97",Access UK Ltd,TRADE SUPPLIER,IT - Shared Care Record,IT - Shared Care Record,IT Software
Cambridgeshire County Council,05-Dec-22,51301883075,"9,605.96",Vuzion UK Ltd,COMPANY,ICT Service,ICT Service Technical Support,Computer software - purchase
Cambridgeshire County Council,05-Dec-22,51301896098,"9,928.20",ATKINS LTD,COMPANY,Large Energy Projects - Heat Projects,Swaffham Prior Energy Project,Construction - External Professional Fees
Cambridgeshire County Council,05-Dec-22,51301896096,"10,421.20",ATKINS LTD,COMPANY,Large Energy Projects - Heat Projects,Swaffham Prior Energy Project,Construction - External Professional Fees
Cambridgeshire County Council,05-Dec-22,51301881690,"10,664.22",BALFOUR BEATTY LIVING PLACES LIMITED,COMPANY,Highways - LHIs,Highways - LHIs (Local Highways Improvements),Highways - Construction
Cambridgeshire County Council,05-Dec-22,51301882528,"11,460.00",CLEAR CHANNEL UK LTD,COMPANY,GCP - Communications,GCP - Strategic Communicatations,Advertising / Publicity (non Recruitment)
Cambridgeshire County Council,05-Dec-22,51301882483,"12,535.70",ATKINS LTD,COMPANY,March Area Transport Study,March Area Transport Study,Construction - External Professional Fees
Cambridgeshire County Council,05-Dec-22,51301894610,"13,833.33",Cambian Childcare Ltd / Wisbech School,EDUCATION,SEN Placements,Placements - Education,Independent School Placements
Cambridgeshire County Council,05-Dec-22,51301894596,"13,833.33",Cambian Childcare Ltd / Wisbech School,EDUCATION,SEN Placements,Placements - Education,Independent School Placements
Cambridgeshire County Council,05-Dec-22,51301894607,"14,229.00",Cambian Childcare Ltd / Wisbech School,EDUCATION,SEN Placements,Placements - Education,Independent School Placements
Cambridgeshire County Council,05-Dec-22,51301895120,"14,307.00",Vcare24 Limited,CARE ESTABLISHMENT,LAC Placements,Placements - residential disability,Agency Placements - Out of  County
Cambridgeshire County Council,05-Dec-22,51301895121,"14,307.00",Vcare24 Limited,CARE ESTABLISHMENT,LAC Placements,Placements - residential disability,Agency Placements - Out of  County
Cambridgeshire County Council,05-Dec-22,51301894591,"14,675.66",Cambian Childcare Ltd / Wisbech School,EDUCATION,SEN Placements,Placements - Education,Independent School Placements
Cambridgeshire County Council,05-Dec-22,51301883803,"15,166.66",Cambian Childcare Ltd / Home Tree School,EDUCATION,SEN Placements,Placements - Education,Independent School Placements
Cambridgeshire County Council,05-Dec-22,51301894590,"15,748.00",Cambian Childcare Ltd / Wisbech School,EDUCATION,SEN Placements,Placements - Education,Independent School Placements
Cambridgeshire County Council,05-Dec-22,51301895119,"15,913.80",PRIORY GROUP (MARCH HOUSE),CARE ESTABLISHMENT,LAC Placements,Placements - residential homes,Agency Placements - Out of  County
Cambridgeshire County Council,05-Dec-22,51301895124,"16,164.29",CHARTWELL HOUSE,CARE ESTABLISHMENT,LAC Placements,Placements - residential homes,Agency Placements - In County
Cambridgeshire County Council,05-Dec-22,51301882276,"16,280.64",ATKINS LTD,COMPANY,March Area Transport Study,March Area Transport Study,Construction - External Professional Fees
Cambridgeshire County Council,05-Dec-22,51301895113,"16,285.71",Acorn Homes UK Limited,CARE ESTABLISHMENT,LAC Placements,Placements - residential homes,Agency Placements - Out of  County
Cambridgeshire County Council,05-Dec-22,51301895125,"17,050.00",CHARTWELL HOUSE,CARE ESTABLISHMENT,LAC Placements,Placements - residential homes,Agency Placements - In County
Cambridgeshire County Council,05-Dec-22,51301895126,"17,050.00",CHARTWELL HOUSE,CARE ESTABLISHMENT,LAC Placements,Placements - residential homes,Agency Placements - In County
Cambridgeshire County Council,05-Dec-22,51301881715,"17,343.43",WDM LTD,TRADE SUPPLIER,Asset Planning,Asset Planning,Consultancy
Cambridgeshire County Council,05-Dec-22,51301886015,"17,413.50",CAMBRIDGESHIRE AND PETERBOROUGH NHS FOUNDATION TRUST,TRUST (OTHER),Integrated Community Equipment Service,ICES (Pool),Staffing Recharges - External
Cambridgeshire County Council,05-Dec-22,51301886020,"17,413.50",CAMBRIDGESHIRE AND PETERBOROUGH NHS FOUNDATION TRUST,TRUST (OTHER),Integrated Community Equipment Service,ICES (Pool),Staffing Recharges - External
Cambridgeshire County Council,05-Dec-22,51301895114,"17,807.14",NEW REFLEXIONS REFLEXION CARE GROUP,CARE ESTABLISHMENT,LAC Placements,Placements - residential homes,Agency Placements - Out of  County
Cambridgeshire County Council,05-Dec-22,51301895130,"18,000.00",Surecare Residential Limited,EDUCATION,LAC Placements,Placements - residential homes,Agency Placements - Out of  County
Cambridgeshire County Council,05-Dec-22,51301895127,"18,600.00",CHARTWELL HOUSE,CARE ESTABLISHMENT,LAC Placements,Placements - residential homes,Agency Placements - In County
Cambridgeshire County Council,05-Dec-22,51301895105,"18,835.71",4D CARE LIMITED,CARE ESTABLISHMENT,LAC Placements,Placements - residential homes,Agency Placements - In County
Cambridgeshire County Council,05-Dec-22,51301882106,"18,973.70",WILDS LODGE SCHOOL LTD,EDUCATION,SEN Placements,Placements - Education,Independent School Placements
Cambridgeshire County Council,05-Dec-22,51301883113,"19,041.92",C JACKSON & SONS (JACKSON ENVIRONMENTAL LTD),COMPANY,Health & Safety,POD - Health & Safety,Professional Fees and Hired Services
Cambridgeshire County Council,05-Dec-22,51301882834,"19,242.76",NETWORK RAIL LTD,COMPANY,Highways - Bridges,Highways - Bridges,Construction - External Professional Fees
Cambridgeshire County Council,05-Dec-22,51301895129,"19,285.71",Surecare Residential Limited,EDUCATION,LAC Placements,Placements - residential homes,Agency Placements - Out of  County
Cambridgeshire County Council,05-Dec-22,51301895133,"22,157.14",Higher Hopes Ltd,CARE ESTABLISHMENT,LAC Placements,Placements - residential homes,Agency Placements - In County
Cambridgeshire County Council,05-Dec-22,51301882599,"22,397.57",Anglian Learning- Icknield Primary School,EDUCATION,SEND Specialist Services,Equipment (mainstream),Independent School Placements
Cambridgeshire County Council,05-Dec-22,51301894969,"23,355.27",Redacted Personal Data,INDIVIDUAL,Fostering,FCP allowances,Support and Grants to Foster Carers
Cambridgeshire County Council,05-Dec-22,51301882194,"23,823.00",Community Catalysts CIC,COMPANY,Community care projects,Community Catalysts Project,Consultancy
Cambridgeshire County Council,05-Dec-22,51301893605,"23,976.00",Team Q Maintenance Ltd,COMPANY,Condition Survey Works,Woodland Lodge PE29 6JD CS22050123,"New Construction, Conversion and Renovation"
Cambridgeshire County Council,05-Dec-22,51301895131,"24,128.57",Childhood First,CARE ESTABLISHMENT,LAC Placements,Placements - residential homes,Agency Placements - Out of  County
Cambridgeshire County Council,05-Dec-22,51301882680,"25,253.45",PETERBOROUGH AND STAMFORD HOSPITALS NHS FOUNDATION TRUST,TRUST (OTHER),Coroners,Coroners General,Payments to Other Establishments
Cambridgeshire County Council,05-Dec-22,51301895117,"27,298.28",Bethel Children's Care Ltd,CARE ESTABLISHMENT,LAC Placements,Placements - residential homes,Agency Placements - Out of  County
Cambridgeshire County Council,05-Dec-22,51301882635,"42,397.77",SOFTCAT LTD,TRADE SUPPLIER,Corporate IT Managed,Hardware & Infrastructure,Computer software - purchase
Cambridgeshire County Council,05-Dec-22,51301893792,"46,223.83",BORRAS CONSTRUCTION LTD,COMPANY,Investment in the CCC Asset Portfolio,Spokes - Roger Ascham,Buildings - Externals
Cambridgeshire County Council,05-Dec-22,51301895061,"57,540.00",CARTER JONAS LLP,TRADE SUPPLIER,CHIC - Commercial Activity,This Land,Professional Fees and Hired Services
Cambridgeshire County Council,05-Dec-22,51301881748,"58,554.14",LOCAL PARTNERSHIPS,OTHER PUBLIC BODIES,Waste Disposal incl PFI,WOSP,Professional Fees and Hired Services
Cambridgeshire County Council,05-Dec-22,51301882833,"99,641.94",ATKINS LTD,COMPANY,Highways - Bridges,Highways - Bridges,Construction - External Professional Fees
Cambridgeshire County Council,05-Dec-22,51301883220,"295,000.00",SIR HARRY SMITH COMMUNITY COLLEGE,EDUCATION,Sir Harry Smith,Sir Harry Smith,Furniture - Fixtures and Fittings
Cambridgeshire County Council,05-Dec-22,51301894859,"305,414.66",OPUS LGSS (PEOPLE SOLUTIONS) LTD,TRADE SUPPLIER,Control Accounts,Suspense Account - General,Suspense Items
Cambridgeshire County Council,06-Dec-22,51301896521,-800.00,MEADOWS HOMECARE SERVICES,CARE ESTABLISHMENT,OPPD - Cost of Care - City South - Over 65,Older People - City & South - Care,Homecare
Cambridgeshire County Council,06-Dec-22,51301896521,-800.00,MEADOWS HOMECARE SERVICES,CARE ESTABLISHMENT,OPPD - Cost of Care - City South - Over 65,Older People - City & South - Care,Homecare
Cambridgeshire County Council,06-Dec-22,51301896521,-800.00,MEADOWS HOMECARE SERVICES,CARE ESTABLISHMENT,OPPD - Cost of Care - City South - Over 65,Older People - City & South - Care,Homecare
Cambridgeshire County Council,06-Dec-22,51301896521,-800.00,MEADOWS HOMECARE SERVICES,CARE ESTABLISHMENT,OPPD - Cost of Care - City South - Over 65,Older People - City & South - Care,Homecare
Cambridgeshire County Council,06-Dec-22,51301896521,-685.72,MEADOWS HOMECARE SERVICES,CARE ESTABLISHMENT,OPPD - Cost of Care - City South - Over 65,Older People - City & South - Care,Homecare
Cambridgeshire County Council,06-Dec-22,51301896521,-628.57,MEADOWS HOMECARE SERVICES,CARE ESTABLISHMENT,OPPD - Cost of Care - City South - Over 65,Older People - City & South - Care,Homecare
Cambridgeshire County Council,06-Dec-22,51301896521,685.71,MEADOWS HOMECARE SERVICES,CARE ESTABLISHMENT,OPPD - Cost of Care - City South - Over 65,Older People - City & South - Care,Homecare
Cambridgeshire County Council,06-Dec-22,51301896521,734.40,MEADOWS HOMECARE SERVICES,CARE ESTABLISHMENT,OPPD - Cost of Care - City South - Over 65,Older People - City & South - Care,Homecare
Cambridgeshire County Council,06-Dec-22,51301896521,800.00,MEADOWS HOMECARE SERVICES,CARE ESTABLISHMENT,OPPD - Cost of Care - City South - Over 65,Older People - City & South - Care,Homecare
Cambridgeshire County Council,06-Dec-22,51301896521,800.00,MEADOWS HOMECARE SERVICES,CARE ESTABLISHMENT,OPPD - Cost of Care - City South - Over 65,Older People - City & South - Care,Homecare
Cambridgeshire County Council,06-Dec-22,51301896521,800.00,MEADOWS HOMECARE SERVICES,CARE ESTABLISHMENT,OPPD - Cost of Care - City South - Over 65,Older People - City & South - Care,Homecare
Cambridgeshire County Council,06-Dec-22,51301896521,800.00,MEADOWS HOMECARE SERVICES,CARE ESTABLISHMENT,OPPD - Cost of Care - City South - Over 65,Older People - City & South - Care,Homecare
Cambridgeshire County Council,06-Dec-22,51301896521,800.00,MEADOWS HOMECARE SERVICES,CARE ESTABLISHMENT,OPPD - Cost of Care - City South - Over 65,Older People - City & South - Care,Homecare
Cambridgeshire County Council,06-Dec-22,51301896521,800.00,MEADOWS HOMECARE SERVICES,CARE ESTABLISHMENT,OPPD - Cost of Care - City South - Over 65,Older People - City & South - Care,Homecare
Cambridgeshire County Council,06-Dec-22,51301896521,800.00,MEADOWS HOMECARE SERVICES,CARE ESTABLISHMENT,OPPD - Cost of Care - City South - Over 65,Older People - City & South - Care,Homecare
Cambridgeshire County Council,06-Dec-22,51301896521,800.00,MEADOWS HOMECARE SERVICES,CARE ESTABLISHMENT,OPPD - Cost of Care - City South - Over 65,Older People - City & South - Care,Homecare
Cambridgeshire County Council,06-Dec-22,51301896521,800.00,MEADOWS HOMECARE SERVICES,CARE ESTABLISHMENT,OPPD - Cost of Care - City South - Over 65,Older People - City & South - Care,Homecare
Cambridgeshire County Council,06-Dec-22,51301896521,800.00,MEADOWS HOMECARE SERVICES,CARE ESTABLISHMENT,OPPD - Cost of Care - City South - Over 65,Older People - City & South - Care,Homecare
Cambridgeshire County Council,06-Dec-22,51301896521,800.00,MEADOWS HOMECARE SERVICES,CARE ESTABLISHMENT,OPPD - Cost of Care - City South - Over 65,Older People - City & South - Care,Homecare
Cambridgeshire County Council,06-Dec-22,51301896521,800.00,MEADOWS HOMECARE SERVICES,CARE ESTABLISHMENT,OPPD - Cost of Care - City South - Over 65,Older People - City & South - Care,Homecare
Cambridgeshire County Council,06-Dec-22,51301896521,800.00,MEADOWS HOMECARE SERVICES,CARE ESTABLISHMENT,OPPD - Cost of Care - City South - Over 65,Older People - City & South - Care,Homecare
Cambridgeshire County Council,06-Dec-22,51301896521,800.00,MEADOWS HOMECARE SERVICES,CARE ESTABLISHMENT,OPPD - Cost of Care - City South - Over 65,Older People - City & South - Care,Homecare
Cambridgeshire County Council,06-Dec-22,51301896521,800.00,MEADOWS HOMECARE SERVICES,CARE ESTABLISHMENT,OPPD - Cost of Care - City South - Over 65,Older People - City & South - Care,Homecare
Cambridgeshire County Council,06-Dec-22,51301896521,800.00,MEADOWS HOMECARE SERVICES,CARE ESTABLISHMENT,OPPD - Cost of Care - City South - Over 65,Older People - City & South - Care,Homecare
Cambridgeshire County Council,06-Dec-22,51301896521,800.00,MEADOWS HOMECARE SERVICES,CARE ESTABLISHMENT,OPPD - Cost of Care - City South - Over 65,Older People - City & South - Care,Homecare
Cambridgeshire County Council,06-Dec-22,51301896521,800.00,MEADOWS HOMECARE SERVICES,CARE ESTABLISHMENT,OPPD - Cost of Care - City South - Over 65,Older People - City & South - Care,Homecare
Cambridgeshire County Council,06-Dec-22,51301896521,800.00,MEADOWS HOMECARE SERVICES,CARE ESTABLISHMENT,OPPD - Cost of Care - City South - Over 65,Older People - City & South - Care,Homecare
Cambridgeshire County Council,06-Dec-22,51301896521,800.00,MEADOWS HOMECARE SERVICES,CARE ESTABLISHMENT,OPPD - Cost of Care - City South - Over 65,Older People - City & South - Care,Homecare
Cambridgeshire County Council,06-Dec-22,51301896521,800.00,MEADOWS HOMECARE SERVICES,CARE ESTABLISHMENT,OPPD - Cost of Care - City South - Over 65,Older People - City & South - Care,Homecare
Cambridgeshire County Council,06-Dec-22,51301896521,800.00,MEADOWS HOMECARE SERVICES,CARE ESTABLISHMENT,OPPD - Cost of Care - City South - Over 65,Older People - City & South - Care,Homecare
Cambridgeshire County Council,06-Dec-22,51301896521,800.00,MEADOWS HOMECARE SERVICES,CARE ESTABLISHMENT,OPPD - Cost of Care - City South - Over 65,Older People - City & South - Care,Homecare
Cambridgeshire County Council,06-Dec-22,51301896521,800.00,MEADOWS HOMECARE SERVICES,CARE ESTABLISHMENT,OPPD - Cost of Care - City South - Over 65,Older People - City & South - Care,Homecare
Cambridgeshire County Council,06-Dec-22,51301896521,800.00,MEADOWS HOMECARE SERVICES,CARE ESTABLISHMENT,OPPD - Cost of Care - City South - Over 65,Older People - City & South - Care,Homecare
Cambridgeshire County Council,06-Dec-22,51301896521,800.00,MEADOWS HOMECARE SERVICES,CARE ESTABLISHMENT,OPPD - Cost of Care - City South - Over 65,Older People - City & South - Care,Homecare
Cambridgeshire County Council,06-Dec-22,51301896521,800.00,MEADOWS HOMECARE SERVICES,CARE ESTABLISHMENT,OPPD - Cost of Care - City South - Over 65,Older People - City & South - Care,Homecare
Cambridgeshire County Council,06-Dec-22,51301896521,800.00,MEADOWS HOMECARE SERVICES,CARE ESTABLISHMENT,OPPD - Cost of Care - City South - Over 65,Older People - City & South - Care,Homecare
Cambridgeshire County Council,06-Dec-22,51301896521,800.00,MEADOWS HOMECARE SERVICES,CARE ESTABLISHMENT,OPPD - Cost of Care - City South - Over 65,Older People - City & South - Care,Homecare
Cambridgeshire County Council,06-Dec-22,51301896521,800.00,MEADOWS HOMECARE SERVICES,CARE ESTABLISHMENT,OPPD - Cost of Care - City South - Over 65,Older People - City & South - Care,Homecare
Cambridgeshire County Council,06-Dec-22,51301896521,800.00,MEADOWS HOMECARE SERVICES,CARE ESTABLISHMENT,OPPD - Cost of Care - City South - Over 65,Older People - City & South - Care,Homecare
Cambridgeshire County Council,06-Dec-22,51301896521,800.00,MEADOWS HOMECARE SERVICES,CARE ESTABLISHMENT,OPPD - Cost of Care - City South - Over 65,Older People - City & South - Care,Homecare
Cambridgeshire County Council,06-Dec-22,51301896521,800.00,MEADOWS HOMECARE SERVICES,CARE ESTABLISHMENT,OPPD - Cost of Care - City South - Over 65,Older People - City & South - Care,Homecare
Cambridgeshire County Council,06-Dec-22,51301896521,800.00,MEADOWS HOMECARE SERVICES,CARE ESTABLISHMENT,OPPD - Cost of Care - City South - Over 65,Older People - City & South - Care,Homecare
Cambridgeshire County Council,06-Dec-22,51301896521,800.00,MEADOWS HOMECARE SERVICES,CARE ESTABLISHMENT,OPPD - Cost of Care - City South - Over 65,Older People - City & South - Care,Homecare
Cambridgeshire County Council,06-Dec-22,51301896521,800.00,MEADOWS HOMECARE SERVICES,CARE ESTABLISHMENT,OPPD - Cost of Care - City South - Over 65,Older People - City & South - Care,Homecare
Cambridgeshire County Council,06-Dec-22,51301896521,800.00,MEADOWS HOMECARE SERVICES,CARE ESTABLISHMENT,OPPD - Cost of Care - City South - Over 65,Older People - City & South - Care,Homecare
Cambridgeshire County Council,06-Dec-22,51301896521,800.00,MEADOWS HOMECARE SERVICES,CARE ESTABLISHMENT,OPPD - Cost of Care - City South - Over 65,Older People - City & South - Care,Homecare
Cambridgeshire County Council,06-Dec-22,51301896521,800.00,MEADOWS HOMECARE SERVICES,CARE ESTABLISHMENT,OPPD - Cost of Care - City South - Over 65,Older People - City & South - Care,Homecare
Cambridgeshire County Council,06-Dec-22,51301896521,800.00,MEADOWS HOMECARE SERVICES,CARE ESTABLISHMENT,OPPD - Cost of Care - City South - Over 65,Older People - City & South - Care,Homecare
Cambridgeshire County Council,06-Dec-22,51301896521,856.80,MEADOWS HOMECARE SERVICES,CARE ESTABLISHMENT,OPPD - Cost of Care - City South - Over 65,Older People - City & South - Care,Homecare
Cambridgeshire County Council,06-Dec-22,51301896521,856.80,MEADOWS HOMECARE SERVICES,CARE ESTABLISHMENT,OPPD - Cost of Care - City South - Over 65,Older People - City & South - Care,Homecare
Cambridgeshire County Council,06-Dec-22,51301896521,856.80,MEADOWS HOMECARE SERVICES,CARE ESTABLISHMENT,OPPD - Cost of Care - City South - Over 65,Older People - City & South - Care,Homecare
Cambridgeshire County Council,06-Dec-22,51301896521,856.80,MEADOWS HOMECARE SERVICES,CARE ESTABLISHMENT,OPPD - Cost of Care - City South - Over 65,Older People - City & South - Care,Homecare
Cambridgeshire County Council,06-Dec-22,51301896521,856.80,MEADOWS HOMECARE SERVICES,CARE ESTABLISHMENT,OPPD - Cost of Care - City South - Over 65,Older People - City & South - Care,Homecare
Cambridgeshire County Council,06-Dec-22,51301896521,856.80,MEADOWS HOMECARE SERVICES,CARE ESTABLISHMENT,OPPD - Cost of Care - City South - Over 65,Older People - City & South - Care,Homecare
Cambridgeshire County Council,06-Dec-22,51301896521,856.80,MEADOWS HOMECARE SERVICES,CARE ESTABLISHMENT,OPPD - Cost of Care - City South - Over 65,Older People - City & South - Care,Homecare
Cambridgeshire County Council,06-Dec-22,51301896521,856.80,MEADOWS HOMECARE SERVICES,CARE ESTABLISHMENT,OPPD - Cost of Care - City South - Over 65,Older People - City & South - Care,Homecare
Cambridgeshire County Council,06-Dec-22,51301896521,856.80,MEADOWS HOMECARE SERVICES,CARE ESTABLISHMENT,OPPD - Cost of Care - City South - Over 65,Older People - City & South - Care,Homecare
Cambridgeshire County Council,06-Dec-22,51301896521,856.80,MEADOWS HOMECARE SERVICES,CARE ESTABLISHMENT,OPPD - Cost of Care - City South - Over 65,Older People - City & South - Care,Homecare
Cambridgeshire County Council,06-Dec-22,51301896521,856.80,MEADOWS HOMECARE SERVICES,CARE ESTABLISHMENT,OPPD - Cost of Care - City South - Over 65,Older People - City & South - Care,Homecare
Cambridgeshire County Council,06-Dec-22,51301896521,856.80,MEADOWS HOMECARE SERVICES,CARE ESTABLISHMENT,OPPD - Cost of Care - City South - Over 65,Older People - City & South - Care,Homecare
Cambridgeshire County Council,06-Dec-22,51301896521,856.80,MEADOWS HOMECARE SERVICES,CARE ESTABLISHMENT,OPPD - Cost of Care - City South - Over 65,Older People - City & South - Care,Homecare
Cambridgeshire County Council,06-Dec-22,51301896521,856.80,MEADOWS HOMECARE SERVICES,CARE ESTABLISHMENT,OPPD - Cost of Care - City South - Over 65,Older People - City & South - Care,Homecare
Cambridgeshire County Council,06-Dec-22,51301896521,856.80,MEADOWS HOMECARE SERVICES,CARE ESTABLISHMENT,OPPD - Cost of Care - City South - Over 65,Older People - City & South - Care,Homecare
Cambridgeshire County Council,06-Dec-22,51301896521,856.80,MEADOWS HOMECARE SERVICES,CARE ESTABLISHMENT,OPPD - Cost of Care - City South - Over 65,Older People - City & South - Care,Homecare
Cambridgeshire County Council,06-Dec-22,51301896521,856.80,MEADOWS HOMECARE SERVICES,CARE ESTABLISHMENT,OPPD - Cost of Care - City South - Over 65,Older People - City & South - Care,Homecare
Cambridgeshire County Council,06-Dec-22,51301896521,856.80,MEADOWS HOMECARE SERVICES,CARE ESTABLISHMENT,OPPD - Cost of Care - City South - Over 65,Older People - City & South - Care,Homecare
Cambridgeshire County Council,06-Dec-22,51301896521,856.80,MEADOWS HOMECARE SERVICES,CARE ESTABLISHMENT,OPPD - Cost of Care - City South - Over 65,Older People - City & South - Care,Homecare
Cambridgeshire County Council,06-Dec-22,51301896521,856.80,MEADOWS HOMECARE SERVICES,CARE ESTABLISHMENT,OPPD - Cost of Care - City South - Over 65,Older People - City & South - Care,Homecare
Cambridgeshire County Council,06-Dec-22,51301896521,856.80,MEADOWS HOMECARE SERVICES,CARE ESTABLISHMENT,OPPD - Cost of Care - City South - Over 65,Older People - City & South - Care,Homecare
Cambridgeshire County Council,06-Dec-22,51301896521,856.80,MEADOWS HOMECARE SERVICES,CARE ESTABLISHMENT,OPPD - Cost of Care - City South - Over 65,Older People - City & South - Care,Homecare
Cambridgeshire County Council,06-Dec-22,51301896521,856.80,MEADOWS HOMECARE SERVICES,CARE ESTABLISHMENT,OPPD - Cost of Care - City South - Over 65,Older People - City & South - Care,Homecare
Cambridgeshire County Council,06-Dec-22,51301896521,856.80,MEADOWS HOMECARE SERVICES,CARE ESTABLISHMENT,OPPD - Cost of Care - City South - Over 65,Older People - City & South - Care,Homecare
Cambridgeshire County Council,06-Dec-22,51301896521,856.80,MEADOWS HOMECARE SERVICES,CARE ESTABLISHMENT,OPPD - Cost of Care - City South - Over 65,Older People - City & South - Care,Homecare
Cambridgeshire County Council,06-Dec-22,51301896521,856.80,MEADOWS HOMECARE SERVICES,CARE ESTABLISHMENT,OPPD - Cost of Care - City South - Over 65,Older People - City & South - Care,Homecare
Cambridgeshire County Council,06-Dec-22,51301896521,856.80,MEADOWS HOMECARE SERVICES,CARE ESTABLISHMENT,OPPD - Cost of Care - City South - Over 65,Older People - City & South - Care,Homecare
Cambridgeshire County Council,06-Dec-22,51301896521,856.80,MEADOWS HOMECARE SERVICES,CARE ESTABLISHMENT,OPPD - Cost of Care - City South - Over 65,Older People - City & South - Care,Homecare
Cambridgeshire County Council,06-Dec-22,51301896521,856.80,MEADOWS HOMECARE SERVICES,CARE ESTABLISHMENT,OPPD - Cost of Care - City South - Over 65,Older People - City & South - Care,Homecare
Cambridgeshire County Council,06-Dec-22,51301896521,856.80,MEADOWS HOMECARE SERVICES,CARE ESTABLISHMENT,OPPD - Cost of Care - City South - Over 65,Older People - City & South - Care,Homecare
Cambridgeshire County Council,06-Dec-22,51301896521,856.80,MEADOWS HOMECARE SERVICES,CARE ESTABLISHMENT,OPPD - Cost of Care - City South - Over 65,Older People - City & South - Care,Homecare
Cambridgeshire County Council,06-Dec-22,51301896521,856.80,MEADOWS HOMECARE SERVICES,CARE ESTABLISHMENT,OPPD - Cost of Care - City South - Over 65,Older People - City & South - Care,Homecare
Cambridgeshire County Council,06-Dec-22,51301896521,856.80,MEADOWS HOMECARE SERVICES,CARE ESTABLISHMENT,OPPD - Cost of Care - City South - Over 65,Older People - City & South - Care,Homecare
Cambridgeshire County Council,06-Dec-22,51301896521,856.80,MEADOWS HOMECARE SERVICES,CARE ESTABLISHMENT,OPPD - Cost of Care - City South - Over 65,Older People - City & South - Care,Homecare
Cambridgeshire County Council,06-Dec-22,51301896521,856.80,MEADOWS HOMECARE SERVICES,CARE ESTABLISHMENT,OPPD - Cost of Care - City South - Over 65,Older People - City & South - Care,Homecare
Cambridgeshire County Council,06-Dec-22,51301896521,856.80,MEADOWS HOMECARE SERVICES,CARE ESTABLISHMENT,OPPD - Cost of Care - City South - Over 65,Older People - City & South - Care,Homecare
Cambridgeshire County Council,06-Dec-22,51301896521,856.80,MEADOWS HOMECARE SERVICES,CARE ESTABLISHMENT,OPPD - Cost of Care - City South - Over 65,Older People - City & South - Care,Homecare
Cambridgeshire County Council,06-Dec-22,51301896521,856.80,MEADOWS HOMECARE SERVICES,CARE ESTABLISHMENT,OPPD - Cost of Care - City South - Over 65,Older People - City & South - Care,Homecare
Cambridgeshire County Council,06-Dec-22,51301896521,856.80,MEADOWS HOMECARE SERVICES,CARE ESTABLISHMENT,OPPD - Cost of Care - City South - Over 65,Older People - City & South - Care,Homecare
Cambridgeshire County Council,06-Dec-22,51301896521,856.80,MEADOWS HOMECARE SERVICES,CARE ESTABLISHMENT,OPPD - Cost of Care - City South - Over 65,Older People - City & South - Care,Homecare
Cambridgeshire County Council,06-Dec-22,51301896521,856.80,MEADOWS HOMECARE SERVICES,CARE ESTABLISHMENT,OPPD - Cost of Care - City South - Over 65,Older People - City & South - Care,Homecare
Cambridgeshire County Council,07-Dec-22,51301896866,"-59,785.70",Key Living Project,CARE ESTABLISHMENT,LAC Placements,Placements - residential homes,Agency Placements - Out of  County
Cambridgeshire County Council,07-Dec-22,51301896879,"-25,275.12",Acorn Care & Education Ltd,EDUCATION,LAC Placements,Placements - residential homes,Agency Placements - Out of  County
Cambridgeshire County Council,07-Dec-22,51301896881,"-25,275.12",Acorn Care & Education Ltd,EDUCATION,LAC Placements,Placements - residential homes,Agency Placements - Out of  County
Cambridgeshire County Council,07-Dec-22,51301896323,"-21,364.13",MORGAN SINDALL CONSTRUCTION & INFRASTRUCTURE LTD,COMPANY,Alconbury Weald secondary and Special,Alconbury Weald secondary and Special,"New Construction, Conversion and Renovation"
Cambridgeshire County Council,07-Dec-22,51301896880,"-21,062.60",Acorn Care & Education Ltd,EDUCATION,LAC Placements,Placements - residential homes,Agency Placements - Out of  County
Cambridgeshire County Council,07-Dec-22,51301896882,"-21,062.60",Acorn Care & Education Ltd,EDUCATION,LAC Placements,Placements - residential homes,Agency Placements - Out of  County
Cambridgeshire County Council,07-Dec-22,51301896522,"-17,997.78",NUTLEY HALL,CARE ESTABLISHMENT,LD - East Locality - Cost of Care,LD - East Cambs - Care,Residential Care
Cambridgeshire County Council,07-Dec-22,51301896522,-797.50,NUTLEY HALL,CARE ESTABLISHMENT,LD - East Locality - Cost of Care,LD - East Cambs - Care,Residential Care
Cambridgeshire County Council,07-Dec-22,51301896517,-749.48,ALAN ATCHISON RESIDENTIAL SERVICES (DAVIDS CLOSE 2),CARE ESTABLISHMENT,LD - Hunts Locality - Cost of Care,LD - Huntingdonshire - Care,Residential Care
Cambridgeshire County Council,07-Dec-22,51301896517,-749.48,ALAN ATCHISON RESIDENTIAL SERVICES (DAVIDS CLOSE 2),CARE ESTABLISHMENT,LD - Hunts Locality - Cost of Care,LD - Huntingdonshire - Care,Residential Care
Cambridgeshire County Council,07-Dec-22,51301896517,-749.48,ALAN ATCHISON RESIDENTIAL SERVICES (DAVIDS CLOSE 2),CARE ESTABLISHMENT,LD - Hunts Locality - Cost of Care,LD - Huntingdonshire - Care,Residential Care
Cambridgeshire County Council,07-Dec-22,51301896517,-749.48,ALAN ATCHISON RESIDENTIAL SERVICES (DAVIDS CLOSE 2),CARE ESTABLISHMENT,LD - Hunts Locality - Cost of Care,LD - Huntingdonshire - Care,Residential Care
Cambridgeshire County Council,07-Dec-22,51301896517,-749.48,ALAN ATCHISON RESIDENTIAL SERVICES (DAVIDS CLOSE 2),CARE ESTABLISHMENT,LD - Hunts Locality - Cost of Care,LD - Huntingdonshire - Care,Residential Care
Cambridgeshire County Council,07-Dec-22,51301896517,-749.48,ALAN ATCHISON RESIDENTIAL SERVICES (DAVIDS CLOSE 2),CARE ESTABLISHMENT,LD - Hunts Locality - Cost of Care,LD - Huntingdonshire - Care,Residential Care
Cambridgeshire County Council,07-Dec-22,51301896517,-749.48,ALAN ATCHISON RESIDENTIAL SERVICES (DAVIDS CLOSE 2),CARE ESTABLISHMENT,LD - Hunts Locality - Cost of Care,LD - Huntingdonshire - Care,Residential Care
Cambridgeshire County Council,07-Dec-22,51301896517,-749.48,ALAN ATCHISON RESIDENTIAL SERVICES (DAVIDS CLOSE 2),CARE ESTABLISHMENT,LD - Hunts Locality - Cost of Care,LD - Huntingdonshire - Care,Residential Care
Cambridgeshire County Council,07-Dec-22,51301896517,-749.48,ALAN ATCHISON RESIDENTIAL SERVICES (DAVIDS CLOSE 2),CARE ESTABLISHMENT,LD - Hunts Locality - Cost of Care,LD - Huntingdonshire - Care,Residential Care
Cambridgeshire County Council,07-Dec-22,51301896517,-749.48,ALAN ATCHISON RESIDENTIAL SERVICES (DAVIDS CLOSE 2),CARE ESTABLISHMENT,LD - Hunts Locality - Cost of Care,LD - Huntingdonshire - Care,Residential Care
Cambridgeshire County Council,07-Dec-22,51301896517,-749.48,ALAN ATCHISON RESIDENTIAL SERVICES (DAVIDS CLOSE 2),CARE ESTABLISHMENT,LD - Hunts Locality - Cost of Care,LD - Huntingdonshire - Care,Residential Care
Cambridgeshire County Council,07-Dec-22,51301896517,-749.48,ALAN ATCHISON RESIDENTIAL SERVICES (DAVIDS CLOSE 2),CARE ESTABLISHMENT,LD - Hunts Locality - Cost of Care,LD - Huntingdonshire - Care,Residential Care
Cambridgeshire County Council,07-Dec-22,51301896517,-749.48,ALAN ATCHISON RESIDENTIAL SERVICES (DAVIDS CLOSE 2),CARE ESTABLISHMENT,LD - Hunts Locality - Cost of Care,LD - Huntingdonshire - Care,Residential Care
Cambridgeshire County Council,07-Dec-22,51301896517,-749.48,ALAN ATCHISON RESIDENTIAL SERVICES (DAVIDS CLOSE 2),CARE ESTABLISHMENT,LD - Hunts Locality - Cost of Care,LD - Huntingdonshire - Care,Residential Care
Cambridgeshire County Council,07-Dec-22,51301896517,-749.48,ALAN ATCHISON RESIDENTIAL SERVICES (DAVIDS CLOSE 2),CARE ESTABLISHMENT,LD - Hunts Locality - Cost of Care,LD - Huntingdonshire - Care,Residential Care
Cambridgeshire County Council,07-Dec-22,51301896517,-749.48,ALAN ATCHISON RESIDENTIAL SERVICES (DAVIDS CLOSE 2),CARE ESTABLISHMENT,LD - Hunts Locality - Cost of Care,LD - Huntingdonshire - Care,Residential Care
Cambridgeshire County Council,07-Dec-22,51301896517,-749.48,ALAN ATCHISON RESIDENTIAL SERVICES (DAVIDS CLOSE 2),CARE ESTABLISHMENT,LD - Hunts Locality - Cost of Care,LD - Huntingdonshire - Care,Residential Care
Cambridgeshire County Council,07-Dec-22,51301896517,-749.48,ALAN ATCHISON RESIDENTIAL SERVICES (DAVIDS CLOSE 2),CARE ESTABLISHMENT,LD - Hunts Locality - Cost of Care,LD - Huntingdonshire - Care,Residential Care
Cambridgeshire County Council,07-Dec-22,51301896517,-749.48,ALAN ATCHISON RESIDENTIAL SERVICES (DAVIDS CLOSE 2),CARE ESTABLISHMENT,LD - Hunts Locality - Cost of Care,LD - Huntingdonshire - Care,Residential Care
Cambridgeshire County Council,07-Dec-22,51301896517,-749.48,ALAN ATCHISON RESIDENTIAL SERVICES (DAVIDS CLOSE 2),CARE ESTABLISHMENT,LD - Hunts Locality - Cost of Care,LD - Huntingdonshire - Care,Residential Care
Cambridgeshire County Council,07-Dec-22,51301896517,-749.48,ALAN ATCHISON RESIDENTIAL SERVICES (DAVIDS CLOSE 2),CARE ESTABLISHMENT,LD - Hunts Locality - Cost of Care,LD - Huntingdonshire - Care,Residential Care
Cambridgeshire County Council,07-Dec-22,51301896517,-749.48,ALAN ATCHISON RESIDENTIAL SERVICES (DAVIDS CLOSE 2),CARE ESTABLISHMENT,LD - Hunts Locality - Cost of Care,LD - Huntingdonshire - Care,Residential Care
Cambridgeshire County Council,07-Dec-22,51301896517,-749.48,ALAN ATCHISON RESIDENTIAL SERVICES (DAVIDS CLOSE 2),CARE ESTABLISHMENT,LD - Hunts Locality - Cost of Care,LD - Huntingdonshire - Care,Residential Care
Cambridgeshire County Council,07-Dec-22,51301896517,-749.48,ALAN ATCHISON RESIDENTIAL SERVICES (DAVIDS CLOSE 2),CARE ESTABLISHMENT,LD - Hunts Locality - Cost of Care,LD - Huntingdonshire - Care,Residential Care
Cambridgeshire County Council,07-Dec-22,51301896517,-749.48,ALAN ATCHISON RESIDENTIAL SERVICES (DAVIDS CLOSE 2),CARE ESTABLISHMENT,LD - Hunts Locality - Cost of Care,LD - Huntingdonshire - Care,Residential Care
Cambridgeshire County Council,07-Dec-22,51301896517,-749.48,ALAN ATCHISON RESIDENTIAL SERVICES (DAVIDS CLOSE 2),CARE ESTABLISHMENT,LD - Hunts Locality - Cost of Care,LD - Huntingdonshire - Care,Residential Care
Cambridgeshire County Council,07-Dec-22,51301896517,-749.48,ALAN ATCHISON RESIDENTIAL SERVICES (DAVIDS CLOSE 2),CARE ESTABLISHMENT,LD - Hunts Locality - Cost of Care,LD - Huntingdonshire - Care,Residential Care
Cambridgeshire County Council,07-Dec-22,51301896517,-749.48,ALAN ATCHISON RESIDENTIAL SERVICES (DAVIDS CLOSE 2),CARE ESTABLISHMENT,LD - Hunts Locality - Cost of Care,LD - Huntingdonshire - Care,Residential Care
Cambridgeshire County Council,07-Dec-22,51301896517,-749.48,ALAN ATCHISON RESIDENTIAL SERVICES (DAVIDS CLOSE 2),CARE ESTABLISHMENT,LD - Hunts Locality - Cost of Care,LD - Huntingdonshire - Care,Residential Care
Cambridgeshire County Council,07-Dec-22,51301896517,-749.48,ALAN ATCHISON RESIDENTIAL SERVICES (DAVIDS CLOSE 2),CARE ESTABLISHMENT,LD - Hunts Locality - Cost of Care,LD - Huntingdonshire - Care,Residential Care
Cambridgeshire County Council,07-Dec-22,51301896517,-749.48,ALAN ATCHISON RESIDENTIAL SERVICES (DAVIDS CLOSE 2),CARE ESTABLISHMENT,LD - Hunts Locality - Cost of Care,LD - Huntingdonshire - Care,Residential Care
Cambridgeshire County Council,07-Dec-22,51301896517,-749.48,ALAN ATCHISON RESIDENTIAL SERVICES (DAVIDS CLOSE 2),CARE ESTABLISHMENT,LD - Hunts Locality - Cost of Care,LD - Huntingdonshire - Care,Residential Care
Cambridgeshire County Council,07-Dec-22,51301896517,-749.48,ALAN ATCHISON RESIDENTIAL SERVICES (DAVIDS CLOSE 2),CARE ESTABLISHMENT,LD - Hunts Locality - Cost of Care,LD - Huntingdonshire - Care,Residential Care
Cambridgeshire County Council,07-Dec-22,51301896517,-749.48,ALAN ATCHISON RESIDENTIAL SERVICES (DAVIDS CLOSE 2),CARE ESTABLISHMENT,LD - Hunts Locality - Cost of Care,LD - Huntingdonshire - Care,Residential Care
Cambridgeshire County Council,07-Dec-22,51301896517,-749.48,ALAN ATCHISON RESIDENTIAL SERVICES (DAVIDS CLOSE 2),CARE ESTABLISHMENT,LD - Hunts Locality - Cost of Care,LD - Huntingdonshire - Care,Residential Care
Cambridgeshire County Council,07-Dec-22,51301896517,-749.48,ALAN ATCHISON RESIDENTIAL SERVICES (DAVIDS CLOSE 2),CARE ESTABLISHMENT,LD - Hunts Locality - Cost of Care,LD - Huntingdonshire - Care,Residential Care
Cambridgeshire County Council,07-Dec-22,51301896517,-749.48,ALAN ATCHISON RESIDENTIAL SERVICES (DAVIDS CLOSE 2),CARE ESTABLISHMENT,LD - Hunts Locality - Cost of Care,LD - Huntingdonshire - Care,Residential Care
Cambridgeshire County Council,07-Dec-22,51301896517,-749.48,ALAN ATCHISON RESIDENTIAL SERVICES (DAVIDS CLOSE 2),CARE ESTABLISHMENT,LD - Hunts Locality - Cost of Care,LD - Huntingdonshire - Care,Residential Care
Cambridgeshire County Council,07-Dec-22,51301896517,-749.48,ALAN ATCHISON RESIDENTIAL SERVICES (DAVIDS CLOSE 2),CARE ESTABLISHMENT,LD - Hunts Locality - Cost of Care,LD - Huntingdonshire - Care,Residential Care
Cambridgeshire County Council,07-Dec-22,51301896512,-748.98,PRIME LIFE LTD,CARE ESTABLISHMENT,LD - Hunts Locality - Cost of Care,LD - Huntingdonshire - Care,Residential Care
Cambridgeshire County Council,07-Dec-22,51301896512,-748.98,PRIME LIFE LTD,CARE ESTABLISHMENT,LD - Hunts Locality - Cost of Care,LD - Huntingdonshire - Care,Residential Care
Cambridgeshire County Council,07-Dec-22,51301896512,-748.98,PRIME LIFE LTD,CARE ESTABLISHMENT,LD - Hunts Locality - Cost of Care,LD - Huntingdonshire - Care,Residential Care
Cambridgeshire County Council,07-Dec-22,51301896512,-748.98,PRIME LIFE LTD,CARE ESTABLISHMENT,LD - Hunts Locality - Cost of Care,LD - Huntingdonshire - Care,Residential Care
Cambridgeshire County Council,07-Dec-22,51301896512,-748.98,PRIME LIFE LTD,CARE ESTABLISHMENT,LD - Hunts Locality - Cost of Care,LD - Huntingdonshire - Care,Residential Care
Cambridgeshire County Council,07-Dec-22,51301896512,-748.98,PRIME LIFE LTD,CARE ESTABLISHMENT,LD - Hunts Locality - Cost of Care,LD - Huntingdonshire - Care,Residential Care
Cambridgeshire County Council,07-Dec-22,51301896512,-748.98,PRIME LIFE LTD,CARE ESTABLISHMENT,LD - Hunts Locality - Cost of Care,LD - Huntingdonshire - Care,Residential Care
Cambridgeshire County Council,07-Dec-22,51301896512,-748.98,PRIME LIFE LTD,CARE ESTABLISHMENT,LD - Hunts Locality - Cost of Care,LD - Huntingdonshire - Care,Residential Care
Cambridgeshire County Council,07-Dec-22,51301896512,-748.98,PRIME LIFE LTD,CARE ESTABLISHMENT,LD - Hunts Locality - Cost of Care,LD - Huntingdonshire - Care,Residential Care
Cambridgeshire County Council,07-Dec-22,51301896512,-748.98,PRIME LIFE LTD,CARE ESTABLISHMENT,LD - Hunts Locality - Cost of Care,LD - Huntingdonshire - Care,Residential Care
Cambridgeshire County Council,07-Dec-22,51301896512,-748.98,PRIME LIFE LTD,CARE ESTABLISHMENT,LD - Hunts Locality - Cost of Care,LD - Huntingdonshire - Care,Residential Care
Cambridgeshire County Council,07-Dec-22,51301896512,-748.98,PRIME LIFE LTD,CARE ESTABLISHMENT,LD - Hunts Locality - Cost of Care,LD - Huntingdonshire - Care,Residential Care
Cambridgeshire County Council,07-Dec-22,51301896512,-748.98,PRIME LIFE LTD,CARE ESTABLISHMENT,LD - Hunts Locality - Cost of Care,LD - Huntingdonshire - Care,Residential Care
Cambridgeshire County Council,07-Dec-22,51301896512,-748.98,PRIME LIFE LTD,CARE ESTABLISHMENT,LD - Hunts Locality - Cost of Care,LD - Huntingdonshire - Care,Residential Care
Cambridgeshire County Council,07-Dec-22,51301896512,-748.98,PRIME LIFE LTD,CARE ESTABLISHMENT,LD - Hunts Locality - Cost of Care,LD - Huntingdonshire - Care,Residential Care
Cambridgeshire County Council,07-Dec-22,51301896512,-748.98,PRIME LIFE LTD,CARE ESTABLISHMENT,LD - Hunts Locality - Cost of Care,LD - Huntingdonshire - Care,Residential Care
Cambridgeshire County Council,07-Dec-22,51301896512,-748.98,PRIME LIFE LTD,CARE ESTABLISHMENT,LD - Hunts Locality - Cost of Care,LD - Huntingdonshire - Care,Residential Care
Cambridgeshire County Council,07-Dec-22,51301896512,-748.98,PRIME LIFE LTD,CARE ESTABLISHMENT,LD - Hunts Locality - Cost of Care,LD - Huntingdonshire - Care,Residential Care
Cambridgeshire County Council,07-Dec-22,51301896512,-748.98,PRIME LIFE LTD,CARE ESTABLISHMENT,LD - Hunts Locality - Cost of Care,LD - Huntingdonshire - Care,Residential Care
Cambridgeshire County Council,07-Dec-22,51301896512,-748.98,PRIME LIFE LTD,CARE ESTABLISHMENT,LD - Hunts Locality - Cost of Care,LD - Huntingdonshire - Care,Residential Care
Cambridgeshire County Council,07-Dec-22,51301896512,-748.98,PRIME LIFE LTD,CARE ESTABLISHMENT,LD - Hunts Locality - Cost of Care,LD - Huntingdonshire - Care,Residential Care
Cambridgeshire County Council,07-Dec-22,51301896512,-748.98,PRIME LIFE LTD,CARE ESTABLISHMENT,LD - Hunts Locality - Cost of Care,LD - Huntingdonshire - Care,Residential Care
Cambridgeshire County Council,07-Dec-22,51301896512,-748.98,PRIME LIFE LTD,CARE ESTABLISHMENT,LD - Hunts Locality - Cost of Care,LD - Huntingdonshire - Care,Residential Care
Cambridgeshire County Council,07-Dec-22,51301896512,-748.98,PRIME LIFE LTD,CARE ESTABLISHMENT,LD - Hunts Locality - Cost of Care,LD - Huntingdonshire - Care,Residential Care
Cambridgeshire County Council,07-Dec-22,51301896512,-748.98,PRIME LIFE LTD,CARE ESTABLISHMENT,LD - Hunts Locality - Cost of Care,LD - Huntingdonshire - Care,Residential Care
Cambridgeshire County Council,07-Dec-22,51301896512,-748.98,PRIME LIFE LTD,CARE ESTABLISHMENT,LD - Hunts Locality - Cost of Care,LD - Huntingdonshire - Care,Residential Care
Cambridgeshire County Council,07-Dec-22,51301896512,-748.98,PRIME LIFE LTD,CARE ESTABLISHMENT,LD - Hunts Locality - Cost of Care,LD - Huntingdonshire - Care,Residential Care
Cambridgeshire County Council,07-Dec-22,51301896512,-748.98,PRIME LIFE LTD,CARE ESTABLISHMENT,LD - Hunts Locality - Cost of Care,LD - Huntingdonshire - Care,Residential Care
Cambridgeshire County Council,07-Dec-22,51301896512,-748.98,PRIME LIFE LTD,CARE ESTABLISHMENT,LD - Hunts Locality - Cost of Care,LD - Huntingdonshire - Care,Residential Care
Cambridgeshire County Council,07-Dec-22,51301896512,-748.98,PRIME LIFE LTD,CARE ESTABLISHMENT,LD - Hunts Locality - Cost of Care,LD - Huntingdonshire - Care,Residential Care
Cambridgeshire County Council,07-Dec-22,51301896512,-748.98,PRIME LIFE LTD,CARE ESTABLISHMENT,LD - Hunts Locality - Cost of Care,LD - Huntingdonshire - Care,Residential Care
Cambridgeshire County Council,07-Dec-22,51301896512,-748.98,PRIME LIFE LTD,CARE ESTABLISHMENT,LD - Hunts Locality - Cost of Care,LD - Huntingdonshire - Care,Residential Care
Cambridgeshire County Council,07-Dec-22,51301896512,-748.98,PRIME LIFE LTD,CARE ESTABLISHMENT,LD - Hunts Locality - Cost of Care,LD - Huntingdonshire - Care,Residential Care
Cambridgeshire County Council,07-Dec-22,51301896512,-748.98,PRIME LIFE LTD,CARE ESTABLISHMENT,LD - Hunts Locality - Cost of Care,LD - Huntingdonshire - Care,Residential Care
Cambridgeshire County Council,07-Dec-22,51301896512,-748.98,PRIME LIFE LTD,CARE ESTABLISHMENT,LD - Hunts Locality - Cost of Care,LD - Huntingdonshire - Care,Residential Care
Cambridgeshire County Council,07-Dec-22,51301896512,-748.98,PRIME LIFE LTD,CARE ESTABLISHMENT,LD - Hunts Locality - Cost of Care,LD - Huntingdonshire - Care,Residential Care
Cambridgeshire County Council,07-Dec-22,51301896512,-748.98,PRIME LIFE LTD,CARE ESTABLISHMENT,LD - Hunts Locality - Cost of Care,LD - Huntingdonshire - Care,Residential Care
Cambridgeshire County Council,07-Dec-22,51301896512,-748.98,PRIME LIFE LTD,CARE ESTABLISHMENT,LD - Hunts Locality - Cost of Care,LD - Huntingdonshire - Care,Residential Care
Cambridgeshire County Council,07-Dec-22,51301896512,-748.98,PRIME LIFE LTD,CARE ESTABLISHMENT,LD - Hunts Locality - Cost of Care,LD - Huntingdonshire - Care,Residential Care
Cambridgeshire County Council,07-Dec-22,51301896522,-569.64,NUTLEY HALL,CARE ESTABLISHMENT,LD - East Locality - Cost of Care,LD - East Cambs - Care,Residential Care
Cambridgeshire County Council,07-Dec-22,51301896231,510.00,Redacted Personal Data,FOSTER PARENT,Fostering,FCP allowances,Adoption Allowances
Cambridgeshire County Council,07-Dec-22,51301896183,510.00,Redacted Personal Data,INDIVIDUAL,Fostering,FCP allowances,Support and Grants to Foster Carers
Cambridgeshire County Council,07-Dec-22,51301896214,510.00,Redacted Personal Data,FOSTER PARENT,Fostering,FCP allowances,Living support grants
Cambridgeshire County Council,07-Dec-22,51301896186,510.00,Redacted Personal Data,INDIVIDUAL,Fostering,FCP allowances,Support and Grants to Foster Carers
Cambridgeshire County Council,07-Dec-22,51301896213,510.00,Redacted Personal Data,FOSTER PARENT,Fostering,FCP allowances,Living support grants
Cambridgeshire County Council,07-Dec-22,51301896598,516.00,IMPERIAL COLLEGE PROJECTS LIMITED,TRADE SUPPLIER,Coroners,Coroners General,Testing
Cambridgeshire County Council,07-Dec-22,51301883540,517.00,Permobil LTD,COMPANY,LD - Young Adults Team,LD - Young Adults - Care,Specialist Servicing and Maintenance
Cambridgeshire County Council,07-Dec-22,51301896330,520.00,Multi-Active,COMPANY,Early Years Service - HAF,HAF Grant,Care & Ed Childcare Settings
Cambridgeshire County Council,07-Dec-22,51301896671,525.00,Redacted Personal Data,INDIVIDUAL,LD - Hunts Locality - Cost of Care,LD - Huntingdonshire - Care,Rehabilitation And Respite Care
Cambridgeshire County Council,07-Dec-22,51301883071,525.80,CAW Services,COMPANY,Strategic Management - Adults,Service Director - Adults and Safeguarding,Specialist Equipment For Service Delivery
Cambridgeshire County Council,07-Dec-22,51301896198,532.00,Redacted Personal Data,INDIVIDUAL,Fostering,FCP allowances,Living support grants
Cambridgeshire County Council,07-Dec-22,51301878771,533.95,CCS MEDIA LIMITED,TRADE SUPPLIER,ICT Service,ICT Service Sales,Materials for resale
Cambridgeshire County Council,07-Dec-22,51301883017,543.60,BRYAN LECOCHE LTD,TRADE SUPPLIER,Highways General,Highways,External Legal Fees
Cambridgeshire County Council,07-Dec-22,51301896814,552.00,IMPERIAL COLLEGE PROJECTS LIMITED,TRADE SUPPLIER,Coroners,Coroners General,Testing
Cambridgeshire County Council,07-Dec-22,51301896673,554.80,Redacted Personal Data,INDIVIDUAL,LD - Fenland Locality - Cost of Care,LD - Fenland  - Care,Day Care
Cambridgeshire County Council,07-Dec-22,51301896915,568.00,IMPERIAL COLLEGE PROJECTS LIMITED,TRADE SUPPLIER,Coroners,Coroners General,Testing
Cambridgeshire County Council,07-Dec-22,51301896522,569.64,NUTLEY HALL,CARE ESTABLISHMENT,LD - East Locality - Cost of Care,LD - East Cambs - Care,Residential Care
Cambridgeshire County Council,07-Dec-22,51301882141,573.90,Pathfinder Legal Services Limited,TRADE SUPPLIER,Highways General,Highways,External Legal Fees
Cambridgeshire County Council,07-Dec-22,51301888383,576.00,Blossoms Play Therapy,EDUCATION,SEND Specialist Services - Sensory Support,Sensory Support 0 - 25,Non-Curriculum expenses
Cambridgeshire County Council,07-Dec-22,51301896352,583.34,AXIOM CARE LTD,CARE ESTABLISHMENT,Adults Commissioning-extra Care & DP,Extra Care,Supporting People
Cambridgeshire County Council,07-Dec-22,51301878789,587.54,CCS MEDIA LIMITED,TRADE SUPPLIER,ICT Service,ICT Service Sales,Materials for resale
Cambridgeshire County Council,07-Dec-22,51301896770,594.00,NATIONAL TEACHING & ADVISORY SERVICE FOR LOOKED AFTER CHILDREN (NT & AS),OTHER PUBLIC BODIES,Out of School Tuition,Out of School Provision - Education and Settings,Independent School Placements
Cambridgeshire County Council,07-Dec-22,51301896935,600.00,Redacted Personal Data,PARENT/GUARDIAN,Children's Disability Direct Payments,CSC Direct Payments,Direct Payments
Cambridgeshire County Council,07-Dec-22,51301885932,604.80,Apex,CARE ESTABLISHMENT,Adoption Allowances,Adoption Allowances,Adoption Allowances
Cambridgeshire County Council,07-Dec-22,51301896301,607.00,Active Play Education - C/O The Isle of Ely Primary School,EDUCATION,Early Years Service - HAF,HAF Grant,Care & Ed Childcare Settings
Cambridgeshire County Council,07-Dec-22,51301894413,610.32,Pathfinder Legal Services Limited,TRADE SUPPLIER,Highways General,Highways,External Legal Fees
Cambridgeshire County Council,07-Dec-22,51301896684,624.00,NATIONAL TEACHING & ADVISORY SERVICE FOR LOOKED AFTER CHILDREN (NT & AS),OTHER PUBLIC BODIES,Out of School Tuition,Out of School Provision - Education and Settings,Independent School Placements
Cambridgeshire County Council,07-Dec-22,51301896528,638.00,IMPERIAL COLLEGE PROJECTS LIMITED,TRADE SUPPLIER,Coroners,Coroners General,Testing
Cambridgeshire County Council,07-Dec-22,51301893631,638.55,PURCHASE POWER,TRADE SUPPLIER,Information Management,Resources Franking Machine,Postage & Carriage
Cambridgeshire County Council,07-Dec-22,51301896519,642.86,WOODLANDS CARE CENTRE,CARE ESTABLISHMENT,OPMH - City & South,Older People Mental Health City & South,Nursing Care
Cambridgeshire County Council,07-Dec-22,51301896674,655.20,Redacted Personal Data,INDIVIDUAL,LD - Fenland Locality - Cost of Care,LD - Fenland  - Care,Rehabilitation And Respite Care
Cambridgeshire County Council,07-Dec-22,51301896348,666.67,MEARS CARE LTD,CARE ESTABLISHMENT,Adults Commissioning-extra Care & DP,Extra Care,Supporting People
Cambridgeshire County Council,07-Dec-22,51301896347,691.67,RADIS COMMUNITY CARE,CARE ESTABLISHMENT,Adults Commissioning-extra Care & DP,Extra Care,Supporting People
Cambridgeshire County Council,07-Dec-22,65300017549,700.00,Redacted Personal Data,INDIVIDUAL,Control Accounts,Bank Account - Payables,Bank Account - Payables
Cambridgeshire County Council,07-Dec-22,51301896513,700.00,HARDWICK DENE,CARE ESTABLISHMENT,OPPD - Cost of Care - Huntingdon - Over 65,Hunts OP Team - Care,Residential Care
Cambridgeshire County Council,07-Dec-22,51301896513,700.00,HARDWICK DENE,CARE ESTABLISHMENT,OPPD - Cost of Care - Huntingdon - Over 65,Hunts OP Team - Care,Residential Care
Cambridgeshire County Council,07-Dec-22,51301896513,700.00,HARDWICK DENE,CARE ESTABLISHMENT,OPPD - Cost of Care - Huntingdon - Over 65,Hunts OP Team - Care,Residential Care
Cambridgeshire County Council,07-Dec-22,51301896513,700.00,HARDWICK DENE,CARE ESTABLISHMENT,OPPD - Cost of Care - Huntingdon - Over 65,Hunts OP Team - Care,Residential Care
Cambridgeshire County Council,07-Dec-22,51301896513,700.00,HARDWICK DENE,CARE ESTABLISHMENT,OPPD - Cost of Care - Huntingdon - Over 65,Hunts OP Team - Care,Residential Care
Cambridgeshire County Council,07-Dec-22,51301896513,700.00,HARDWICK DENE,CARE ESTABLISHMENT,OPPD - Cost of Care - Huntingdon - Over 65,Hunts OP Team - Care,Residential Care
Cambridgeshire County Council,07-Dec-22,65300017551,700.00,Redacted Personal Data,INDIVIDUAL,Control Accounts,Bank Account - Payables,Bank Account - Payables
Cambridgeshire County Council,07-Dec-22,65300017551,700.00,Redacted Personal Data,INDIVIDUAL,Control Accounts,Bank Account - Payables,Bank Account - Payables
Cambridgeshire County Council,07-Dec-22,65300017551,700.00,Redacted Personal Data,INDIVIDUAL,Control Accounts,Bank Account - Payables,Bank Account - Payables
Cambridgeshire County Council,07-Dec-22,65300017551,700.00,Redacted Personal Data,INDIVIDUAL,Control Accounts,Bank Account - Payables,Bank Account - Payables
Cambridgeshire County Council,07-Dec-22,51301896734,702.00,NATIONAL TEACHING & ADVISORY SERVICE FOR LOOKED AFTER CHILDREN (NT & AS),OTHER PUBLIC BODIES,Out of School Tuition,Out of School Provision - Education and Settings,Independent School Placements
Cambridgeshire County Council,07-Dec-22,51301896649,702.00,NATIONAL TEACHING & ADVISORY SERVICE FOR LOOKED AFTER CHILDREN (NT & AS),OTHER PUBLIC BODIES,Out of School Tuition,Out of School Provision - Education and Settings,Independent School Placements
Cambridgeshire County Council,07-Dec-22,51301896904,720.00,NATIONAL TEACHING & ADVISORY SERVICE FOR LOOKED AFTER CHILDREN (NT & AS),OTHER PUBLIC BODIES,Out of School Tuition,Out of School Provision - Education and Settings,Independent School Placements
Cambridgeshire County Council,07-Dec-22,51301896372,720.00,TJ Kids CIC,COMPANY,Early Years Service - HAF,HAF Grant,Care & Ed Childcare Settings
Cambridgeshire County Council,07-Dec-22,51301896523,720.00,Redacted Personal Data,PARENT/GUARDIAN,Children's Disability Direct Payments,CSC Direct Payments,Direct Payments
Cambridgeshire County Council,07-Dec-22,51301896199,736.00,Redacted Personal Data,INDIVIDUAL,Fostering,FCP allowances,Living support grants
Cambridgeshire County Council,07-Dec-22,51301896223,736.00,Redacted Personal Data,FOSTER PARENT,Fostering,FCP allowances,Living support grants
Cambridgeshire County Council,07-Dec-22,51301896224,736.00,Redacted Personal Data,FOSTER PARENT,Fostering,FCP allowances,Living support grants
Cambridgeshire County Council,07-Dec-22,51301896200,736.00,Redacted Personal Data,INDIVIDUAL,Fostering,FCP allowances,Living support grants
Cambridgeshire County Council,07-Dec-22,51301896387,736.93,BOLINDA UK LTD,TRADE SUPPLIER,Libraries - Stock & Distribution,Support - Stock & Distribution,Books and Multimedia Supplies
Cambridgeshire County Council,07-Dec-22,51301896299,741.00,Redacted Personal Data,PARENT/GUARDIAN,Children's Disability Direct Payments,CSC Direct Payments,Direct Payments
Cambridgeshire County Council,07-Dec-22,51301896515,750.00,FARRINGTON CARE HOMES LTD T/A WOODLANDS RESIDENTIAL CARE HOME,CARE ESTABLISHMENT,OPPD - Cost of Care - Huntingdon - Over 65,Hunts OP Team - Care,Residential Care
Cambridgeshire County Council,07-Dec-22,51301896515,750.00,FARRINGTON CARE HOMES LTD T/A WOODLANDS RESIDENTIAL CARE HOME,CARE ESTABLISHMENT,OPPD - Cost of Care - Huntingdon - Over 65,Hunts OP Team - Care,Residential Care
Cambridgeshire County Council,07-Dec-22,51301896515,750.00,FARRINGTON CARE HOMES LTD T/A WOODLANDS RESIDENTIAL CARE HOME,CARE ESTABLISHMENT,OPPD - Cost of Care - Huntingdon - Over 65,Hunts OP Team - Care,Residential Care
Cambridgeshire County Council,07-Dec-22,51301896515,750.00,FARRINGTON CARE HOMES LTD T/A WOODLANDS RESIDENTIAL CARE HOME,CARE ESTABLISHMENT,OPPD - Cost of Care - Huntingdon - Over 65,Hunts OP Team - Care,Residential Care
Cambridgeshire County Council,07-Dec-22,51301896515,750.00,FARRINGTON CARE HOMES LTD T/A WOODLANDS RESIDENTIAL CARE HOME,CARE ESTABLISHMENT,OPPD - Cost of Care - Huntingdon - Over 65,Hunts OP Team - Care,Residential Care
Cambridgeshire County Council,07-Dec-22,51301896515,750.00,FARRINGTON CARE HOMES LTD T/A WOODLANDS RESIDENTIAL CARE HOME,CARE ESTABLISHMENT,OPPD - Cost of Care - Huntingdon - Over 65,Hunts OP Team - Care,Residential Care
Cambridgeshire County Council,07-Dec-22,51301896515,750.00,FARRINGTON CARE HOMES LTD T/A WOODLANDS RESIDENTIAL CARE HOME,CARE ESTABLISHMENT,OPPD - Cost of Care - Huntingdon - Over 65,Hunts OP Team - Care,Residential Care
Cambridgeshire County Council,07-Dec-22,51301896517,762.54,ALAN ATCHISON RESIDENTIAL SERVICES (DAVIDS CLOSE 2),CARE ESTABLISHMENT,LD - Hunts Locality - Cost of Care,LD - Huntingdonshire - Care,Residential Care
Cambridgeshire County Council,07-Dec-22,51301896517,762.54,ALAN ATCHISON RESIDENTIAL SERVICES (DAVIDS CLOSE 2),CARE ESTABLISHMENT,LD - Hunts Locality - Cost of Care,LD - Huntingdonshire - Care,Residential Care
Cambridgeshire County Council,07-Dec-22,51301896517,762.54,ALAN ATCHISON RESIDENTIAL SERVICES (DAVIDS CLOSE 2),CARE ESTABLISHMENT,LD - Hunts Locality - Cost of Care,LD - Huntingdonshire - Care,Residential Care
Cambridgeshire County Council,07-Dec-22,51301896517,762.54,ALAN ATCHISON RESIDENTIAL SERVICES (DAVIDS CLOSE 2),CARE ESTABLISHMENT,LD - Hunts Locality - Cost of Care,LD - Huntingdonshire - Care,Residential Care
Cambridgeshire County Council,07-Dec-22,51301896517,762.54,ALAN ATCHISON RESIDENTIAL SERVICES (DAVIDS CLOSE 2),CARE ESTABLISHMENT,LD - Hunts Locality - Cost of Care,LD - Huntingdonshire - Care,Residential Care
Cambridgeshire County Council,07-Dec-22,51301896517,762.54,ALAN ATCHISON RESIDENTIAL SERVICES (DAVIDS CLOSE 2),CARE ESTABLISHMENT,LD - Hunts Locality - Cost of Care,LD - Huntingdonshire - Care,Residential Care
Cambridgeshire County Council,07-Dec-22,51301896517,762.54,ALAN ATCHISON RESIDENTIAL SERVICES (DAVIDS CLOSE 2),CARE ESTABLISHMENT,LD - Hunts Locality - Cost of Care,LD - Huntingdonshire - Care,Residential Care
Cambridgeshire County Council,07-Dec-22,51301896517,762.54,ALAN ATCHISON RESIDENTIAL SERVICES (DAVIDS CLOSE 2),CARE ESTABLISHMENT,LD - Hunts Locality - Cost of Care,LD - Huntingdonshire - Care,Residential Care
Cambridgeshire County Council,07-Dec-22,51301896517,762.54,ALAN ATCHISON RESIDENTIAL SERVICES (DAVIDS CLOSE 2),CARE ESTABLISHMENT,LD - Hunts Locality - Cost of Care,LD - Huntingdonshire - Care,Residential Care
Cambridgeshire County Council,07-Dec-22,51301896517,762.54,ALAN ATCHISON RESIDENTIAL SERVICES (DAVIDS CLOSE 2),CARE ESTABLISHMENT,LD - Hunts Locality - Cost of Care,LD - Huntingdonshire - Care,Residential Care
Cambridgeshire County Council,07-Dec-22,51301896517,762.54,ALAN ATCHISON RESIDENTIAL SERVICES (DAVIDS CLOSE 2),CARE ESTABLISHMENT,LD - Hunts Locality - Cost of Care,LD - Huntingdonshire - Care,Residential Care
Cambridgeshire County Council,07-Dec-22,51301896517,762.54,ALAN ATCHISON RESIDENTIAL SERVICES (DAVIDS CLOSE 2),CARE ESTABLISHMENT,LD - Hunts Locality - Cost of Care,LD - Huntingdonshire - Care,Residential Care
Cambridgeshire County Council,07-Dec-22,51301896517,762.54,ALAN ATCHISON RESIDENTIAL SERVICES (DAVIDS CLOSE 2),CARE ESTABLISHMENT,LD - Hunts Locality - Cost of Care,LD - Huntingdonshire - Care,Residential Care
Cambridgeshire County Council,07-Dec-22,51301896517,762.54,ALAN ATCHISON RESIDENTIAL SERVICES (DAVIDS CLOSE 2),CARE ESTABLISHMENT,LD - Hunts Locality - Cost of Care,LD - Huntingdonshire - Care,Residential Care
Cambridgeshire County Council,07-Dec-22,51301896517,762.54,ALAN ATCHISON RESIDENTIAL SERVICES (DAVIDS CLOSE 2),CARE ESTABLISHMENT,LD - Hunts Locality - Cost of Care,LD - Huntingdonshire - Care,Residential Care
Cambridgeshire County Council,07-Dec-22,51301896517,762.54,ALAN ATCHISON RESIDENTIAL SERVICES (DAVIDS CLOSE 2),CARE ESTABLISHMENT,LD - Hunts Locality - Cost of Care,LD - Huntingdonshire - Care,Residential Care
Cambridgeshire County Council,07-Dec-22,51301896517,762.54,ALAN ATCHISON RESIDENTIAL SERVICES (DAVIDS CLOSE 2),CARE ESTABLISHMENT,LD - Hunts Locality - Cost of Care,LD - Huntingdonshire - Care,Residential Care
Cambridgeshire County Council,07-Dec-22,51301896517,762.54,ALAN ATCHISON RESIDENTIAL SERVICES (DAVIDS CLOSE 2),CARE ESTABLISHMENT,LD - Hunts Locality - Cost of Care,LD - Huntingdonshire - Care,Residential Care
Cambridgeshire County Council,07-Dec-22,51301896517,762.54,ALAN ATCHISON RESIDENTIAL SERVICES (DAVIDS CLOSE 2),CARE ESTABLISHMENT,LD - Hunts Locality - Cost of Care,LD - Huntingdonshire - Care,Residential Care
Cambridgeshire County Council,07-Dec-22,51301896517,762.54,ALAN ATCHISON RESIDENTIAL SERVICES (DAVIDS CLOSE 2),CARE ESTABLISHMENT,LD - Hunts Locality - Cost of Care,LD - Huntingdonshire - Care,Residential Care
Cambridgeshire County Council,07-Dec-22,51301896517,762.54,ALAN ATCHISON RESIDENTIAL SERVICES (DAVIDS CLOSE 2),CARE ESTABLISHMENT,LD - Hunts Locality - Cost of Care,LD - Huntingdonshire - Care,Residential Care
Cambridgeshire County Council,07-Dec-22,51301896517,762.54,ALAN ATCHISON RESIDENTIAL SERVICES (DAVIDS CLOSE 2),CARE ESTABLISHMENT,LD - Hunts Locality - Cost of Care,LD - Huntingdonshire - Care,Residential Care
Cambridgeshire County Council,07-Dec-22,51301896517,762.54,ALAN ATCHISON RESIDENTIAL SERVICES (DAVIDS CLOSE 2),CARE ESTABLISHMENT,LD - Hunts Locality - Cost of Care,LD - Huntingdonshire - Care,Residential Care
Cambridgeshire County Council,07-Dec-22,51301896517,762.54,ALAN ATCHISON RESIDENTIAL SERVICES (DAVIDS CLOSE 2),CARE ESTABLISHMENT,LD - Hunts Locality - Cost of Care,LD - Huntingdonshire - Care,Residential Care
Cambridgeshire County Council,07-Dec-22,51301896517,762.54,ALAN ATCHISON RESIDENTIAL SERVICES (DAVIDS CLOSE 2),CARE ESTABLISHMENT,LD - Hunts Locality - Cost of Care,LD - Huntingdonshire - Care,Residential Care
Cambridgeshire County Council,07-Dec-22,51301896517,762.54,ALAN ATCHISON RESIDENTIAL SERVICES (DAVIDS CLOSE 2),CARE ESTABLISHMENT,LD - Hunts Locality - Cost of Care,LD - Huntingdonshire - Care,Residential Care
Cambridgeshire County Council,07-Dec-22,51301896517,762.54,ALAN ATCHISON RESIDENTIAL SERVICES (DAVIDS CLOSE 2),CARE ESTABLISHMENT,LD - Hunts Locality - Cost of Care,LD - Huntingdonshire - Care,Residential Care
Cambridgeshire County Council,07-Dec-22,51301896517,762.54,ALAN ATCHISON RESIDENTIAL SERVICES (DAVIDS CLOSE 2),CARE ESTABLISHMENT,LD - Hunts Locality - Cost of Care,LD - Huntingdonshire - Care,Residential Care
Cambridgeshire County Council,07-Dec-22,51301896517,762.54,ALAN ATCHISON RESIDENTIAL SERVICES (DAVIDS CLOSE 2),CARE ESTABLISHMENT,LD - Hunts Locality - Cost of Care,LD - Huntingdonshire - Care,Residential Care
Cambridgeshire County Council,07-Dec-22,51301896517,762.54,ALAN ATCHISON RESIDENTIAL SERVICES (DAVIDS CLOSE 2),CARE ESTABLISHMENT,LD - Hunts Locality - Cost of Care,LD - Huntingdonshire - Care,Residential Care
Cambridgeshire County Council,07-Dec-22,51301896517,762.54,ALAN ATCHISON RESIDENTIAL SERVICES (DAVIDS CLOSE 2),CARE ESTABLISHMENT,LD - Hunts Locality - Cost of Care,LD - Huntingdonshire - Care,Residential Care
Cambridgeshire County Council,07-Dec-22,51301896517,762.54,ALAN ATCHISON RESIDENTIAL SERVICES (DAVIDS CLOSE 2),CARE ESTABLISHMENT,LD - Hunts Locality - Cost of Care,LD - Huntingdonshire - Care,Residential Care
Cambridgeshire County Council,07-Dec-22,51301896517,762.54,ALAN ATCHISON RESIDENTIAL SERVICES (DAVIDS CLOSE 2),CARE ESTABLISHMENT,LD - Hunts Locality - Cost of Care,LD - Huntingdonshire - Care,Residential Care
Cambridgeshire County Council,07-Dec-22,51301896517,762.54,ALAN ATCHISON RESIDENTIAL SERVICES (DAVIDS CLOSE 2),CARE ESTABLISHMENT,LD - Hunts Locality - Cost of Care,LD - Huntingdonshire - Care,Residential Care
Cambridgeshire County Council,07-Dec-22,51301896517,762.54,ALAN ATCHISON RESIDENTIAL SERVICES (DAVIDS CLOSE 2),CARE ESTABLISHMENT,LD - Hunts Locality - Cost of Care,LD - Huntingdonshire - Care,Residential Care
Cambridgeshire County Council,07-Dec-22,51301896517,762.54,ALAN ATCHISON RESIDENTIAL SERVICES (DAVIDS CLOSE 2),CARE ESTABLISHMENT,LD - Hunts Locality - Cost of Care,LD - Huntingdonshire - Care,Residential Care
Cambridgeshire County Council,07-Dec-22,51301896517,762.54,ALAN ATCHISON RESIDENTIAL SERVICES (DAVIDS CLOSE 2),CARE ESTABLISHMENT,LD - Hunts Locality - Cost of Care,LD - Huntingdonshire - Care,Residential Care
Cambridgeshire County Council,07-Dec-22,51301896517,762.54,ALAN ATCHISON RESIDENTIAL SERVICES (DAVIDS CLOSE 2),CARE ESTABLISHMENT,LD - Hunts Locality - Cost of Care,LD - Huntingdonshire - Care,Residential Care
Cambridgeshire County Council,07-Dec-22,51301896517,762.54,ALAN ATCHISON RESIDENTIAL SERVICES (DAVIDS CLOSE 2),CARE ESTABLISHMENT,LD - Hunts Locality - Cost of Care,LD - Huntingdonshire - Care,Residential Care
Cambridgeshire County Council,07-Dec-22,51301883076,780.00,YOUNG PEOPLE MARCH LTD,LOCAL CLUBS & GROUPS,Out of School Tuition,Out of School Provision - Education and Settings,Independent School Placements
Cambridgeshire County Council,07-Dec-22,51301896512,784.00,PRIME LIFE LTD,CARE ESTABLISHMENT,LD - Hunts Locality - Cost of Care,LD - Huntingdonshire - Care,Residential Care
Cambridgeshire County Council,07-Dec-22,51301896512,784.00,PRIME LIFE LTD,CARE ESTABLISHMENT,LD - Hunts Locality - Cost of Care,LD - Huntingdonshire - Care,Residential Care
Cambridgeshire County Council,07-Dec-22,51301896512,784.00,PRIME LIFE LTD,CARE ESTABLISHMENT,LD - Hunts Locality - Cost of Care,LD - Huntingdonshire - Care,Residential Care
Cambridgeshire County Council,07-Dec-22,51301896512,784.00,PRIME LIFE LTD,CARE ESTABLISHMENT,LD - Hunts Locality - Cost of Care,LD - Huntingdonshire - Care,Residential Care
Cambridgeshire County Council,07-Dec-22,51301896512,784.00,PRIME LIFE LTD,CARE ESTABLISHMENT,LD - Hunts Locality - Cost of Care,LD - Huntingdonshire - Care,Residential Care
Cambridgeshire County Council,07-Dec-22,51301896512,784.00,PRIME LIFE LTD,CARE ESTABLISHMENT,LD - Hunts Locality - Cost of Care,LD - Huntingdonshire - Care,Residential Care
Cambridgeshire County Council,07-Dec-22,51301896512,784.00,PRIME LIFE LTD,CARE ESTABLISHMENT,LD - Hunts Locality - Cost of Care,LD - Huntingdonshire - Care,Residential Care
